{"text_format":"1","workbook":"xlsx","n_sheets":21,"sheets":["G_Print","P_Print (1)","O_Print (1)","S_Print (1)","K_Print (1)","E_Print (1)","X_Print (1)","D_Print (1)","Q_Print","R_Print","PagePrincipale","Permanents","Occasionnels","Stagiaires","StockOptions","Epargnes","SalariesExoneres","Doctorants","Quitances","Erreurs_XML","Complements"],"not_rendered":{"charts":0,"images":2,"macros":1,"external_links":0,"defined_names":397,"comments":5,"pivot_tables":0},"unopened":[],"bounds":{"document_bytes":16777216,"sheet_cells":100000,"rows_first":2000,"rows_last":500,"rows_between":2000,"halvings":0,"cell_chars":16384,"cell_head_chars":4096},"cells_cut":0,"cells_raw":0,"read":"whole","date_system":"1900"}

{"sheet":"G_Print","index":0,"n_rows":26,"n_cols":6,"rows_kept":26,"cut":false,"hidden":true,"merged":[]}
[]
[]
[null,null,null,"Année :",{"$f":"EspacerChaine1(YEAR(SIMPL_Cell_exerciceFiscalAu))","v":"2 0 1 7                "}," "]
[null,null,null,"Identifiant Fiscal :",{"$f":"EspacerChaine1(SIMPL_Cell_identifiantFiscal)","v":"9 9 9 9 9 9 9             "}," "]
[null,null,null,"Identifiant TP :",{"$f":"EspacerChaine1(SIMPL_Cell_identifiantTP)","v":"9 9 9 9 9 9 9             "}," "]
[null,null,null,"Nom et Prénom ou Raison Sociale :",{"$f":"IF(SIMPL_Cell_societe=\"\",SIMPL_Cell_nom&\" \"&SIMPL_Cell_prenom,CONCATENATE(SIMPL_Cell_societe))","v":"MaSociete"}," "]
[null,null,null,"Adresse :",{"$f":"CONCATENATE(REPT(\" \",88),SIMPL_Cell_adresse)","v":"                                                                                        MonAdresse"}," "]
[null,null,null,"Ville :",{"$f":"SUBSTITUTE(SUBSTITUTE(IF(ISERROR(FIND(\"-\",SIMPL_Cell_villecommune))=FALSE,MID(SIMPL_Cell_villecommune,1,FIND(\"-\",SIMPL_Cell_villecommune)-1),SIMPL_Cell_villecommune),\" BANLIEUE\",\"\"),\" (M)\",\"\")","v":"CASABLANCA"}," "]
[null,null,null,"N° CIN ou N° CDS :",{"$f":"EspacerChaine1(IF(SIMPL_Cell_NumCIN=\"\",CONCATENATE(SIMPL_Cell_NumCDS),CONCATENATE(SIMPL_Cell_NumCIN)))","v":"                   "}," "]
[null,null,null,"N° RC :",{"$f":"EspacerChaine1(SIMPL_Cell_NumRC)","v":"9 9 9 9 9 9 9             "}," "]
[null,null,null,"N° CNSS :",{"$f":"EspacerChaine1(SIMPL_Cell_NumCNSS)","v":"9 9 9 9 9 9 9             "}," "]
[null,null,null,"Téléphone :",{"$f":"EspacerChaine1(SIMPL_Cell_telephone)","v":"0 5 2 2 0 0 0 0 0 0          "}," "]
[null,null,null,"Fax :",{"$f":"EspacerChaine1(SIMPL_Cell_fax)","v":"0 5 2 2 0 0 0 0 0 0          "}," "]
[null,null,null,"E-Mail :",{"$f":"CONCATENATE(SIMPL_Cell_email)","v":"monemail@masociete.com"}," "]
[null,null,null,"Effectif Permanents :",{"$f":"EspacerChaine1(TEXT(SIMPL_DeclarationSalaires_Permanents_NbreLignes,\"000\"))","v":"0 0 0                 "}," "]
[null,null,null,"Effectif Occasionnel :",{"$f":"EspacerChaine1(TEXT(SIMPL_DeclarationSalaires_Occasionnels_NbreLignes,\"000\"))","v":"0 0 0                 "}," "]
[null,null,null,"Effectif Stagiaires :",{"$f":"EspacerChaine1(TEXT(SIMPL_DeclarationSalaires_Stagiaires_NbreLignes,\"000\"))","v":"0 0 0                 "}," "]
[null,null,null,"Effectif Total :",{"$f":"EspacerChaine1(TEXT(SIMPL_DeclarationSalaires_EffectifTotal_NbreLignes,\"000\"))","v":"0 0 0                 "}," "]
[null,null,null,"Lieu Déclaration :",{"$f":"PROPER(E8)","v":"Casablanca"}," "]
[null,null,null,"Date Déclaration :",{"$f":"NOW()","v":"2019-01-10T11:54:05.140"}," "]
[null,null,null,"xedis :",{"$f":"PagePrincipale!$B$1","v":"xEdiS 7.0.0.1"}," "]
[null,null,null,"ICE1 :",{"$f":"EspacerChaine2(LEFT(SIMPL_Cell_identifiantCommun,9))","v":"0  0  0  0  0  0  0  0  0                      "}," "]
[null,null,null,"ICE2 :",{"$f":"EspacerChaine2(MID(SIMPL_Cell_identifiantCommun,10,4))","v":"0  0  0  0                                "}," "]
[null,null,null,"ICE3 :",{"$f":"EspacerChaine2(RIGHT(SIMPL_Cell_identifiantCommun,2))","v":"0  0                                    "}," "]
[null,null,null,null,null," "]
[null,null,null,null,null," "]

{"sheet":"P_Print (1)","index":1,"n_rows":39,"n_cols":16,"rows_kept":39,"cut":false,"hidden":true,"merged":[[5,5,6,5],[7,5,8,5],[9,5,10,5],[11,5,12,5],[13,5,14,5],[15,5,16,5],[17,15,18,15],[19,15,20,15],[7,15,8,15],[9,15,10,15],[11,15,12,15],[13,15,14,15],[15,15,16,15],[7,0,8,0],[7,11,7,12],[9,11,9,12],[7,8,8,8],[9,0,10,0],[9,3,10,3],[9,4,10,4],[9,8,10,8],[17,0,18,0],[11,11,11,12],[13,11,13,12],[15,11,15,12],[17,11,17,12],[15,4,16,4],[15,8,16,8],[17,3,18,3],[17,4,18,4],[17,8,18,8],[15,3,16,3],[15,0,16,0],[13,0,14,0],[11,3,12,3],[11,0,12,0],[17,5,18,5],[19,3,20,3],[19,4,20,4],[19,8,20,8],[28,8,29,8],[19,5,20,5],[22,2,23,5],[25,2,26,5],[28,2,29,5],[25,11,25,12],[28,11,28,12],[22,8,23,8],[25,8,26,8],[22,11,22,12],[19,0,20,0],[0,0,0,14],[1,0,1,14],[5,3,6,3],[5,11,5,12],[11,4,12,4],[11,8,12,8],[13,3,14,3],[13,4,14,4],[13,8,14,8],[5,0,6,0],[5,4,6,4],[5,8,6,8],[7,3,8,3],[7,4,8,4],[19,11,19,12]]}
["ETAT CONCERNANT LE PERSONNEL PERMANENT"]
[{"$f":"\"ANNEE : \"&YEAR(PagePrincipale!F23)","v":"ANNEE : 2017"}]
[]
["Identifiant Fiscal de l'employeur n° :",null,"Nom et Prénom(s) ou Raison Sociale :",null,null,null,null,null,null,null,null,null,null,"Feuille n° : ",{"$f":"P4&\"/\"&SIMPL_DeclarationSalaires_NbreFeuilles","v":"1/7"},{"$f":"LEFT(MID(WorkSheetName(P4),FIND(\"(\",WorkSheetName(P4))+1,1000),FIND(\")\",MID(WorkSheetName(P4),FIND(\"(\",WorkSheetName(P4))+1,1000))-1)+0","v":1}]
[]
["Numéro de Matricule","Nom et Prénom(s)","N° C.I.N. ou Carte d'étranger","N° d'identification fiscale","Situation de famille (*)","Salaire de base annuel","Montant brut des traitements, salaires et émoluments (1)","Montant des indemnités versées à titre de frais professionnels (3)","Montant du revenu brut imposable (5)","Taux des frais professionnels ou d'abattement en %","Montant des cotisations d'assurance retraite (7)","Montant des autres retenues (8)",null,"Montant du revenu net imposable (10)","Période en jours"]
[null,"Adresse Personnelle","N° P.P.R ou CNSS",null,null,null,"Montant des avantages en argent ou en nature (2)","Montant des éléments exonérés (4)",null,"Montant des frais professionnels ou d'abattement (6)","Montant des échéances prélevées (9)","Date de l'AC (**)","Date du PH (***)","I.R. prélevé","Nombre de réductions pour charges de famille"]
[{"$f":"CONCATENATE(IF(ISERR(P8),\"/ / /\",OFFSET(SIMPL_DeclarationSalaires_Permanents_Entete_SalarieCode,P8,0)))","v":"/ / /"},{"$f":"IF(ISERR(P8),\"/ / /\",OFFSET(SIMPL_DeclarationSalaires_Permanents_Entete_SalarieNom,P8,0)&\" \"&OFFSET(SIMPL_DeclarationSalaires_Permanents_Entete_SalariePrenom,P8,0))","v":"/ / /"},{"$f":"IF(ISERR(P8),\"/ / /\",IF(OFFSET(SIMPL_DeclarationSalaires_Permanents_Entete_SalarieCIN,P8,0)<>\"\",CONCATENATE(OFFSET(SIMPL_DeclarationSalaires_Permanents_Entete_SalarieCIN,P8,0)),CONCATENATE(OFFSET(SIMPL_DeclarationSalaires_Permanents_Entete_SalarieCDS,P8,0))))","v":"/ / /"},{"$f":"CONCATENATE(IF(ISERR(P8),\"/ / /\",OFFSET(SIMPL_DeclarationSalaires_Permanents_Entete_SalarieIF,P8,0)))","v":"/ / /"},{"$f":"IF(ISERR(P8),\"/ / /\",IF(OFFSET(SIMPL_DeclarationSalaires_Permanents_Entete_SalarieSitFamiliale,P8,0)=\"\",\"\",OFFSET(SIMPL_DeclarationSalaires_Entete_ReferentielSitFamiliale,MATCH(OFFSET(SIMPL_DeclarationSalaires_Permanents_Entete_SalarieSitFamiliale,P8,0),SIMPL_DeclarationSalaires_ReferentielSitFamiliale,0),1)))","v":"/ / /"},{"$f":"IF(ISERR(P8),\"/ / /\",OFFSET(SIMPL_DeclarationSalaires_Permanents_Entete_SalaireDeBaseAnnuel,P8,0))","v":"/ / /"},{"$f":"IF(ISERR(P8),\"/ / /\",OFFSET(SIMPL_DeclarationSalaires_Permanents_Entete_TraitementsEtSalaires,P8,0))","v":"/ / /"},{"$f":"IF(ISERR(P8),\"/ / /\",OFFSET(SIMPL_DeclarationSalaires_Permanents_Entete_Indemnites,P8,0))","v":"/ / /"},{"$f":"IF(ISERR(P8),\"/ / /\",OFFSET(SIMPL_DeclarationSalaires_Permanents_Entete_BrutImposable,P8,0))","v":"/ / /"},{"$f":"CONCATENATE(IF(ISERR(P8),\"/ / /\",OFFSET(SIMPL_DeclarationSalaires_Permanents_Entete_FraisProfTaux,P8,0)))","v":"/ / /"},{"$f":"IF(ISERR(P8),\"/ / /\",OFFSET(SIMPL_DeclarationSalaires_Permanents_Entete_RetenuesRetraites,P8,0))","v":"/ / /"},{"$f":"IF(ISERR(P8),\"/ / /\",OFFSET(SIMPL_DeclarationSalaires_Permanents_Entete_RetenuesSocialesAutres,P8,0))","v":"/ / /"},null,{"$f":"IF(ISERR(P8),\"/ / /\",OFFSET(SIMPL_DeclarationSalaires_Permanents_Entete_NetImposable,P8,0))","v":"/ / /"},{"$f":"IF(ISERR(P8),\"/ / /\",OFFSET(SIMPL_DeclarationSalaires_Permanents_Entete_NbreJours,P8,0))","v":"/ / /"},{"$f":"IF(7*($P$4-1)+1<=SIMPL_DeclarationSalaires_Permanents_NbreLignes,7*($P$4-1)+1,0/0)","v":{"$error":"#DIV/0!"}}]
[null,{"$f":"CONCATENATE(IF(ISERR(P8),\"/ / /\",OFFSET(SIMPL_DeclarationSalaires_Permanents_Entete_SalarieAdresse,P8,0)))","v":"/ / /"},{"$f":"IF(ISERR(P8),\"/ / /\",IF(OFFSET(SIMPL_DeclarationSalaires_Permanents_Entete_SalarieCNSS,P8,0)<>\"\",CONCATENATE(OFFSET(SIMPL_DeclarationSalaires_Permanents_Entete_SalarieCNSS,P8,0)),CONCATENATE(OFFSET(SIMPL_DeclarationSalaires_Permanents_Entete_SalariePPR,P8,0))))","v":"/ / /"},null,null,null,{"$f":"IF(ISERR(P8),\"/ / /\",OFFSET(SIMPL_DeclarationSalaires_Permanents_Entete_Avantages,P8,0))","v":"/ / /"},{"$f":"IF(ISERR(P8),\"/ / /\",OFFSET(SIMPL_DeclarationSalaires_Permanents_Entete_ElementsExoneres,P8,0))","v":"/ / /"},null,{"$f":"IF(ISERR(P8),\"/ / /\",OFFSET(SIMPL_DeclarationSalaires_Permanents_Entete_FraisProfMontant,P8,0))","v":"/ / /"},{"$f":"IF(ISERR(P8),\"/ / /\",OFFSET(SIMPL_DeclarationSalaires_Permanents_Entete_EcheancesPrelevees,P8,0))","v":"/ / /"},{"$f":"IF(ISERR(P8),\"/ / /\",IF(OFFSET(SIMPL_DeclarationSalaires_Permanents_Entete_DateAC,P8,0)=\"\",\"\",OFFSET(SIMPL_DeclarationSalaires_Permanents_Entete_DateAC,P8,0)))","v":"/ / /"},{"$f":"IF(ISERR(P8),\"/ / /\",IF(OFFSET(SIMPL_DeclarationSalaires_Permanents_Entete_DatePH,P8,0)=\"\",\"\",OFFSET(SIMPL_DeclarationSalaires_Permanents_Entete_DatePH,P8,0)))","v":"/ / /"},{"$f":"IF(ISERR(P8),\"/ / /\",OFFSET(SIMPL_DeclarationSalaires_Permanents_Entete_IRMontant,P8,0))","v":"/ / /"},{"$f":"IF(ISERR(P8),\"/ / /\",OFFSET(SIMPL_DeclarationSalaires_Permanents_Entete_SalarieNbrePersonnesACharge,P8,0))","v":"/ / /"}]
[{"$f":"CONCATENATE(IF(ISERR(P10),\"/ / /\",OFFSET(SIMPL_DeclarationSalaires_Permanents_Entete_SalarieCode,P10,0)))","v":"/ / /"},{"$f":"IF(ISERR(P10),\"/ / /\",OFFSET(SIMPL_DeclarationSalaires_Permanents_Entete_SalarieNom,P10,0)&\" \"&OFFSET(SIMPL_DeclarationSalaires_Permanents_Entete_SalariePrenom,P10,0))","v":"/ / /"},{"$f":"IF(ISERR(P10),\"/ / /\",IF(OFFSET(SIMPL_DeclarationSalaires_Permanents_Entete_SalarieCIN,P10,0)<>\"\",CONCATENATE(OFFSET(SIMPL_DeclarationSalaires_Permanents_Entete_SalarieCIN,P10,0)),CONCATENATE(OFFSET(SIMPL_DeclarationSalaires_Permanents_Entete_SalarieCDS,P10,0))))","v":"/ / /"},{"$f":"CONCATENATE(IF(ISERR(P10),\"/ / /\",OFFSET(SIMPL_DeclarationSalaires_Permanents_Entete_SalarieIF,P10,0)))","v":"/ / /"},{"$f":"IF(ISERR(P10),\"/ / /\",IF(OFFSET(SIMPL_DeclarationSalaires_Permanents_Entete_SalarieSitFamiliale,P10,0)=\"\",\"\",OFFSET(SIMPL_DeclarationSalaires_Entete_ReferentielSitFamiliale,MATCH(OFFSET(SIMPL_DeclarationSalaires_Permanents_Entete_SalarieSitFamiliale,P10,0),SIMPL_DeclarationSalaires_ReferentielSitFamiliale,0),1)))","v":"/ / /"},{"$f":"IF(ISERR(P10),\"/ / /\",OFFSET(SIMPL_DeclarationSalaires_Permanents_Entete_SalaireDeBaseAnnuel,P10,0))","v":"/ / /"},{"$f":"IF(ISERR(P10),\"/ / /\",OFFSET(SIMPL_DeclarationSalaires_Permanents_Entete_TraitementsEtSalaires,P10,0))","v":"/ / /"},{"$f":"IF(ISERR(P10),\"/ / /\",OFFSET(SIMPL_DeclarationSalaires_Permanents_Entete_Indemnites,P10,0))","v":"/ / /"},{"$f":"IF(ISERR(P10),\"/ / /\",OFFSET(SIMPL_DeclarationSalaires_Permanents_Entete_BrutImposable,P10,0))","v":"/ / /"},{"$f":"CONCATENATE(IF(ISERR(P10),\"/ / /\",OFFSET(SIMPL_DeclarationSalaires_Permanents_Entete_FraisProfTaux,P10,0)))","v":"/ / /"},{"$f":"IF(ISERR(P10),\"/ / /\",OFFSET(SIMPL_DeclarationSalaires_Permanents_Entete_RetenuesRetraites,P10,0))","v":"/ / /"},{"$f":"IF(ISERR(P10),\"/ / /\",OFFSET(SIMPL_DeclarationSalaires_Permanents_Entete_RetenuesSocialesAutres,P10,0))","v":"/ / /"},null,{"$f":"IF(ISERR(P10),\"/ / /\",OFFSET(SIMPL_DeclarationSalaires_Permanents_Entete_NetImposable,P10,0))","v":"/ / /"},{"$f":"IF(ISERR(P10),\"/ / /\",OFFSET(SIMPL_DeclarationSalaires_Permanents_Entete_NbreJours,P10,0))","v":"/ / /"},{"$f":"IF(7*($P$4-1)+2<=SIMPL_DeclarationSalaires_Permanents_NbreLignes,7*($P$4-1)+2,0/0)","v":{"$error":"#DIV/0!"}}]
[null,{"$f":"CONCATENATE(IF(ISERR(P10),\"/ / /\",OFFSET(SIMPL_DeclarationSalaires_Permanents_Entete_SalarieAdresse,P10,0)))","v":"/ / /"},{"$f":"IF(ISERR(P10),\"/ / /\",IF(OFFSET(SIMPL_DeclarationSalaires_Permanents_Entete_SalarieCNSS,P10,0)<>\"\",CONCATENATE(OFFSET(SIMPL_DeclarationSalaires_Permanents_Entete_SalarieCNSS,P10,0)),CONCATENATE(OFFSET(SIMPL_DeclarationSalaires_Permanents_Entete_SalariePPR,P10,0))))","v":"/ / /"},null,null,null,{"$f":"IF(ISERR(P10),\"/ / /\",OFFSET(SIMPL_DeclarationSalaires_Permanents_Entete_Avantages,P10,0))","v":"/ / /"},{"$f":"IF(ISERR(P10),\"/ / /\",OFFSET(SIMPL_DeclarationSalaires_Permanents_Entete_ElementsExoneres,P10,0))","v":"/ / /"},null,{"$f":"IF(ISERR(P10),\"/ / /\",OFFSET(SIMPL_DeclarationSalaires_Permanents_Entete_FraisProfMontant,P10,0))","v":"/ / /"},{"$f":"IF(ISERR(P10),\"/ / /\",OFFSET(SIMPL_DeclarationSalaires_Permanents_Entete_EcheancesPrelevees,P10,0))","v":"/ / /"},{"$f":"IF(ISERR(P10),\"/ / /\",IF(OFFSET(SIMPL_DeclarationSalaires_Permanents_Entete_DateAC,P10,0)=\"\",\"\",OFFSET(SIMPL_DeclarationSalaires_Permanents_Entete_DateAC,P10,0)))","v":"/ / /"},{"$f":"IF(ISERR(P10),\"/ / /\",IF(OFFSET(SIMPL_DeclarationSalaires_Permanents_Entete_DatePH,P10,0)=\"\",\"\",OFFSET(SIMPL_DeclarationSalaires_Permanents_Entete_DatePH,P10,0)))","v":"/ / /"},{"$f":"IF(ISERR(P10),\"/ / /\",OFFSET(SIMPL_DeclarationSalaires_Permanents_Entete_IRMontant,P10,0))","v":"/ / /"},{"$f":"IF(ISERR(P10),\"/ / /\",OFFSET(SIMPL_DeclarationSalaires_Permanents_Entete_SalarieNbrePersonnesACharge,P10,0))","v":"/ / /"}]
[{"$f":"CONCATENATE(IF(ISERR(P12),\"/ / /\",OFFSET(SIMPL_DeclarationSalaires_Permanents_Entete_SalarieCode,P12,0)))","v":"/ / /"},{"$f":"IF(ISERR(P12),\"/ / /\",OFFSET(SIMPL_DeclarationSalaires_Permanents_Entete_SalarieNom,P12,0)&\" \"&OFFSET(SIMPL_DeclarationSalaires_Permanents_Entete_SalariePrenom,P12,0))","v":"/ / /"},{"$f":"IF(ISERR(P12),\"/ / /\",IF(OFFSET(SIMPL_DeclarationSalaires_Permanents_Entete_SalarieCIN,P12,0)<>\"\",CONCATENATE(OFFSET(SIMPL_DeclarationSalaires_Permanents_Entete_SalarieCIN,P12,0)),CONCATENATE(OFFSET(SIMPL_DeclarationSalaires_Permanents_Entete_SalarieCDS,P12,0))))","v":"/ / /"},{"$f":"CONCATENATE(IF(ISERR(P12),\"/ / /\",OFFSET(SIMPL_DeclarationSalaires_Permanents_Entete_SalarieIF,P12,0)))","v":"/ / /"},{"$f":"IF(ISERR(P12),\"/ / /\",IF(OFFSET(SIMPL_DeclarationSalaires_Permanents_Entete_SalarieSitFamiliale,P12,0)=\"\",\"\",OFFSET(SIMPL_DeclarationSalaires_Entete_ReferentielSitFamiliale,MATCH(OFFSET(SIMPL_DeclarationSalaires_Permanents_Entete_SalarieSitFamiliale,P12,0),SIMPL_DeclarationSalaires_ReferentielSitFamiliale,0),1)))","v":"/ / /"},{"$f":"IF(ISERR(P12),\"/ / /\",OFFSET(SIMPL_DeclarationSalaires_Permanents_Entete_SalaireDeBaseAnnuel,P12,0))","v":"/ / /"},{"$f":"IF(ISERR(P12),\"/ / /\",OFFSET(SIMPL_DeclarationSalaires_Permanents_Entete_TraitementsEtSalaires,P12,0))","v":"/ / /"},{"$f":"IF(ISERR(P12),\"/ / /\",OFFSET(SIMPL_DeclarationSalaires_Permanents_Entete_Indemnites,P12,0))","v":"/ / /"},{"$f":"IF(ISERR(P12),\"/ / /\",OFFSET(SIMPL_DeclarationSalaires_Permanents_Entete_BrutImposable,P12,0))","v":"/ / /"},{"$f":"CONCATENATE(IF(ISERR(P12),\"/ / /\",OFFSET(SIMPL_DeclarationSalaires_Permanents_Entete_FraisProfTaux,P12,0)))","v":"/ / /"},{"$f":"IF(ISERR(P12),\"/ / /\",OFFSET(SIMPL_DeclarationSalaires_Permanents_Entete_RetenuesRetraites,P12,0))","v":"/ / /"},{"$f":"IF(ISERR(P12),\"/ / /\",OFFSET(SIMPL_DeclarationSalaires_Permanents_Entete_RetenuesSocialesAutres,P12,0))","v":"/ / /"},null,{"$f":"IF(ISERR(P12),\"/ / /\",OFFSET(SIMPL_DeclarationSalaires_Permanents_Entete_NetImposable,P12,0))","v":"/ / /"},{"$f":"IF(ISERR(P12),\"/ / /\",OFFSET(SIMPL_DeclarationSalaires_Permanents_Entete_NbreJours,P12,0))","v":"/ / /"},{"$f":"IF(7*($P$4-1)+3<=SIMPL_DeclarationSalaires_Permanents_NbreLignes,7*($P$4-1)+3,0/0)","v":{"$error":"#DIV/0!"}}]
[null,{"$f":"CONCATENATE(IF(ISERR(P12),\"/ / /\",OFFSET(SIMPL_DeclarationSalaires_Permanents_Entete_SalarieAdresse,P12,0)))","v":"/ / /"},{"$f":"IF(ISERR(P12),\"/ / /\",IF(OFFSET(SIMPL_DeclarationSalaires_Permanents_Entete_SalarieCNSS,P12,0)<>\"\",CONCATENATE(OFFSET(SIMPL_DeclarationSalaires_Permanents_Entete_SalarieCNSS,P12,0)),CONCATENATE(OFFSET(SIMPL_DeclarationSalaires_Permanents_Entete_SalariePPR,P12,0))))","v":"/ / /"},null,null,null,{"$f":"IF(ISERR(P12),\"/ / /\",OFFSET(SIMPL_DeclarationSalaires_Permanents_Entete_Avantages,P12,0))","v":"/ / /"},{"$f":"IF(ISERR(P12),\"/ / /\",OFFSET(SIMPL_DeclarationSalaires_Permanents_Entete_ElementsExoneres,P12,0))","v":"/ / /"},null,{"$f":"IF(ISERR(P12),\"/ / /\",OFFSET(SIMPL_DeclarationSalaires_Permanents_Entete_FraisProfMontant,P12,0))","v":"/ / /"},{"$f":"IF(ISERR(P12),\"/ / /\",OFFSET(SIMPL_DeclarationSalaires_Permanents_Entete_EcheancesPrelevees,P12,0))","v":"/ / /"},{"$f":"IF(ISERR(P12),\"/ / /\",IF(OFFSET(SIMPL_DeclarationSalaires_Permanents_Entete_DateAC,P12,0)=\"\",\"\",OFFSET(SIMPL_DeclarationSalaires_Permanents_Entete_DateAC,P12,0)))","v":"/ / /"},{"$f":"IF(ISERR(P12),\"/ / /\",IF(OFFSET(SIMPL_DeclarationSalaires_Permanents_Entete_DatePH,P12,0)=\"\",\"\",OFFSET(SIMPL_DeclarationSalaires_Permanents_Entete_DatePH,P12,0)))","v":"/ / /"},{"$f":"IF(ISERR(P12),\"/ / /\",OFFSET(SIMPL_DeclarationSalaires_Permanents_Entete_IRMontant,P12,0))","v":"/ / /"},{"$f":"IF(ISERR(P12),\"/ / /\",OFFSET(SIMPL_DeclarationSalaires_Permanents_Entete_SalarieNbrePersonnesACharge,P12,0))","v":"/ / /"}]
[{"$f":"CONCATENATE(IF(ISERR(P14),\"/ / /\",OFFSET(SIMPL_DeclarationSalaires_Permanents_Entete_SalarieCode,P14,0)))","v":"/ / /"},{"$f":"IF(ISERR(P14),\"/ / /\",OFFSET(SIMPL_DeclarationSalaires_Permanents_Entete_SalarieNom,P14,0)&\" \"&OFFSET(SIMPL_DeclarationSalaires_Permanents_Entete_SalariePrenom,P14,0))","v":"/ / /"},{"$f":"IF(ISERR(P14),\"/ / /\",IF(OFFSET(SIMPL_DeclarationSalaires_Permanents_Entete_SalarieCIN,P14,0)<>\"\",CONCATENATE(OFFSET(SIMPL_DeclarationSalaires_Permanents_Entete_SalarieCIN,P14,0)),CONCATENATE(OFFSET(SIMPL_DeclarationSalaires_Permanents_Entete_SalarieCDS,P14,0))))","v":"/ / /"},{"$f":"CONCATENATE(IF(ISERR(P14),\"/ / /\",OFFSET(SIMPL_DeclarationSalaires_Permanents_Entete_SalarieIF,P14,0)))","v":"/ / /"},{"$f":"IF(ISERR(P14),\"/ / /\",IF(OFFSET(SIMPL_DeclarationSalaires_Permanents_Entete_SalarieSitFamiliale,P14,0)=\"\",\"\",OFFSET(SIMPL_DeclarationSalaires_Entete_ReferentielSitFamiliale,MATCH(OFFSET(SIMPL_DeclarationSalaires_Permanents_Entete_SalarieSitFamiliale,P14,0),SIMPL_DeclarationSalaires_ReferentielSitFamiliale,0),1)))","v":"/ / /"},{"$f":"IF(ISERR(P14),\"/ / /\",OFFSET(SIMPL_DeclarationSalaires_Permanents_Entete_SalaireDeBaseAnnuel,P14,0))","v":"/ / /"},{"$f":"IF(ISERR(P14),\"/ / /\",OFFSET(SIMPL_DeclarationSalaires_Permanents_Entete_TraitementsEtSalaires,P14,0))","v":"/ / /"},{"$f":"IF(ISERR(P14),\"/ / /\",OFFSET(SIMPL_DeclarationSalaires_Permanents_Entete_Indemnites,P14,0))","v":"/ / /"},{"$f":"IF(ISERR(P14),\"/ / /\",OFFSET(SIMPL_DeclarationSalaires_Permanents_Entete_BrutImposable,P14,0))","v":"/ / /"},{"$f":"CONCATENATE(IF(ISERR(P14),\"/ / /\",OFFSET(SIMPL_DeclarationSalaires_Permanents_Entete_FraisProfTaux,P14,0)))","v":"/ / /"},{"$f":"IF(ISERR(P14),\"/ / /\",OFFSET(SIMPL_DeclarationSalaires_Permanents_Entete_RetenuesRetraites,P14,0))","v":"/ / /"},{"$f":"IF(ISERR(P14),\"/ / /\",OFFSET(SIMPL_DeclarationSalaires_Permanents_Entete_RetenuesSocialesAutres,P14,0))","v":"/ / /"},null,{"$f":"IF(ISERR(P14),\"/ / /\",OFFSET(SIMPL_DeclarationSalaires_Permanents_Entete_NetImposable,P14,0))","v":"/ / /"},{"$f":"IF(ISERR(P14),\"/ / /\",OFFSET(SIMPL_DeclarationSalaires_Permanents_Entete_NbreJours,P14,0))","v":"/ / /"},{"$f":"IF(7*($P$4-1)+4<=SIMPL_DeclarationSalaires_Permanents_NbreLignes,7*($P$4-1)+4,0/0)","v":{"$error":"#DIV/0!"}}]
[null,{"$f":"CONCATENATE(IF(ISERR(P14),\"/ / /\",OFFSET(SIMPL_DeclarationSalaires_Permanents_Entete_SalarieAdresse,P14,0)))","v":"/ / /"},{"$f":"IF(ISERR(P14),\"/ / /\",IF(OFFSET(SIMPL_DeclarationSalaires_Permanents_Entete_SalarieCNSS,P14,0)<>\"\",CONCATENATE(OFFSET(SIMPL_DeclarationSalaires_Permanents_Entete_SalarieCNSS,P14,0)),CONCATENATE(OFFSET(SIMPL_DeclarationSalaires_Permanents_Entete_SalariePPR,P14,0))))","v":"/ / /"},null,null,null,{"$f":"IF(ISERR(P14),\"/ / /\",OFFSET(SIMPL_DeclarationSalaires_Permanents_Entete_Avantages,P14,0))","v":"/ / /"},{"$f":"IF(ISERR(P14),\"/ / /\",OFFSET(SIMPL_DeclarationSalaires_Permanents_Entete_ElementsExoneres,P14,0))","v":"/ / /"},null,{"$f":"IF(ISERR(P14),\"/ / /\",OFFSET(SIMPL_DeclarationSalaires_Permanents_Entete_FraisProfMontant,P14,0))","v":"/ / /"},{"$f":"IF(ISERR(P14),\"/ / /\",OFFSET(SIMPL_DeclarationSalaires_Permanents_Entete_EcheancesPrelevees,P14,0))","v":"/ / /"},{"$f":"IF(ISERR(P14),\"/ / /\",IF(OFFSET(SIMPL_DeclarationSalaires_Permanents_Entete_DateAC,P14,0)=\"\",\"\",OFFSET(SIMPL_DeclarationSalaires_Permanents_Entete_DateAC,P14,0)))","v":"/ / /"},{"$f":"IF(ISERR(P14),\"/ / /\",IF(OFFSET(SIMPL_DeclarationSalaires_Permanents_Entete_DatePH,P14,0)=\"\",\"\",OFFSET(SIMPL_DeclarationSalaires_Permanents_Entete_DatePH,P14,0)))","v":"/ / /"},{"$f":"IF(ISERR(P14),\"/ / /\",OFFSET(SIMPL_DeclarationSalaires_Permanents_Entete_IRMontant,P14,0))","v":"/ / /"},{"$f":"IF(ISERR(P14),\"/ / /\",OFFSET(SIMPL_DeclarationSalaires_Permanents_Entete_SalarieNbrePersonnesACharge,P14,0))","v":"/ / /"}]
[{"$f":"CONCATENATE(IF(ISERR(P16),\"/ / /\",OFFSET(SIMPL_DeclarationSalaires_Permanents_Entete_SalarieCode,P16,0)))","v":"/ / /"},{"$f":"IF(ISERR(P16),\"/ / /\",OFFSET(SIMPL_DeclarationSalaires_Permanents_Entete_SalarieNom,P16,0)&\" \"&OFFSET(SIMPL_DeclarationSalaires_Permanents_Entete_SalariePrenom,P16,0))","v":"/ / /"},{"$f":"IF(ISERR(P16),\"/ / /\",IF(OFFSET(SIMPL_DeclarationSalaires_Permanents_Entete_SalarieCIN,P16,0)<>\"\",CONCATENATE(OFFSET(SIMPL_DeclarationSalaires_Permanents_Entete_SalarieCIN,P16,0)),CONCATENATE(OFFSET(SIMPL_DeclarationSalaires_Permanents_Entete_SalarieCDS,P16,0))))","v":"/ / /"},{"$f":"CONCATENATE(IF(ISERR(P16),\"/ / /\",OFFSET(SIMPL_DeclarationSalaires_Permanents_Entete_SalarieIF,P16,0)))","v":"/ / /"},{"$f":"IF(ISERR(P16),\"/ / /\",IF(OFFSET(SIMPL_DeclarationSalaires_Permanents_Entete_SalarieSitFamiliale,P16,0)=\"\",\"\",OFFSET(SIMPL_DeclarationSalaires_Entete_ReferentielSitFamiliale,MATCH(OFFSET(SIMPL_DeclarationSalaires_Permanents_Entete_SalarieSitFamiliale,P16,0),SIMPL_DeclarationSalaires_ReferentielSitFamiliale,0),1)))","v":"/ / /"},{"$f":"IF(ISERR(P16),\"/ / /\",OFFSET(SIMPL_DeclarationSalaires_Permanents_Entete_SalaireDeBaseAnnuel,P16,0))","v":"/ / /"},{"$f":"IF(ISERR(P16),\"/ / /\",OFFSET(SIMPL_DeclarationSalaires_Permanents_Entete_TraitementsEtSalaires,P16,0))","v":"/ / /"},{"$f":"IF(ISERR(P16),\"/ / /\",OFFSET(SIMPL_DeclarationSalaires_Permanents_Entete_Indemnites,P16,0))","v":"/ / /"},{"$f":"IF(ISERR(P16),\"/ / /\",OFFSET(SIMPL_DeclarationSalaires_Permanents_Entete_BrutImposable,P16,0))","v":"/ / /"},{"$f":"CONCATENATE(IF(ISERR(P16),\"/ / /\",OFFSET(SIMPL_DeclarationSalaires_Permanents_Entete_FraisProfTaux,P16,0)))","v":"/ / /"},{"$f":"IF(ISERR(P16),\"/ / /\",OFFSET(SIMPL_DeclarationSalaires_Permanents_Entete_RetenuesRetraites,P16,0))","v":"/ / /"},{"$f":"IF(ISERR(P16),\"/ / /\",OFFSET(SIMPL_DeclarationSalaires_Permanents_Entete_RetenuesSocialesAutres,P16,0))","v":"/ / /"},null,{"$f":"IF(ISERR(P16),\"/ / /\",OFFSET(SIMPL_DeclarationSalaires_Permanents_Entete_NetImposable,P16,0))","v":"/ / /"},{"$f":"IF(ISERR(P16),\"/ / /\",OFFSET(SIMPL_DeclarationSalaires_Permanents_Entete_NbreJours,P16,0))","v":"/ / /"},{"$f":"IF(7*($P$4-1)+5<=SIMPL_DeclarationSalaires_Permanents_NbreLignes,7*($P$4-1)+5,0/0)","v":{"$error":"#DIV/0!"}}]
[null,{"$f":"CONCATENATE(IF(ISERR(P16),\"/ / /\",OFFSET(SIMPL_DeclarationSalaires_Permanents_Entete_SalarieAdresse,P16,0)))","v":"/ / /"},{"$f":"IF(ISERR(P16),\"/ / /\",IF(OFFSET(SIMPL_DeclarationSalaires_Permanents_Entete_SalarieCNSS,P16,0)<>\"\",CONCATENATE(OFFSET(SIMPL_DeclarationSalaires_Permanents_Entete_SalarieCNSS,P16,0)),CONCATENATE(OFFSET(SIMPL_DeclarationSalaires_Permanents_Entete_SalariePPR,P16,0))))","v":"/ / /"},null,null,null,{"$f":"IF(ISERR(P16),\"/ / /\",OFFSET(SIMPL_DeclarationSalaires_Permanents_Entete_Avantages,P16,0))","v":"/ / /"},{"$f":"IF(ISERR(P16),\"/ / /\",OFFSET(SIMPL_DeclarationSalaires_Permanents_Entete_ElementsExoneres,P16,0))","v":"/ / /"},null,{"$f":"IF(ISERR(P16),\"/ / /\",OFFSET(SIMPL_DeclarationSalaires_Permanents_Entete_FraisProfMontant,P16,0))","v":"/ / /"},{"$f":"IF(ISERR(P16),\"/ / /\",OFFSET(SIMPL_DeclarationSalaires_Permanents_Entete_EcheancesPrelevees,P16,0))","v":"/ / /"},{"$f":"IF(ISERR(P16),\"/ / /\",IF(OFFSET(SIMPL_DeclarationSalaires_Permanents_Entete_DateAC,P16,0)=\"\",\"\",OFFSET(SIMPL_DeclarationSalaires_Permanents_Entete_DateAC,P16,0)))","v":"/ / /"},{"$f":"IF(ISERR(P16),\"/ / /\",IF(OFFSET(SIMPL_DeclarationSalaires_Permanents_Entete_DatePH,P16,0)=\"\",\"\",OFFSET(SIMPL_DeclarationSalaires_Permanents_Entete_DatePH,P16,0)))","v":"/ / /"},{"$f":"IF(ISERR(P16),\"/ / /\",OFFSET(SIMPL_DeclarationSalaires_Permanents_Entete_IRMontant,P16,0))","v":"/ / /"},{"$f":"IF(ISERR(P16),\"/ / /\",OFFSET(SIMPL_DeclarationSalaires_Permanents_Entete_SalarieNbrePersonnesACharge,P16,0))","v":"/ / /"}]
[{"$f":"CONCATENATE(IF(ISERR(P18),\"/ / /\",OFFSET(SIMPL_DeclarationSalaires_Permanents_Entete_SalarieCode,P18,0)))","v":"/ / /"},{"$f":"IF(ISERR(P18),\"/ / /\",OFFSET(SIMPL_DeclarationSalaires_Permanents_Entete_SalarieNom,P18,0)&\" \"&OFFSET(SIMPL_DeclarationSalaires_Permanents_Entete_SalariePrenom,P18,0))","v":"/ / /"},{"$f":"IF(ISERR(P18),\"/ / /\",IF(OFFSET(SIMPL_DeclarationSalaires_Permanents_Entete_SalarieCIN,P18,0)<>\"\",CONCATENATE(OFFSET(SIMPL_DeclarationSalaires_Permanents_Entete_SalarieCIN,P18,0)),CONCATENATE(OFFSET(SIMPL_DeclarationSalaires_Permanents_Entete_SalarieCDS,P18,0))))","v":"/ / /"},{"$f":"CONCATENATE(IF(ISERR(P18),\"/ / /\",OFFSET(SIMPL_DeclarationSalaires_Permanents_Entete_SalarieIF,P18,0)))","v":"/ / /"},{"$f":"IF(ISERR(P18),\"/ / /\",IF(OFFSET(SIMPL_DeclarationSalaires_Permanents_Entete_SalarieSitFamiliale,P18,0)=\"\",\"\",OFFSET(SIMPL_DeclarationSalaires_Entete_ReferentielSitFamiliale,MATCH(OFFSET(SIMPL_DeclarationSalaires_Permanents_Entete_SalarieSitFamiliale,P18,0),SIMPL_DeclarationSalaires_ReferentielSitFamiliale,0),1)))","v":"/ / /"},{"$f":"IF(ISERR(P18),\"/ / /\",OFFSET(SIMPL_DeclarationSalaires_Permanents_Entete_SalaireDeBaseAnnuel,P18,0))","v":"/ / /"},{"$f":"IF(ISERR(P18),\"/ / /\",OFFSET(SIMPL_DeclarationSalaires_Permanents_Entete_TraitementsEtSalaires,P18,0))","v":"/ / /"},{"$f":"IF(ISERR(P18),\"/ / /\",OFFSET(SIMPL_DeclarationSalaires_Permanents_Entete_Indemnites,P18,0))","v":"/ / /"},{"$f":"IF(ISERR(P18),\"/ / /\",OFFSET(SIMPL_DeclarationSalaires_Permanents_Entete_BrutImposable,P18,0))","v":"/ / /"},{"$f":"CONCATENATE(IF(ISERR(P18),\"/ / /\",OFFSET(SIMPL_DeclarationSalaires_Permanents_Entete_FraisProfTaux,P18,0)))","v":"/ / /"},{"$f":"IF(ISERR(P18),\"/ / /\",OFFSET(SIMPL_DeclarationSalaires_Permanents_Entete_RetenuesRetraites,P18,0))","v":"/ / /"},{"$f":"IF(ISERR(P18),\"/ / /\",OFFSET(SIMPL_DeclarationSalaires_Permanents_Entete_RetenuesSocialesAutres,P18,0))","v":"/ / /"},null,{"$f":"IF(ISERR(P18),\"/ / /\",OFFSET(SIMPL_DeclarationSalaires_Permanents_Entete_NetImposable,P18,0))","v":"/ / /"},{"$f":"IF(ISERR(P18),\"/ / /\",OFFSET(SIMPL_DeclarationSalaires_Permanents_Entete_NbreJours,P18,0))","v":"/ / /"},{"$f":"IF(7*($P$4-1)+6<=SIMPL_DeclarationSalaires_Permanents_NbreLignes,7*($P$4-1)+6,0/0)","v":{"$error":"#DIV/0!"}}]
[null,{"$f":"CONCATENATE(IF(ISERR(P18),\"/ / /\",OFFSET(SIMPL_DeclarationSalaires_Permanents_Entete_SalarieAdresse,P18,0)))","v":"/ / /"},{"$f":"IF(ISERR(P18),\"/ / /\",IF(OFFSET(SIMPL_DeclarationSalaires_Permanents_Entete_SalarieCNSS,P18,0)<>\"\",CONCATENATE(OFFSET(SIMPL_DeclarationSalaires_Permanents_Entete_SalarieCNSS,P18,0)),CONCATENATE(OFFSET(SIMPL_DeclarationSalaires_Permanents_Entete_SalariePPR,P18,0))))","v":"/ / /"},null,null,null,{"$f":"IF(ISERR(P18),\"/ / /\",OFFSET(SIMPL_DeclarationSalaires_Permanents_Entete_Avantages,P18,0))","v":"/ / /"},{"$f":"IF(ISERR(P18),\"/ / /\",OFFSET(SIMPL_DeclarationSalaires_Permanents_Entete_ElementsExoneres,P18,0))","v":"/ / /"},null,{"$f":"IF(ISERR(P18),\"/ / /\",OFFSET(SIMPL_DeclarationSalaires_Permanents_Entete_FraisProfMontant,P18,0))","v":"/ / /"},{"$f":"IF(ISERR(P18),\"/ / /\",OFFSET(SIMPL_DeclarationSalaires_Permanents_Entete_EcheancesPrelevees,P18,0))","v":"/ / /"},{"$f":"IF(ISERR(P18),\"/ / /\",IF(OFFSET(SIMPL_DeclarationSalaires_Permanents_Entete_DateAC,P18,0)=\"\",\"\",OFFSET(SIMPL_DeclarationSalaires_Permanents_Entete_DateAC,P18,0)))","v":"/ / /"},{"$f":"IF(ISERR(P18),\"/ / /\",IF(OFFSET(SIMPL_DeclarationSalaires_Permanents_Entete_DatePH,P18,0)=\"\",\"\",OFFSET(SIMPL_DeclarationSalaires_Permanents_Entete_DatePH,P18,0)))","v":"/ / /"},{"$f":"IF(ISERR(P18),\"/ / /\",OFFSET(SIMPL_DeclarationSalaires_Permanents_Entete_IRMontant,P18,0))","v":"/ / /"},{"$f":"IF(ISERR(P18),\"/ / /\",OFFSET(SIMPL_DeclarationSalaires_Permanents_Entete_SalarieNbrePersonnesACharge,P18,0))","v":"/ / /"}]
[{"$f":"CONCATENATE(IF(ISERR(P20),\"/ / /\",OFFSET(SIMPL_DeclarationSalaires_Permanents_Entete_SalarieCode,P20,0)))","v":"/ / /"},{"$f":"IF(ISERR(P20),\"/ / /\",OFFSET(SIMPL_DeclarationSalaires_Permanents_Entete_SalarieNom,P20,0)&\" \"&OFFSET(SIMPL_DeclarationSalaires_Permanents_Entete_SalariePrenom,P20,0))","v":"/ / /"},{"$f":"IF(ISERR(P20),\"/ / /\",IF(OFFSET(SIMPL_DeclarationSalaires_Permanents_Entete_SalarieCIN,P20,0)<>\"\",CONCATENATE(OFFSET(SIMPL_DeclarationSalaires_Permanents_Entete_SalarieCIN,P20,0)),CONCATENATE(OFFSET(SIMPL_DeclarationSalaires_Permanents_Entete_SalarieCDS,P20,0))))","v":"/ / /"},{"$f":"CONCATENATE(IF(ISERR(P20),\"/ / /\",OFFSET(SIMPL_DeclarationSalaires_Permanents_Entete_SalarieIF,P20,0)))","v":"/ / /"},{"$f":"IF(ISERR(P20),\"/ / /\",IF(OFFSET(SIMPL_DeclarationSalaires_Permanents_Entete_SalarieSitFamiliale,P20,0)=\"\",\"\",OFFSET(SIMPL_DeclarationSalaires_Entete_ReferentielSitFamiliale,MATCH(OFFSET(SIMPL_DeclarationSalaires_Permanents_Entete_SalarieSitFamiliale,P20,0),SIMPL_DeclarationSalaires_ReferentielSitFamiliale,0),1)))","v":"/ / /"},{"$f":"IF(ISERR(P20),\"/ / /\",OFFSET(SIMPL_DeclarationSalaires_Permanents_Entete_SalaireDeBaseAnnuel,P20,0))","v":"/ / /"},{"$f":"IF(ISERR(P20),\"/ / /\",OFFSET(SIMPL_DeclarationSalaires_Permanents_Entete_TraitementsEtSalaires,P20,0))","v":"/ / /"},{"$f":"IF(ISERR(P20),\"/ / /\",OFFSET(SIMPL_DeclarationSalaires_Permanents_Entete_Indemnites,P20,0))","v":"/ / /"},{"$f":"IF(ISERR(P20),\"/ / /\",OFFSET(SIMPL_DeclarationSalaires_Permanents_Entete_BrutImposable,P20,0))","v":"/ / /"},{"$f":"CONCATENATE(IF(ISERR(P20),\"/ / /\",OFFSET(SIMPL_DeclarationSalaires_Permanents_Entete_FraisProfTaux,P20,0)))","v":"/ / /"},{"$f":"IF(ISERR(P20),\"/ / /\",OFFSET(SIMPL_DeclarationSalaires_Permanents_Entete_RetenuesRetraites,P20,0))","v":"/ / /"},{"$f":"IF(ISERR(P20),\"/ / /\",OFFSET(SIMPL_DeclarationSalaires_Permanents_Entete_RetenuesSocialesAutres,P20,0))","v":"/ / /"},null,{"$f":"IF(ISERR(P20),\"/ / /\",OFFSET(SIMPL_DeclarationSalaires_Permanents_Entete_NetImposable,P20,0))","v":"/ / /"},{"$f":"IF(ISERR(P20),\"/ / /\",OFFSET(SIMPL_DeclarationSalaires_Permanents_Entete_NbreJours,P20,0))","v":"/ / /"},{"$f":"IF(7*($P$4-1)+7<=SIMPL_DeclarationSalaires_Permanents_NbreLignes,7*($P$4-1)+7,0/0)","v":{"$error":"#DIV/0!"}}]
[null,{"$f":"CONCATENATE(IF(ISERR(P20),\"/ / /\",OFFSET(SIMPL_DeclarationSalaires_Permanents_Entete_SalarieAdresse,P20,0)))","v":"/ / /"},{"$f":"IF(ISERR(P20),\"/ / /\",IF(OFFSET(SIMPL_DeclarationSalaires_Permanents_Entete_SalarieCNSS,P20,0)<>\"\",CONCATENATE(OFFSET(SIMPL_DeclarationSalaires_Permanents_Entete_SalarieCNSS,P20,0)),CONCATENATE(OFFSET(SIMPL_DeclarationSalaires_Permanents_Entete_SalariePPR,P20,0))))","v":"/ / /"},null,null,null,{"$f":"IF(ISERR(P20),\"/ / /\",OFFSET(SIMPL_DeclarationSalaires_Permanents_Entete_Avantages,P20,0))","v":"/ / /"},{"$f":"IF(ISERR(P20),\"/ / /\",OFFSET(SIMPL_DeclarationSalaires_Permanents_Entete_ElementsExoneres,P20,0))","v":"/ / /"},null,{"$f":"IF(ISERR(P20),\"/ / /\",OFFSET(SIMPL_DeclarationSalaires_Permanents_Entete_FraisProfMontant,P20,0))","v":"/ / /"},{"$f":"IF(ISERR(P20),\"/ / /\",OFFSET(SIMPL_DeclarationSalaires_Permanents_Entete_EcheancesPrelevees,P20,0))","v":"/ / /"},{"$f":"IF(ISERR(P20),\"/ / /\",IF(OFFSET(SIMPL_DeclarationSalaires_Permanents_Entete_DateAC,P20,0)=\"\",\"\",OFFSET(SIMPL_DeclarationSalaires_Permanents_Entete_DateAC,P20,0)))","v":"/ / /"},{"$f":"IF(ISERR(P20),\"/ / /\",IF(OFFSET(SIMPL_DeclarationSalaires_Permanents_Entete_DatePH,P20,0)=\"\",\"\",OFFSET(SIMPL_DeclarationSalaires_Permanents_Entete_DatePH,P20,0)))","v":"/ / /"},{"$f":"IF(ISERR(P20),\"/ / /\",OFFSET(SIMPL_DeclarationSalaires_Permanents_Entete_IRMontant,P20,0))","v":"/ / /"},{"$f":"IF(ISERR(P20),\"/ / /\",OFFSET(SIMPL_DeclarationSalaires_Permanents_Entete_SalarieNbrePersonnesACharge,P20,0))","v":"/ / /"}]
[]
[null,null,"Totaux Page",null,null,null,{"$f":"SUM(G8,G10,G12,G14,G16,G18,G20)","v":0},{"$f":"SUM(H8,H10,H12,H14,H16,H18,H20)","v":0},{"$f":"SUM(I8,I10,I12,I14,I16,I18,I20)","v":0},"-",{"$f":"SUM(K8,K10,K12,K14,K16,K18,K20)","v":0},{"$f":"SUM(L8,L10,L12,L14,L16,L18,L20)","v":0},null,{"$f":"SUM(N8,N10,N12,N14,N16,N18,N20)","v":0},"-"]
[null,null,null,null,null,null,{"$f":"SUM(G9,G11,G13,G15,G17,G19,G21)","v":0},{"$f":"SUM(H9,H11,H13,H15,H17,H19,H21)","v":0},null,{"$f":"SUM(J9,J11,J13,J15,J17,J19,J21)","v":0},{"$f":"SUM(K9,K11,K13,K15,K17,K19,K21)","v":0},"-","-",{"$f":"SUM(N9,N11,N13,N15,N17,N19,N21)","v":0},"-"]
[]
[null,null,"Report Pages Précédentes",null,null,null,{"$f":"IF($P$4>1,INDIRECT(ADDRESS(29,COLUMN(),1,TRUE,\"P_Print (\"&($P$4-1)&\")\")),0)","v":0},{"$f":"IF($P$4>1,INDIRECT(ADDRESS(29,COLUMN(),1,TRUE,\"P_Print (\"&($P$4-1)&\")\")),0)","v":0},{"$f":"IF($P$4>1,INDIRECT(ADDRESS(29,COLUMN(),1,TRUE,\"P_Print (\"&($P$4-1)&\")\")),0)","v":0},"-",{"$f":"IF($P$4>1,INDIRECT(ADDRESS(29,COLUMN(),1,TRUE,\"P_Print (\"&($P$4-1)&\")\")),0)","v":0},{"$f":"IF($P$4>1,INDIRECT(ADDRESS(29,COLUMN(),1,TRUE,\"P_Print (\"&($P$4-1)&\")\")),0)","v":0},null,{"$f":"IF($P$4>1,INDIRECT(ADDRESS(29,COLUMN(),1,TRUE,\"P_Print (\"&($P$4-1)&\")\")),0)","v":0},"-"]
[null,null,null,null,null,null,{"$f":"IF($P$4>1,INDIRECT(ADDRESS(30,COLUMN(),1,TRUE,\"P_Print (\"&($P$4-1)&\")\")),0)","v":0},{"$f":"IF($P$4>1,INDIRECT(ADDRESS(30,COLUMN(),1,TRUE,\"P_Print (\"&($P$4-1)&\")\")),0)","v":0},null,{"$f":"IF($P$4>1,INDIRECT(ADDRESS(30,COLUMN(),1,TRUE,\"P_Print (\"&($P$4-1)&\")\")),0)","v":0},{"$f":"IF($P$4>1,INDIRECT(ADDRESS(30,COLUMN(),1,TRUE,\"P_Print (\"&($P$4-1)&\")\")),0)","v":0},"-","-",{"$f":"IF($P$4>1,INDIRECT(ADDRESS(30,COLUMN(),1,TRUE,\"P_Print (\"&($P$4-1)&\")\")),0)","v":0},"-"]
[]
[{"$f":"PagePrincipale!$B$1","v":"xEdiS 7.0.0.1"},null,"Cumul",null,null,null,{"$f":"SUM(G23,G26)","v":0},{"$f":"SUM(H23,H26)","v":0},{"$f":"SUM(I23,I26)","v":0},"-",{"$f":"SUM(K23,K26)","v":0},{"$f":"SUM(L23,L26)","v":0},null,{"$f":"SUM(N23,N26)","v":0},"-"]
["www.xedis.ma",null,null,null,null,null,{"$f":"SUM(G24,G27)","v":0},{"$f":"SUM(H24,H27)","v":0},null,{"$f":"SUM(J24,J27)","v":0},{"$f":"SUM(K24,K27)","v":0},"-","-",{"$f":"SUM(N24,N27)","v":0},"-"]
[]
["(*)  C : Célibataire;  M : Marié (e);  D : Divorcé (e);  V : Veuf (ve).   ;  (**) : Date de l’autorisation de construire ;    (***) : Date du permis d’habiter. "]
["(1) Y compris les éléments exonérés à l’exception des indemnités exonérées relatives aux frais engagés dans l’exercice de la fonction ou de l’emploi."]
["(3) Qu’elles soient exonérées ou non."]
["(5) = [(1) + (2) + (3)] – (4)  (6) = [(5) - (2)] × Taux des frais professionnels        ou      (6) = (5) × Taux  d’abattement de 40%   pour les sportifs professionnels visés à l’article 60-III du CGI."]
["(8) Montant des retenues opérées au titre de la pension de retraite, de la CNSS et des organismes de prévoyance sociale."]
["(9)  Montant des échéances prélevées au titre des intérêts ou principal et intérêts de prêts contractés, ou au titre de la rémunération ou du coût d’acquisition et de la rémunération convenue d’avance dans  le cadre d’un contrat "]
["\"Mourabaha\", pour l’acquisition ou la construction de logement destiné à l’habitation principale. (Article 28-II et 59 -V du C.G.I)."]
["(10) =  (5) -[ (6)  + (7) + (8) + (9) ]      ou     (10) =  (5) -(6)  en ce qui concerne les sportifs professionnels visés à l’article 60-III du CGI  pour lesquels l’abattement forfaitaire de 40%  n’est cumulable avec aucune autre déduction.     "]

{"sheet":"O_Print (1)","index":2,"n_rows":23,"n_cols":8,"rows_kept":23,"cut":false,"hidden":true,"merged":[[0,0,0,6],[1,0,1,6]]}
["ETAT CONCERNANT LES REMUNERATIONS ET INDEMNITES OCCASIONNELLES"]
[{"$f":"\"ANNEE : \"&YEAR(PagePrincipale!F23)","v":"ANNEE : 2017"}]
[]
["Identifiant Fiscal de l'employeur n° :",null,"Nom et Prénom(s) ou Raison Sociale :",null,null,"Feuille n° : ",{"$f":"(SIMPL_DeclarationSalaires_Permanents_NbreFeuilles+H4)&\"/\"&SIMPL_DeclarationSalaires_NbreFeuilles","v":"2/7"},{"$f":"LEFT(MID(WorkSheetName(H4),FIND(\"(\",WorkSheetName(H4))+1,1000),FIND(\")\",MID(WorkSheetName(H4),FIND(\"(\",WorkSheetName(H4))+1,1000))-1)+0","v":1}]
[]
["Nom et Prénom(s)","N° C.I.N. ou Carte de Séjour","N° d’Identification Fiscale","Adresse","Profession","Montant Brut des Sommes Payées","Montant de l'IR Prélevé"]
[{"$f":"IF(ISERR(H7),\"/ / /\",OFFSET(SIMPL_DeclarationSalaires_Occasionnels_Entete_Nom,H7,0)&\" \"&OFFSET(SIMPL_DeclarationSalaires_Occasionnels_Entete_Prenom,H7,0))","v":"/ / /"},{"$f":"IF(ISERR(H7),\"/ / /\",IF(OFFSET(SIMPL_DeclarationSalaires_Occasionnels_Entete_NumCIN,H7,0)<>\"\",CONCATENATE(OFFSET(SIMPL_DeclarationSalaires_Occasionnels_Entete_NumCIN,H7,0)),CONCATENATE(OFFSET(SIMPL_DeclarationSalaires_Occasionnels_Entete_NumCDS,H7,0))))","v":"/ / /"},{"$f":"IF(ISERR(H7),\"/ / /\",CONCATENATE(OFFSET(SIMPL_DeclarationSalaires_Occasionnels_Entete_NumIF,H7,0)))","v":"/ / /"},{"$f":"IF(ISERR(H7),\"/ / /\",CONCATENATE(OFFSET(SIMPL_DeclarationSalaires_Occasionnels_Entete_Adresse,H7,0)))","v":"/ / /"},{"$f":"IF(ISERR(H7),\"/ / /\",CONCATENATE(OFFSET(SIMPL_DeclarationSalaires_Occasionnels_Entete_Profession,H7,0)))","v":"/ / /"},{"$f":"IF(ISERR(H7),\"/ / /\",OFFSET(SIMPL_DeclarationSalaires_Occasionnels_Entete_Brut,H7,0))","v":"/ / /"},{"$f":"IF(ISERR(H7),\"/ / /\",OFFSET(SIMPL_DeclarationSalaires_Occasionnels_Entete_IRMontant,H7,0))","v":"/ / /"},{"$f":"IF(10*($H$4-1)+1<=SIMPL_DeclarationSalaires_Occasionnels_NbreLignes,10*($H$4-1)+1,0/0)","v":{"$error":"#DIV/0!"}}]
["/ / /","/ / /","/ / /","/ / /","/ / /","/ / /","/ / /",{"$f":"IF(10*($H$4-1)+2<=SIMPL_DeclarationSalaires_Occasionnels_NbreLignes,10*($H$4-1)+2,0/0)","v":{"$error":"#DIV/0!"}}]
["/ / /","/ / /","/ / /","/ / /","/ / /","/ / /","/ / /",{"$f":"IF(10*($H$4-1)+3<=SIMPL_DeclarationSalaires_Occasionnels_NbreLignes,10*($H$4-1)+3,0/0)","v":{"$error":"#DIV/0!"}}]
["/ / /","/ / /","/ / /","/ / /","/ / /","/ / /","/ / /",{"$f":"IF(10*($H$4-1)+4<=SIMPL_DeclarationSalaires_Occasionnels_NbreLignes,10*($H$4-1)+4,0/0)","v":{"$error":"#DIV/0!"}}]
["/ / /","/ / /","/ / /","/ / /","/ / /","/ / /","/ / /",{"$f":"IF(10*($H$4-1)+5<=SIMPL_DeclarationSalaires_Occasionnels_NbreLignes,10*($H$4-1)+5,0/0)","v":{"$error":"#DIV/0!"}}]
["/ / /","/ / /","/ / /","/ / /","/ / /","/ / /","/ / /",{"$f":"IF(10*($H$4-1)+6<=SIMPL_DeclarationSalaires_Occasionnels_NbreLignes,10*($H$4-1)+6,0/0)","v":{"$error":"#DIV/0!"}}]
["/ / /","/ / /","/ / /","/ / /","/ / /","/ / /","/ / /",{"$f":"IF(10*($H$4-1)+7<=SIMPL_DeclarationSalaires_Occasionnels_NbreLignes,10*($H$4-1)+7,0/0)","v":{"$error":"#DIV/0!"}}]
["/ / /","/ / /","/ / /","/ / /","/ / /","/ / /","/ / /",{"$f":"IF(10*($H$4-1)+8<=SIMPL_DeclarationSalaires_Occasionnels_NbreLignes,10*($H$4-1)+8,0/0)","v":{"$error":"#DIV/0!"}}]
["/ / /","/ / /","/ / /","/ / /","/ / /","/ / /","/ / /",{"$f":"IF(10*($H$4-1)+9<=SIMPL_DeclarationSalaires_Occasionnels_NbreLignes,10*($H$4-1)+9,0/0)","v":{"$error":"#DIV/0!"}}]
["/ / /","/ / /","/ / /","/ / /","/ / /","/ / /","/ / /",{"$f":"IF(10*($H$4-1)+10<=SIMPL_DeclarationSalaires_Occasionnels_NbreLignes,10*($H$4-1)+10,0/0)","v":{"$error":"#DIV/0!"}}]
[]
[null,null,null,null,"Totaux Page",{"$f":"SUM(F7:F16)","v":0},{"$f":"SUM(G7:G16)","v":0}]
[]
[null,null,null,null,"Report Pages Précédentes",{"$f":"IF($H$4>1,INDIRECT(ADDRESS(24,COLUMN(),1,TRUE,\"O_Print (\"&($H$4-1)&\")\")),0)","v":0},{"$f":"IF($H$4>1,INDIRECT(ADDRESS(24,COLUMN(),1,TRUE,\"O_Print (\"&($H$4-1)&\")\")),0)","v":0}]
[]
[{"$f":"PagePrincipale!$B$1","v":"xEdiS 7.0.0.1"},null,null,null,"Cumul",{"$f":"SUM(F18,F20)","v":0},{"$f":"SUM(G18,G20)","v":0}]
["www.xedis.ma"]

{"sheet":"S_Print (1)","index":3,"n_rows":37,"n_cols":9,"rows_kept":37,"cut":false,"hidden":true,"merged":[[7,2,8,2],[7,3,8,3],[7,5,8,5],[7,8,8,8],[7,7,8,7],[7,4,8,4],[7,6,8,6],[11,8,12,8],[11,4,12,4],[11,6,12,6],[11,7,12,7],[9,2,10,2],[9,3,10,3],[9,5,10,5],[9,8,10,8],[9,4,10,4],[9,6,10,6],[9,7,10,7],[11,2,12,2],[11,3,12,3],[11,5,12,5],[15,8,16,8],[15,4,16,4],[15,6,16,6],[15,7,16,7],[13,2,14,2],[13,3,14,3],[13,5,14,5],[13,8,14,8],[13,4,14,4],[13,6,14,6],[13,7,14,7],[15,2,16,2],[15,3,16,3],[15,5,16,5],[19,8,20,8],[19,4,20,4],[19,6,20,6],[19,7,20,7],[17,2,18,2],[17,3,18,3],[17,5,18,5],[17,8,18,8],[17,4,18,4],[17,6,18,6],[17,7,18,7],[19,2,20,2],[19,3,20,3],[19,5,20,5],[25,5,26,5],[21,2,22,2],[21,3,22,3],[21,4,22,4],[21,5,22,5],[0,0,0,7],[1,0,1,7],[5,4,6,4],[5,6,6,6],[5,7,6,7],[5,2,6,2],[5,3,6,3],[5,5,6,5],[25,8,26,8],[21,6,22,6],[21,7,22,7],[21,8,22,8],[23,2,24,2],[23,3,24,3],[23,4,24,4],[23,5,24,5],[23,6,24,6],[23,7,24,7],[23,8,24,8],[25,2,26,2],[25,3,26,3],[25,4,26,4],[25,6,26,6],[25,7,26,7]]}
["LISTE DES STAGIAIRES (1)"]
[{"$f":"\"ANNEE : \"&YEAR(PagePrincipale!F23)","v":"ANNEE : 2017"}]
[]
["Identifiant Fiscal de l'employeur n° :","Nom et Prénom(s) ou Raison Sociale :",null,null,null,null,"Feuille n° : ",{"$f":"(SIMPL_DeclarationSalaires_Permanents_NbreFeuilles+SIMPL_DeclarationSalaires_Occasionnels_NbreFeuilles+I4)&\"/\"&SIMPL_DeclarationSalaires_NbreFeuilles","v":"3/7"},{"$f":"LEFT(MID(WorkSheetName(I4),FIND(\"(\",WorkSheetName(I4))+1,1000),FIND(\")\",MID(WorkSheetName(I4),FIND(\"(\",WorkSheetName(I4))+1,1000))-1)+0","v":1}]
[]
["Nom et Prénom(s)","N° C.I.N. ou Carte d'étranger","N° d'identification fiscale","Montant brut des traitements, salaires et émoluments","Montant brut des indemnités payées en argent ou en nature","Montant des retenues opérées (2)","Montant du revenu net imposable","Période en jours"]
["Adresse Personnelle","N° CNSS"]
[{"$f":"IF(ISERR(I8),\"/ / /\",OFFSET(SIMPL_DeclarationSalaires_Stagiaires_Entete_Nom,I8,0)&\" \"&OFFSET(SIMPL_DeclarationSalaires_Stagiaires_Entete_Prenom,I8,0))","v":"/ / /"},{"$f":"CONCATENATE(IF(ISERR(I8),\"/ / /\",IF(OFFSET(SIMPL_DeclarationSalaires_Stagiaires_Entete_NumCIN,I8,0)<>\"\",OFFSET(SIMPL_DeclarationSalaires_Stagiaires_Entete_NumCIN,I8,0),OFFSET(SIMPL_DeclarationSalaires_Stagiaires_Entete_NumCDS,I8,0))))","v":"/ / /"},{"$f":"CONCATENATE(IF(ISERR(I8),\"/ / /\",OFFSET(SIMPL_DeclarationSalaires_Stagiaires_Entete_NumIF,I8,0)))","v":"/ / /"},{"$f":"IF(ISERR(I8),\"/ / /\",OFFSET(SIMPL_DeclarationSalaires_Stagiaires_Entete_Brut,I8,0))","v":"/ / /"},{"$f":"IF(ISERR(I8),\"/ / /\",OFFSET(SIMPL_DeclarationSalaires_Stagiaires_Entete_Indemnites,I8,0))","v":"/ / /"},{"$f":"IF(ISERR(I8),\"/ / /\",OFFSET(SIMPL_DeclarationSalaires_Stagiaires_Entete_RetenuesSociales,I8,0))","v":"/ / /"},{"$f":"IF(ISERR(I8),\"/ / /\",OFFSET(SIMPL_DeclarationSalaires_Stagiaires_Entete_NetImposable,I8,0))","v":"/ / /"},{"$f":"IF(ISERR(I8),\"/ / /\",OFFSET(SIMPL_DeclarationSalaires_Stagiaires_Entete_NbreJours,I8,0))","v":"/ / /"},{"$f":"IF(10*($I$4-1)+1<=SIMPL_DeclarationSalaires_Stagiaires_NbreLignes,10*($I$4-1)+1,0/0)","v":{"$error":"#DIV/0!"}}]
[{"$f":"CONCATENATE(IF(ISERR(I8),\"/ / /\",OFFSET(SIMPL_DeclarationSalaires_Stagiaires_Entete_Adresse,I8,0)))","v":"/ / /"},{"$f":"CONCATENATE(IF(ISERR(I8),\"/ / /\",OFFSET(SIMPL_DeclarationSalaires_Stagiaires_Entete_NumCNSS,I8,0)))","v":"/ / /"}]
[{"$f":"IF(ISERR(I10),\"/ / /\",OFFSET(SIMPL_DeclarationSalaires_Stagiaires_Entete_Nom,I10,0)&\" \"&OFFSET(SIMPL_DeclarationSalaires_Stagiaires_Entete_Prenom,I10,0))","v":"/ / /"},{"$f":"CONCATENATE(IF(ISERR(I10),\"/ / /\",IF(OFFSET(SIMPL_DeclarationSalaires_Stagiaires_Entete_NumCIN,I10,0)<>\"\",OFFSET(SIMPL_DeclarationSalaires_Stagiaires_Entete_NumCIN,I10,0),OFFSET(SIMPL_DeclarationSalaires_Stagiaires_Entete_NumCDS,I10,0))))","v":"/ / /"},{"$f":"CONCATENATE(IF(ISERR(I10),\"/ / /\",OFFSET(SIMPL_DeclarationSalaires_Stagiaires_Entete_NumIF,I10,0)))","v":"/ / /"},{"$f":"IF(ISERR(I10),\"/ / /\",OFFSET(SIMPL_DeclarationSalaires_Stagiaires_Entete_Brut,I10,0))","v":"/ / /"},{"$f":"IF(ISERR(I10),\"/ / /\",OFFSET(SIMPL_DeclarationSalaires_Stagiaires_Entete_Indemnites,I10,0))","v":"/ / /"},{"$f":"IF(ISERR(I10),\"/ / /\",OFFSET(SIMPL_DeclarationSalaires_Stagiaires_Entete_RetenuesSociales,I10,0))","v":"/ / /"},{"$f":"IF(ISERR(I10),\"/ / /\",OFFSET(SIMPL_DeclarationSalaires_Stagiaires_Entete_NetImposable,I10,0))","v":"/ / /"},{"$f":"IF(ISERR(I10),\"/ / /\",OFFSET(SIMPL_DeclarationSalaires_Stagiaires_Entete_NbreJours,I10,0))","v":"/ / /"},{"$f":"IF(10*($I$4-1)+2<=SIMPL_DeclarationSalaires_Stagiaires_NbreLignes,10*($I$4-1)+2,0/0)","v":{"$error":"#DIV/0!"}}]
[{"$f":"CONCATENATE(IF(ISERR(I10),\"/ / /\",OFFSET(SIMPL_DeclarationSalaires_Stagiaires_Entete_Adresse,I10,0)))","v":"/ / /"},{"$f":"CONCATENATE(IF(ISERR(I10),\"/ / /\",OFFSET(SIMPL_DeclarationSalaires_Stagiaires_Entete_NumCNSS,I10,0)))","v":"/ / /"}]
[{"$f":"IF(ISERR(I12),\"/ / /\",OFFSET(SIMPL_DeclarationSalaires_Stagiaires_Entete_Nom,I12,0)&\" \"&OFFSET(SIMPL_DeclarationSalaires_Stagiaires_Entete_Prenom,I12,0))","v":"/ / /"},{"$f":"CONCATENATE(IF(ISERR(I12),\"/ / /\",IF(OFFSET(SIMPL_DeclarationSalaires_Stagiaires_Entete_NumCIN,I12,0)<>\"\",OFFSET(SIMPL_DeclarationSalaires_Stagiaires_Entete_NumCIN,I12,0),OFFSET(SIMPL_DeclarationSalaires_Stagiaires_Entete_NumCDS,I12,0))))","v":"/ / /"},{"$f":"CONCATENATE(IF(ISERR(I12),\"/ / /\",OFFSET(SIMPL_DeclarationSalaires_Stagiaires_Entete_NumIF,I12,0)))","v":"/ / /"},{"$f":"IF(ISERR(I12),\"/ / /\",OFFSET(SIMPL_DeclarationSalaires_Stagiaires_Entete_Brut,I12,0))","v":"/ / /"},{"$f":"IF(ISERR(I12),\"/ / /\",OFFSET(SIMPL_DeclarationSalaires_Stagiaires_Entete_Indemnites,I12,0))","v":"/ / /"},{"$f":"IF(ISERR(I12),\"/ / /\",OFFSET(SIMPL_DeclarationSalaires_Stagiaires_Entete_RetenuesSociales,I12,0))","v":"/ / /"},{"$f":"IF(ISERR(I12),\"/ / /\",OFFSET(SIMPL_DeclarationSalaires_Stagiaires_Entete_NetImposable,I12,0))","v":"/ / /"},{"$f":"IF(ISERR(I12),\"/ / /\",OFFSET(SIMPL_DeclarationSalaires_Stagiaires_Entete_NbreJours,I12,0))","v":"/ / /"},{"$f":"IF(10*($I$4-1)+3<=SIMPL_DeclarationSalaires_Stagiaires_NbreLignes,10*($I$4-1)+3,0/0)","v":{"$error":"#DIV/0!"}}]
[{"$f":"CONCATENATE(IF(ISERR(I12),\"/ / /\",OFFSET(SIMPL_DeclarationSalaires_Stagiaires_Entete_Adresse,I12,0)))","v":"/ / /"},{"$f":"CONCATENATE(IF(ISERR(I12),\"/ / /\",OFFSET(SIMPL_DeclarationSalaires_Stagiaires_Entete_NumCNSS,I12,0)))","v":"/ / /"}]
[{"$f":"IF(ISERR(I14),\"/ / /\",OFFSET(SIMPL_DeclarationSalaires_Stagiaires_Entete_Nom,I14,0)&\" \"&OFFSET(SIMPL_DeclarationSalaires_Stagiaires_Entete_Prenom,I14,0))","v":"/ / /"},{"$f":"CONCATENATE(IF(ISERR(I14),\"/ / /\",IF(OFFSET(SIMPL_DeclarationSalaires_Stagiaires_Entete_NumCIN,I14,0)<>\"\",OFFSET(SIMPL_DeclarationSalaires_Stagiaires_Entete_NumCIN,I14,0),OFFSET(SIMPL_DeclarationSalaires_Stagiaires_Entete_NumCDS,I14,0))))","v":"/ / /"},{"$f":"CONCATENATE(IF(ISERR(I14),\"/ / /\",OFFSET(SIMPL_DeclarationSalaires_Stagiaires_Entete_NumIF,I14,0)))","v":"/ / /"},{"$f":"IF(ISERR(I14),\"/ / /\",OFFSET(SIMPL_DeclarationSalaires_Stagiaires_Entete_Brut,I14,0))","v":"/ / /"},{"$f":"IF(ISERR(I14),\"/ / /\",OFFSET(SIMPL_DeclarationSalaires_Stagiaires_Entete_Indemnites,I14,0))","v":"/ / /"},{"$f":"IF(ISERR(I14),\"/ / /\",OFFSET(SIMPL_DeclarationSalaires_Stagiaires_Entete_RetenuesSociales,I14,0))","v":"/ / /"},{"$f":"IF(ISERR(I14),\"/ / /\",OFFSET(SIMPL_DeclarationSalaires_Stagiaires_Entete_NetImposable,I14,0))","v":"/ / /"},{"$f":"IF(ISERR(I14),\"/ / /\",OFFSET(SIMPL_DeclarationSalaires_Stagiaires_Entete_NbreJours,I14,0))","v":"/ / /"},{"$f":"IF(10*($I$4-1)+4<=SIMPL_DeclarationSalaires_Stagiaires_NbreLignes,10*($I$4-1)+4,0/0)","v":{"$error":"#DIV/0!"}}]
[{"$f":"CONCATENATE(IF(ISERR(I14),\"/ / /\",OFFSET(SIMPL_DeclarationSalaires_Stagiaires_Entete_Adresse,I14,0)))","v":"/ / /"},{"$f":"CONCATENATE(IF(ISERR(I14),\"/ / /\",OFFSET(SIMPL_DeclarationSalaires_Stagiaires_Entete_NumCNSS,I14,0)))","v":"/ / /"}]
[{"$f":"IF(ISERR(I16),\"/ / /\",OFFSET(SIMPL_DeclarationSalaires_Stagiaires_Entete_Nom,I16,0)&\" \"&OFFSET(SIMPL_DeclarationSalaires_Stagiaires_Entete_Prenom,I16,0))","v":"/ / /"},{"$f":"CONCATENATE(IF(ISERR(I16),\"/ / /\",IF(OFFSET(SIMPL_DeclarationSalaires_Stagiaires_Entete_NumCIN,I16,0)<>\"\",OFFSET(SIMPL_DeclarationSalaires_Stagiaires_Entete_NumCIN,I16,0),OFFSET(SIMPL_DeclarationSalaires_Stagiaires_Entete_NumCDS,I16,0))))","v":"/ / /"},{"$f":"CONCATENATE(IF(ISERR(I16),\"/ / /\",OFFSET(SIMPL_DeclarationSalaires_Stagiaires_Entete_NumIF,I16,0)))","v":"/ / /"},{"$f":"IF(ISERR(I16),\"/ / /\",OFFSET(SIMPL_DeclarationSalaires_Stagiaires_Entete_Brut,I16,0))","v":"/ / /"},{"$f":"IF(ISERR(I16),\"/ / /\",OFFSET(SIMPL_DeclarationSalaires_Stagiaires_Entete_Indemnites,I16,0))","v":"/ / /"},{"$f":"IF(ISERR(I16),\"/ / /\",OFFSET(SIMPL_DeclarationSalaires_Stagiaires_Entete_RetenuesSociales,I16,0))","v":"/ / /"},{"$f":"IF(ISERR(I16),\"/ / /\",OFFSET(SIMPL_DeclarationSalaires_Stagiaires_Entete_NetImposable,I16,0))","v":"/ / /"},{"$f":"IF(ISERR(I16),\"/ / /\",OFFSET(SIMPL_DeclarationSalaires_Stagiaires_Entete_NbreJours,I16,0))","v":"/ / /"},{"$f":"IF(10*($I$4-1)+5<=SIMPL_DeclarationSalaires_Stagiaires_NbreLignes,10*($I$4-1)+5,0/0)","v":{"$error":"#DIV/0!"}}]
[{"$f":"CONCATENATE(IF(ISERR(I16),\"/ / /\",OFFSET(SIMPL_DeclarationSalaires_Stagiaires_Entete_Adresse,I16,0)))","v":"/ / /"},{"$f":"CONCATENATE(IF(ISERR(I16),\"/ / /\",OFFSET(SIMPL_DeclarationSalaires_Stagiaires_Entete_NumCNSS,I16,0)))","v":"/ / /"}]
[{"$f":"IF(ISERR(I18),\"/ / /\",OFFSET(SIMPL_DeclarationSalaires_Stagiaires_Entete_Nom,I18,0)&\" \"&OFFSET(SIMPL_DeclarationSalaires_Stagiaires_Entete_Prenom,I18,0))","v":"/ / /"},{"$f":"CONCATENATE(IF(ISERR(I18),\"/ / /\",IF(OFFSET(SIMPL_DeclarationSalaires_Stagiaires_Entete_NumCIN,I18,0)<>\"\",OFFSET(SIMPL_DeclarationSalaires_Stagiaires_Entete_NumCIN,I18,0),OFFSET(SIMPL_DeclarationSalaires_Stagiaires_Entete_NumCDS,I18,0))))","v":"/ / /"},{"$f":"CONCATENATE(IF(ISERR(I18),\"/ / /\",OFFSET(SIMPL_DeclarationSalaires_Stagiaires_Entete_NumIF,I18,0)))","v":"/ / /"},{"$f":"IF(ISERR(I18),\"/ / /\",OFFSET(SIMPL_DeclarationSalaires_Stagiaires_Entete_Brut,I18,0))","v":"/ / /"},{"$f":"IF(ISERR(I18),\"/ / /\",OFFSET(SIMPL_DeclarationSalaires_Stagiaires_Entete_Indemnites,I18,0))","v":"/ / /"},{"$f":"IF(ISERR(I18),\"/ / /\",OFFSET(SIMPL_DeclarationSalaires_Stagiaires_Entete_RetenuesSociales,I18,0))","v":"/ / /"},{"$f":"IF(ISERR(I18),\"/ / /\",OFFSET(SIMPL_DeclarationSalaires_Stagiaires_Entete_NetImposable,I18,0))","v":"/ / /"},{"$f":"IF(ISERR(I18),\"/ / /\",OFFSET(SIMPL_DeclarationSalaires_Stagiaires_Entete_NbreJours,I18,0))","v":"/ / /"},{"$f":"IF(10*($I$4-1)+6<=SIMPL_DeclarationSalaires_Stagiaires_NbreLignes,10*($I$4-1)+6,0/0)","v":{"$error":"#DIV/0!"}}]
[{"$f":"CONCATENATE(IF(ISERR(I18),\"/ / /\",OFFSET(SIMPL_DeclarationSalaires_Stagiaires_Entete_Adresse,I18,0)))","v":"/ / /"},{"$f":"CONCATENATE(IF(ISERR(I18),\"/ / /\",OFFSET(SIMPL_DeclarationSalaires_Stagiaires_Entete_NumCNSS,I18,0)))","v":"/ / /"}]
[{"$f":"IF(ISERR(I20),\"/ / /\",OFFSET(SIMPL_DeclarationSalaires_Stagiaires_Entete_Nom,I20,0)&\" \"&OFFSET(SIMPL_DeclarationSalaires_Stagiaires_Entete_Prenom,I20,0))","v":"/ / /"},{"$f":"CONCATENATE(IF(ISERR(I20),\"/ / /\",IF(OFFSET(SIMPL_DeclarationSalaires_Stagiaires_Entete_NumCIN,I20,0)<>\"\",OFFSET(SIMPL_DeclarationSalaires_Stagiaires_Entete_NumCIN,I20,0),OFFSET(SIMPL_DeclarationSalaires_Stagiaires_Entete_NumCDS,I20,0))))","v":"/ / /"},{"$f":"CONCATENATE(IF(ISERR(I20),\"/ / /\",OFFSET(SIMPL_DeclarationSalaires_Stagiaires_Entete_NumIF,I20,0)))","v":"/ / /"},{"$f":"IF(ISERR(I20),\"/ / /\",OFFSET(SIMPL_DeclarationSalaires_Stagiaires_Entete_Brut,I20,0))","v":"/ / /"},{"$f":"IF(ISERR(I20),\"/ / /\",OFFSET(SIMPL_DeclarationSalaires_Stagiaires_Entete_Indemnites,I20,0))","v":"/ / /"},{"$f":"IF(ISERR(I20),\"/ / /\",OFFSET(SIMPL_DeclarationSalaires_Stagiaires_Entete_RetenuesSociales,I20,0))","v":"/ / /"},{"$f":"IF(ISERR(I20),\"/ / /\",OFFSET(SIMPL_DeclarationSalaires_Stagiaires_Entete_NetImposable,I20,0))","v":"/ / /"},{"$f":"IF(ISERR(I20),\"/ / /\",OFFSET(SIMPL_DeclarationSalaires_Stagiaires_Entete_NbreJours,I20,0))","v":"/ / /"},{"$f":"IF(10*($I$4-1)+7<=SIMPL_DeclarationSalaires_Stagiaires_NbreLignes,10*($I$4-1)+7,0/0)","v":{"$error":"#DIV/0!"}}]
[{"$f":"CONCATENATE(IF(ISERR(I20),\"/ / /\",OFFSET(SIMPL_DeclarationSalaires_Stagiaires_Entete_Adresse,I20,0)))","v":"/ / /"},{"$f":"CONCATENATE(IF(ISERR(I20),\"/ / /\",OFFSET(SIMPL_DeclarationSalaires_Stagiaires_Entete_NumCNSS,I20,0)))","v":"/ / /"}]
[{"$f":"IF(ISERR(I22),\"/ / /\",OFFSET(SIMPL_DeclarationSalaires_Stagiaires_Entete_Nom,I22,0)&\" \"&OFFSET(SIMPL_DeclarationSalaires_Stagiaires_Entete_Prenom,I22,0))","v":"/ / /"},{"$f":"CONCATENATE(IF(ISERR(I22),\"/ / /\",IF(OFFSET(SIMPL_DeclarationSalaires_Stagiaires_Entete_NumCIN,I22,0)<>\"\",OFFSET(SIMPL_DeclarationSalaires_Stagiaires_Entete_NumCIN,I22,0),OFFSET(SIMPL_DeclarationSalaires_Stagiaires_Entete_NumCDS,I22,0))))","v":"/ / /"},{"$f":"CONCATENATE(IF(ISERR(I22),\"/ / /\",OFFSET(SIMPL_DeclarationSalaires_Stagiaires_Entete_NumIF,I22,0)))","v":"/ / /"},{"$f":"IF(ISERR(I22),\"/ / /\",OFFSET(SIMPL_DeclarationSalaires_Stagiaires_Entete_Brut,I22,0))","v":"/ / /"},{"$f":"IF(ISERR(I22),\"/ / /\",OFFSET(SIMPL_DeclarationSalaires_Stagiaires_Entete_Indemnites,I22,0))","v":"/ / /"},{"$f":"IF(ISERR(I22),\"/ / /\",OFFSET(SIMPL_DeclarationSalaires_Stagiaires_Entete_RetenuesSociales,I22,0))","v":"/ / /"},{"$f":"IF(ISERR(I22),\"/ / /\",OFFSET(SIMPL_DeclarationSalaires_Stagiaires_Entete_NetImposable,I22,0))","v":"/ / /"},{"$f":"IF(ISERR(I22),\"/ / /\",OFFSET(SIMPL_DeclarationSalaires_Stagiaires_Entete_NbreJours,I22,0))","v":"/ / /"},{"$f":"IF(10*($I$4-1)+8<=SIMPL_DeclarationSalaires_Stagiaires_NbreLignes,10*($I$4-1)+8,0/0)","v":{"$error":"#DIV/0!"}}]
[{"$f":"CONCATENATE(IF(ISERR(I22),\"/ / /\",OFFSET(SIMPL_DeclarationSalaires_Stagiaires_Entete_Adresse,I22,0)))","v":"/ / /"},{"$f":"CONCATENATE(IF(ISERR(I22),\"/ / /\",OFFSET(SIMPL_DeclarationSalaires_Stagiaires_Entete_NumCNSS,I22,0)))","v":"/ / /"}]
[{"$f":"IF(ISERR(I24),\"/ / /\",OFFSET(SIMPL_DeclarationSalaires_Stagiaires_Entete_Nom,I24,0)&\" \"&OFFSET(SIMPL_DeclarationSalaires_Stagiaires_Entete_Prenom,I24,0))","v":"/ / /"},{"$f":"CONCATENATE(IF(ISERR(I24),\"/ / /\",IF(OFFSET(SIMPL_DeclarationSalaires_Stagiaires_Entete_NumCIN,I24,0)<>\"\",OFFSET(SIMPL_DeclarationSalaires_Stagiaires_Entete_NumCIN,I24,0),OFFSET(SIMPL_DeclarationSalaires_Stagiaires_Entete_NumCDS,I24,0))))","v":"/ / /"},{"$f":"CONCATENATE(IF(ISERR(I24),\"/ / /\",OFFSET(SIMPL_DeclarationSalaires_Stagiaires_Entete_NumIF,I24,0)))","v":"/ / /"},{"$f":"IF(ISERR(I24),\"/ / /\",OFFSET(SIMPL_DeclarationSalaires_Stagiaires_Entete_Brut,I24,0))","v":"/ / /"},{"$f":"IF(ISERR(I24),\"/ / /\",OFFSET(SIMPL_DeclarationSalaires_Stagiaires_Entete_Indemnites,I24,0))","v":"/ / /"},{"$f":"IF(ISERR(I24),\"/ / /\",OFFSET(SIMPL_DeclarationSalaires_Stagiaires_Entete_RetenuesSociales,I24,0))","v":"/ / /"},{"$f":"IF(ISERR(I24),\"/ / /\",OFFSET(SIMPL_DeclarationSalaires_Stagiaires_Entete_NetImposable,I24,0))","v":"/ / /"},{"$f":"IF(ISERR(I24),\"/ / /\",OFFSET(SIMPL_DeclarationSalaires_Stagiaires_Entete_NbreJours,I24,0))","v":"/ / /"},{"$f":"IF(10*($I$4-1)+9<=SIMPL_DeclarationSalaires_Stagiaires_NbreLignes,10*($I$4-1)+9,0/0)","v":{"$error":"#DIV/0!"}}]
[{"$f":"CONCATENATE(IF(ISERR(I24),\"/ / /\",OFFSET(SIMPL_DeclarationSalaires_Stagiaires_Entete_Adresse,I24,0)))","v":"/ / /"},{"$f":"CONCATENATE(IF(ISERR(I24),\"/ / /\",OFFSET(SIMPL_DeclarationSalaires_Stagiaires_Entete_NumCNSS,I24,0)))","v":"/ / /"}]
[{"$f":"IF(ISERR(I26),\"/ / /\",OFFSET(SIMPL_DeclarationSalaires_Stagiaires_Entete_Nom,I26,0)&\" \"&OFFSET(SIMPL_DeclarationSalaires_Stagiaires_Entete_Prenom,I26,0))","v":"/ / /"},{"$f":"CONCATENATE(IF(ISERR(I26),\"/ / /\",IF(OFFSET(SIMPL_DeclarationSalaires_Stagiaires_Entete_NumCIN,I26,0)<>\"\",OFFSET(SIMPL_DeclarationSalaires_Stagiaires_Entete_NumCIN,I26,0),OFFSET(SIMPL_DeclarationSalaires_Stagiaires_Entete_NumCDS,I26,0))))","v":"/ / /"},{"$f":"CONCATENATE(IF(ISERR(I26),\"/ / /\",OFFSET(SIMPL_DeclarationSalaires_Stagiaires_Entete_NumIF,I26,0)))","v":"/ / /"},{"$f":"IF(ISERR(I26),\"/ / /\",OFFSET(SIMPL_DeclarationSalaires_Stagiaires_Entete_Brut,I26,0))","v":"/ / /"},{"$f":"IF(ISERR(I26),\"/ / /\",OFFSET(SIMPL_DeclarationSalaires_Stagiaires_Entete_Indemnites,I26,0))","v":"/ / /"},{"$f":"IF(ISERR(I26),\"/ / /\",OFFSET(SIMPL_DeclarationSalaires_Stagiaires_Entete_RetenuesSociales,I26,0))","v":"/ / /"},{"$f":"IF(ISERR(I26),\"/ / /\",OFFSET(SIMPL_DeclarationSalaires_Stagiaires_Entete_NetImposable,I26,0))","v":"/ / /"},{"$f":"IF(ISERR(I26),\"/ / /\",OFFSET(SIMPL_DeclarationSalaires_Stagiaires_Entete_NbreJours,I26,0))","v":"/ / /"},{"$f":"IF(10*($I$4-1)+10<=SIMPL_DeclarationSalaires_Stagiaires_NbreLignes,10*($I$4-1)+10,0/0)","v":{"$error":"#DIV/0!"}}]
[{"$f":"CONCATENATE(IF(ISERR(I26),\"/ / /\",OFFSET(SIMPL_DeclarationSalaires_Stagiaires_Entete_Adresse,I26,0)))","v":"/ / /"},{"$f":"CONCATENATE(IF(ISERR(I26),\"/ / /\",OFFSET(SIMPL_DeclarationSalaires_Stagiaires_Entete_NumCNSS,I26,0)))","v":"/ / /"}]
[]
["(1) - Stagiaires bénéficiant de l’exonération prévue au 16 de  l’article 57 du C.G.I",null,"Totaux Page",{"$f":"SUM(D8:D27)","v":0},{"$f":"SUM(E8:E27)","v":0},0,0,"-"]
[]
["       -  Joindre : - Copie du contrat de stage ;",null,"Report Pages Précédentes",{"$f":"IF($I$4>1,INDIRECT(ADDRESS(33,COLUMN(),1,TRUE,\"S_Print (\"&($I$4-1)&\")\")),0)","v":0},{"$f":"IF($I$4>1,INDIRECT(ADDRESS(33,COLUMN(),1,TRUE,\"S_Print (\"&($I$4-1)&\")\")),0)","v":0},0,0,"-"]
[]
["                          - Une attestation d’inscription à l’ANAPEC par stagiaire dûment légalisée.",null,"Cumul",{"$f":"SUM(D29,D31)","v":0},{"$f":"SUM(E29,E31)","v":0},{"$f":"SUM(F29,F31)","v":0},{"$f":"SUM(G29,G31)","v":0},"-"]
[]
["(2) Montant des retenues opérées au titre de la pension de retraite, de la CNSS et des organismes de prévoyance sociale"]
[{"$f":"PagePrincipale!$B$1","v":"xEdiS 7.0.0.1"}]
["www.xedis.ma"]

{"sheet":"K_Print (1)","index":4,"n_rows":32,"n_cols":12,"rows_kept":32,"cut":false,"hidden":true,"merged":[[27,0,27,10],[28,0,28,10],[29,0,29,10],[7,8,8,8],[23,11,24,11],[25,2,26,2],[25,3,26,3],[25,5,26,5],[25,10,26,10],[25,11,26,11],[23,2,24,2],[23,3,24,3],[23,5,24,5],[23,10,24,10],[19,11,20,11],[21,2,22,2],[21,11,22,11],[19,2,20,2],[19,3,20,3],[19,5,20,5],[19,10,20,10],[19,8,20,8],[21,8,22,8],[15,11,16,11],[17,2,18,2],[17,3,18,3],[17,5,18,5],[17,10,18,10],[17,11,18,11],[15,2,16,2],[15,3,16,3],[15,5,16,5],[15,10,16,10],[15,8,16,8],[17,8,18,8],[11,11,12,11],[13,2,14,2],[13,3,14,3],[13,5,14,5],[13,10,14,10],[13,11,14,11],[11,2,12,2],[11,3,12,3],[11,5,12,5],[11,10,12,10],[11,8,12,8],[13,8,14,8],[7,11,8,11],[9,2,10,2],[9,3,10,3],[9,5,10,5],[9,10,10,10],[9,11,10,11],[7,2,8,2],[7,3,8,3],[7,5,8,5],[7,10,8,10],[9,8,10,8],[23,8,24,8],[25,8,26,8],[0,0,0,10],[1,0,1,10],[5,2,6,2],[5,3,6,3],[5,5,6,5],[5,10,6,10],[5,8,6,8],[21,3,22,3],[21,5,22,5],[21,10,22,10]]}
["ETAT CONCERNANT LES BENEFICIAIRES D’OPTIONS DE SOUSCRIPTION OU D’ACHAT D’ACTIONS\nOU DE DISTRIBUTION D’ACTIONS GRATUITES (ARTICLE 79-III DU CGI)"]
[{"$f":"\"ANNEE : \"&YEAR(PagePrincipale!F23)","v":"ANNEE : 2017"}]
[]
["Identifiant Fiscal de l'employeur n° :","Nom et Prénom(s) ou Raison Sociale :",null,null,null,null,null,null,null,"Feuille n° : ",{"$f":"(SIMPL_DeclarationSalaires_Permanents_NbreFeuilles+SIMPL_DeclarationSalaires_Occasionnels_NbreFeuilles+SIMPL_DeclarationSalaires_Stagiaires_NbreFeuilles+L4)&\"/\"&SIMPL_DeclarationSalaires_NbreFeuilles","v":"4/7"},{"$f":"LEFT(MID(WorkSheetName(L4),FIND(\"(\",WorkSheetName(L4))+1,1000),FIND(\")\",MID(WorkSheetName(L4),FIND(\"(\",WorkSheetName(L4))+1,1000))-1)+0","v":1}]
[]
["Nom et Prénom(s)","N° C.I.N. ou Carte d'étranger","N° d'identification fiscale","Organismes  distributeurs (sociétés résidentes ou non résidentes)","Nombre d'actions acquises (a)","Prix d’acquisition (payé par le salarié ou dirigeant)","Date d’attribution","Date de la levée d’option ","Montant de l’abondement\n(1)","Date de cession\n(2)","Complément de salaire\n(1) et (2)"]
["Adresse Personnelle","N° CNSS",null,null," et/ou distribuées gratuitement (b)",null,"Valeur de l'action à la date d’attribution","Valeur de l'action à la levée d’option",null,"Nombre d'actions cédées"]
[{"$f":"IF(ISERR(L8),\"/ / /\",OFFSET(SIMPL_DeclarationSalaires_StockOptions_Entete_Nom,L8,0)&\" \"&OFFSET(SIMPL_DeclarationSalaires_StockOptions_Entete_Prenom,L8,0))","v":"/ / /"},{"$f":"IF(ISERR(L8),\"/ / /\",IF(OFFSET(SIMPL_DeclarationSalaires_StockOptions_Entete_NumCIN,L8,0)<>\"\",CONCATENATE(OFFSET(SIMPL_DeclarationSalaires_StockOptions_Entete_NumCIN,L8,0)),CONCATENATE(OFFSET(SIMPL_DeclarationSalaires_StockOptions_Entete_NumCDS,L8,0))))","v":"/ / /"},{"$f":"IF(ISERR(L8),\"/ / /\",CONCATENATE(OFFSET(SIMPL_DeclarationSalaires_StockOptions_Entete_NumIF,L8,0)))","v":"/ / /"},{"$f":"IF(ISERR(L8),\"/ / /\",CONCATENATE(OFFSET(SIMPL_DeclarationSalaires_StockOptions_Entete_Organisme,L8,0)))","v":"/ / /"},{"$f":"IF(ISERR(L8),\"/ / /\",IF(OFFSET(SIMPL_DeclarationSalaires_StockOptions_Entete_NbreActionsAcquises,L8,0)=\"\",\"\",OFFSET(SIMPL_DeclarationSalaires_StockOptions_Entete_NbreActionsAcquises,L8,0)))","v":"/ / /"},{"$f":"IF(ISERR(L8),\"/ / /\",IF(OFFSET(SIMPL_DeclarationSalaires_StockOptions_Entete_PrixAcquisition,L8,0)=\"\",\"\",OFFSET(SIMPL_DeclarationSalaires_StockOptions_Entete_PrixAcquisition,L8,0)))","v":"/ / /"},{"$f":"IF(ISERR(L8),\"/ / /\",IF(OFFSET(SIMPL_DeclarationSalaires_StockOptions_Entete_DateAttribution,L8,0)=\"\",\"\",OFFSET(SIMPL_DeclarationSalaires_StockOptions_Entete_DateAttribution,L8,0)))","v":"/ / /"},{"$f":"IF(ISERR(L8),\"/ / /\",IF(OFFSET(SIMPL_DeclarationSalaires_StockOptions_Entete_DateLeveeOption,L8,0)=\"\",\"\",OFFSET(SIMPL_DeclarationSalaires_StockOptions_Entete_DateLeveeOption,L8,0)))","v":"/ / /"},{"$f":"IF(ISERR(L8),\"/ / /\",IF(OFFSET(SIMPL_DeclarationSalaires_StockOptions_Entete_MontantAbondement,L8,0)=\"\",\"\",OFFSET(SIMPL_DeclarationSalaires_StockOptions_Entete_MontantAbondement,L8,0)))","v":"/ / /"},{"$f":"IF(ISERR(L8),\"/ / /\",IF(OFFSET(SIMPL_DeclarationSalaires_StockOptions_Entete_DateCession,L8,0)=\"\",\"\",OFFSET(SIMPL_DeclarationSalaires_StockOptions_Entete_DateCession,L8,0)))","v":"/ / /"},{"$f":"IF(ISERR(L8),\"/ / /\",IF(OFFSET(SIMPL_DeclarationSalaires_StockOptions_Entete_ComplementSalaire,L8,0)=\"\",\"\",OFFSET(SIMPL_DeclarationSalaires_StockOptions_Entete_ComplementSalaire,L8,0)))","v":"/ / /"},{"$f":"IF(10*($L$4-1)+1<=SIMPL_DeclarationSalaires_StockOptions_NbreLignes,10*($L$4-1)+1,0/0)","v":{"$error":"#DIV/0!"}}]
[{"$f":"IF(ISERR(L8),\"/ / /\",CONCATENATE(OFFSET(SIMPL_DeclarationSalaires_StockOptions_Entete_Adresse,L8,0)))","v":"/ / /"},{"$f":"IF(ISERR(L8),\"/ / /\",CONCATENATE(OFFSET(SIMPL_DeclarationSalaires_StockOptions_Entete_NumCNSS,L8,0)))","v":"/ / /"},null,null,{"$f":"IF(ISERR(L8),\"/ / /\",IF(OFFSET(SIMPL_DeclarationSalaires_StockOptions_Entete_NbreActionsGratuites,L8,0)=\"\",\"\",OFFSET(SIMPL_DeclarationSalaires_StockOptions_Entete_NbreActionsGratuites,L8,0)))","v":"/ / /"},null,{"$f":"IF(ISERR(L8),\"/ / /\",IF(OFFSET(SIMPL_DeclarationSalaires_StockOptions_Entete_ValeurAttribution,L8,0)=\"\",\"\",OFFSET(SIMPL_DeclarationSalaires_StockOptions_Entete_ValeurAttribution,L8,0)))","v":"/ / /"},{"$f":"IF(ISERR(L8),\"/ / /\",IF(OFFSET(SIMPL_DeclarationSalaires_StockOptions_Entete_ValeurLeveeOption,L8,0)=\"\",\"\",OFFSET(SIMPL_DeclarationSalaires_StockOptions_Entete_ValeurLeveeOption,L8,0)))","v":"/ / /"},null,{"$f":"IF(ISERR(L8),\"/ / /\",IF(OFFSET(SIMPL_DeclarationSalaires_StockOptions_Entete_NbreActionsCedees,L8,0)=\"\",\"\",OFFSET(SIMPL_DeclarationSalaires_StockOptions_Entete_NbreActionsCedees,L8,0)))","v":"/ / /"}]
[{"$f":"IF(ISERR(L10),\"/ / /\",OFFSET(SIMPL_DeclarationSalaires_StockOptions_Entete_Nom,L10,0)&\" \"&OFFSET(SIMPL_DeclarationSalaires_StockOptions_Entete_Prenom,L10,0))","v":"/ / /"},{"$f":"IF(ISERR(L10),\"/ / /\",IF(OFFSET(SIMPL_DeclarationSalaires_StockOptions_Entete_NumCIN,L10,0)<>\"\",CONCATENATE(OFFSET(SIMPL_DeclarationSalaires_StockOptions_Entete_NumCIN,L10,0)),CONCATENATE(OFFSET(SIMPL_DeclarationSalaires_StockOptions_Entete_NumCDS,L10,0))))","v":"/ / /"},{"$f":"IF(ISERR(L10),\"/ / /\",CONCATENATE(OFFSET(SIMPL_DeclarationSalaires_StockOptions_Entete_NumIF,L10,0)))","v":"/ / /"},{"$f":"IF(ISERR(L10),\"/ / /\",CONCATENATE(OFFSET(SIMPL_DeclarationSalaires_StockOptions_Entete_Organisme,L10,0)))","v":"/ / /"},{"$f":"IF(ISERR(L10),\"/ / /\",IF(OFFSET(SIMPL_DeclarationSalaires_StockOptions_Entete_NbreActionsAcquises,L10,0)=\"\",\"\",OFFSET(SIMPL_DeclarationSalaires_StockOptions_Entete_NbreActionsAcquises,L10,0)))","v":"/ / /"},{"$f":"IF(ISERR(L10),\"/ / /\",IF(OFFSET(SIMPL_DeclarationSalaires_StockOptions_Entete_PrixAcquisition,L10,0)=\"\",\"\",OFFSET(SIMPL_DeclarationSalaires_StockOptions_Entete_PrixAcquisition,L10,0)))","v":"/ / /"},{"$f":"IF(ISERR(L10),\"/ / /\",IF(OFFSET(SIMPL_DeclarationSalaires_StockOptions_Entete_DateAttribution,L10,0)=\"\",\"\",OFFSET(SIMPL_DeclarationSalaires_StockOptions_Entete_DateAttribution,L10,0)))","v":"/ / /"},{"$f":"IF(ISERR(L10),\"/ / /\",IF(OFFSET(SIMPL_DeclarationSalaires_StockOptions_Entete_DateLeveeOption,L10,0)=\"\",\"\",OFFSET(SIMPL_DeclarationSalaires_StockOptions_Entete_DateLeveeOption,L10,0)))","v":"/ / /"},{"$f":"IF(ISERR(L10),\"/ / /\",IF(OFFSET(SIMPL_DeclarationSalaires_StockOptions_Entete_MontantAbondement,L10,0)=\"\",\"\",OFFSET(SIMPL_DeclarationSalaires_StockOptions_Entete_MontantAbondement,L10,0)))","v":"/ / /"},{"$f":"IF(ISERR(L10),\"/ / /\",IF(OFFSET(SIMPL_DeclarationSalaires_StockOptions_Entete_DateCession,L10,0)=\"\",\"\",OFFSET(SIMPL_DeclarationSalaires_StockOptions_Entete_DateCession,L10,0)))","v":"/ / /"},{"$f":"IF(ISERR(L10),\"/ / /\",IF(OFFSET(SIMPL_DeclarationSalaires_StockOptions_Entete_ComplementSalaire,L10,0)=\"\",\"\",OFFSET(SIMPL_DeclarationSalaires_StockOptions_Entete_ComplementSalaire,L10,0)))","v":"/ / /"},{"$f":"IF(10*($L$4-1)+2<=SIMPL_DeclarationSalaires_StockOptions_NbreLignes,10*($L$4-1)+2,0/0)","v":{"$error":"#DIV/0!"}}]
[{"$f":"IF(ISERR(L10),\"/ / /\",CONCATENATE(OFFSET(SIMPL_DeclarationSalaires_StockOptions_Entete_Adresse,L10,0)))","v":"/ / /"},{"$f":"IF(ISERR(L10),\"/ / /\",CONCATENATE(OFFSET(SIMPL_DeclarationSalaires_StockOptions_Entete_NumCNSS,L10,0)))","v":"/ / /"},null,null,{"$f":"IF(ISERR(L10),\"/ / /\",IF(OFFSET(SIMPL_DeclarationSalaires_StockOptions_Entete_NbreActionsGratuites,L10,0)=\"\",\"\",OFFSET(SIMPL_DeclarationSalaires_StockOptions_Entete_NbreActionsGratuites,L10,0)))","v":"/ / /"},null,{"$f":"IF(ISERR(L10),\"/ / /\",IF(OFFSET(SIMPL_DeclarationSalaires_StockOptions_Entete_ValeurAttribution,L10,0)=\"\",\"\",OFFSET(SIMPL_DeclarationSalaires_StockOptions_Entete_ValeurAttribution,L10,0)))","v":"/ / /"},{"$f":"IF(ISERR(L10),\"/ / /\",IF(OFFSET(SIMPL_DeclarationSalaires_StockOptions_Entete_ValeurLeveeOption,L10,0)=\"\",\"\",OFFSET(SIMPL_DeclarationSalaires_StockOptions_Entete_ValeurLeveeOption,L10,0)))","v":"/ / /"},null,{"$f":"IF(ISERR(L10),\"/ / /\",IF(OFFSET(SIMPL_DeclarationSalaires_StockOptions_Entete_NbreActionsCedees,L10,0)=\"\",\"\",OFFSET(SIMPL_DeclarationSalaires_StockOptions_Entete_NbreActionsCedees,L10,0)))","v":"/ / /"}]
[{"$f":"IF(ISERR(L12),\"/ / /\",OFFSET(SIMPL_DeclarationSalaires_StockOptions_Entete_Nom,L12,0)&\" \"&OFFSET(SIMPL_DeclarationSalaires_StockOptions_Entete_Prenom,L12,0))","v":"/ / /"},{"$f":"IF(ISERR(L12),\"/ / /\",IF(OFFSET(SIMPL_DeclarationSalaires_StockOptions_Entete_NumCIN,L12,0)<>\"\",CONCATENATE(OFFSET(SIMPL_DeclarationSalaires_StockOptions_Entete_NumCIN,L12,0)),CONCATENATE(OFFSET(SIMPL_DeclarationSalaires_StockOptions_Entete_NumCDS,L12,0))))","v":"/ / /"},{"$f":"IF(ISERR(L12),\"/ / /\",CONCATENATE(OFFSET(SIMPL_DeclarationSalaires_StockOptions_Entete_NumIF,L12,0)))","v":"/ / /"},{"$f":"IF(ISERR(L12),\"/ / /\",CONCATENATE(OFFSET(SIMPL_DeclarationSalaires_StockOptions_Entete_Organisme,L12,0)))","v":"/ / /"},{"$f":"IF(ISERR(L12),\"/ / /\",IF(OFFSET(SIMPL_DeclarationSalaires_StockOptions_Entete_NbreActionsAcquises,L12,0)=\"\",\"\",OFFSET(SIMPL_DeclarationSalaires_StockOptions_Entete_NbreActionsAcquises,L12,0)))","v":"/ / /"},{"$f":"IF(ISERR(L12),\"/ / /\",IF(OFFSET(SIMPL_DeclarationSalaires_StockOptions_Entete_PrixAcquisition,L12,0)=\"\",\"\",OFFSET(SIMPL_DeclarationSalaires_StockOptions_Entete_PrixAcquisition,L12,0)))","v":"/ / /"},{"$f":"IF(ISERR(L12),\"/ / /\",IF(OFFSET(SIMPL_DeclarationSalaires_StockOptions_Entete_DateAttribution,L12,0)=\"\",\"\",OFFSET(SIMPL_DeclarationSalaires_StockOptions_Entete_DateAttribution,L12,0)))","v":"/ / /"},{"$f":"IF(ISERR(L12),\"/ / /\",IF(OFFSET(SIMPL_DeclarationSalaires_StockOptions_Entete_DateLeveeOption,L12,0)=\"\",\"\",OFFSET(SIMPL_DeclarationSalaires_StockOptions_Entete_DateLeveeOption,L12,0)))","v":"/ / /"},{"$f":"IF(ISERR(L12),\"/ / /\",IF(OFFSET(SIMPL_DeclarationSalaires_StockOptions_Entete_MontantAbondement,L12,0)=\"\",\"\",OFFSET(SIMPL_DeclarationSalaires_StockOptions_Entete_MontantAbondement,L12,0)))","v":"/ / /"},{"$f":"IF(ISERR(L12),\"/ / /\",IF(OFFSET(SIMPL_DeclarationSalaires_StockOptions_Entete_DateCession,L12,0)=\"\",\"\",OFFSET(SIMPL_DeclarationSalaires_StockOptions_Entete_DateCession,L12,0)))","v":"/ / /"},{"$f":"IF(ISERR(L12),\"/ / /\",IF(OFFSET(SIMPL_DeclarationSalaires_StockOptions_Entete_ComplementSalaire,L12,0)=\"\",\"\",OFFSET(SIMPL_DeclarationSalaires_StockOptions_Entete_ComplementSalaire,L12,0)))","v":"/ / /"},{"$f":"IF(10*($L$4-1)+3<=SIMPL_DeclarationSalaires_StockOptions_NbreLignes,10*($L$4-1)+3,0/0)","v":{"$error":"#DIV/0!"}}]
[{"$f":"IF(ISERR(L12),\"/ / /\",CONCATENATE(OFFSET(SIMPL_DeclarationSalaires_StockOptions_Entete_Adresse,L12,0)))","v":"/ / /"},{"$f":"IF(ISERR(L12),\"/ / /\",CONCATENATE(OFFSET(SIMPL_DeclarationSalaires_StockOptions_Entete_NumCNSS,L12,0)))","v":"/ / /"},null,null,{"$f":"IF(ISERR(L12),\"/ / /\",IF(OFFSET(SIMPL_DeclarationSalaires_StockOptions_Entete_NbreActionsGratuites,L12,0)=\"\",\"\",OFFSET(SIMPL_DeclarationSalaires_StockOptions_Entete_NbreActionsGratuites,L12,0)))","v":"/ / /"},null,{"$f":"IF(ISERR(L12),\"/ / /\",IF(OFFSET(SIMPL_DeclarationSalaires_StockOptions_Entete_ValeurAttribution,L12,0)=\"\",\"\",OFFSET(SIMPL_DeclarationSalaires_StockOptions_Entete_ValeurAttribution,L12,0)))","v":"/ / /"},{"$f":"IF(ISERR(L12),\"/ / /\",IF(OFFSET(SIMPL_DeclarationSalaires_StockOptions_Entete_ValeurLeveeOption,L12,0)=\"\",\"\",OFFSET(SIMPL_DeclarationSalaires_StockOptions_Entete_ValeurLeveeOption,L12,0)))","v":"/ / /"},null,{"$f":"IF(ISERR(L12),\"/ / /\",IF(OFFSET(SIMPL_DeclarationSalaires_StockOptions_Entete_NbreActionsCedees,L12,0)=\"\",\"\",OFFSET(SIMPL_DeclarationSalaires_StockOptions_Entete_NbreActionsCedees,L12,0)))","v":"/ / /"}]
[{"$f":"IF(ISERR(L14),\"/ / /\",OFFSET(SIMPL_DeclarationSalaires_StockOptions_Entete_Nom,L14,0)&\" \"&OFFSET(SIMPL_DeclarationSalaires_StockOptions_Entete_Prenom,L14,0))","v":"/ / /"},{"$f":"IF(ISERR(L14),\"/ / /\",IF(OFFSET(SIMPL_DeclarationSalaires_StockOptions_Entete_NumCIN,L14,0)<>\"\",CONCATENATE(OFFSET(SIMPL_DeclarationSalaires_StockOptions_Entete_NumCIN,L14,0)),CONCATENATE(OFFSET(SIMPL_DeclarationSalaires_StockOptions_Entete_NumCDS,L14,0))))","v":"/ / /"},{"$f":"IF(ISERR(L14),\"/ / /\",CONCATENATE(OFFSET(SIMPL_DeclarationSalaires_StockOptions_Entete_NumIF,L14,0)))","v":"/ / /"},{"$f":"IF(ISERR(L14),\"/ / /\",CONCATENATE(OFFSET(SIMPL_DeclarationSalaires_StockOptions_Entete_Organisme,L14,0)))","v":"/ / /"},{"$f":"IF(ISERR(L14),\"/ / /\",IF(OFFSET(SIMPL_DeclarationSalaires_StockOptions_Entete_NbreActionsAcquises,L14,0)=\"\",\"\",OFFSET(SIMPL_DeclarationSalaires_StockOptions_Entete_NbreActionsAcquises,L14,0)))","v":"/ / /"},{"$f":"IF(ISERR(L14),\"/ / /\",IF(OFFSET(SIMPL_DeclarationSalaires_StockOptions_Entete_PrixAcquisition,L14,0)=\"\",\"\",OFFSET(SIMPL_DeclarationSalaires_StockOptions_Entete_PrixAcquisition,L14,0)))","v":"/ / /"},{"$f":"IF(ISERR(L14),\"/ / /\",IF(OFFSET(SIMPL_DeclarationSalaires_StockOptions_Entete_DateAttribution,L14,0)=\"\",\"\",OFFSET(SIMPL_DeclarationSalaires_StockOptions_Entete_DateAttribution,L14,0)))","v":"/ / /"},{"$f":"IF(ISERR(L14),\"/ / /\",IF(OFFSET(SIMPL_DeclarationSalaires_StockOptions_Entete_DateLeveeOption,L14,0)=\"\",\"\",OFFSET(SIMPL_DeclarationSalaires_StockOptions_Entete_DateLeveeOption,L14,0)))","v":"/ / /"},{"$f":"IF(ISERR(L14),\"/ / /\",IF(OFFSET(SIMPL_DeclarationSalaires_StockOptions_Entete_MontantAbondement,L14,0)=\"\",\"\",OFFSET(SIMPL_DeclarationSalaires_StockOptions_Entete_MontantAbondement,L14,0)))","v":"/ / /"},{"$f":"IF(ISERR(L14),\"/ / /\",IF(OFFSET(SIMPL_DeclarationSalaires_StockOptions_Entete_DateCession,L14,0)=\"\",\"\",OFFSET(SIMPL_DeclarationSalaires_StockOptions_Entete_DateCession,L14,0)))","v":"/ / /"},{"$f":"IF(ISERR(L14),\"/ / /\",IF(OFFSET(SIMPL_DeclarationSalaires_StockOptions_Entete_ComplementSalaire,L14,0)=\"\",\"\",OFFSET(SIMPL_DeclarationSalaires_StockOptions_Entete_ComplementSalaire,L14,0)))","v":"/ / /"},{"$f":"IF(10*($L$4-1)+4<=SIMPL_DeclarationSalaires_StockOptions_NbreLignes,10*($L$4-1)+4,0/0)","v":{"$error":"#DIV/0!"}}]
[{"$f":"IF(ISERR(L14),\"/ / /\",CONCATENATE(OFFSET(SIMPL_DeclarationSalaires_StockOptions_Entete_Adresse,L14,0)))","v":"/ / /"},{"$f":"IF(ISERR(L14),\"/ / /\",CONCATENATE(OFFSET(SIMPL_DeclarationSalaires_StockOptions_Entete_NumCNSS,L14,0)))","v":"/ / /"},null,null,{"$f":"IF(ISERR(L14),\"/ / /\",IF(OFFSET(SIMPL_DeclarationSalaires_StockOptions_Entete_NbreActionsGratuites,L14,0)=\"\",\"\",OFFSET(SIMPL_DeclarationSalaires_StockOptions_Entete_NbreActionsGratuites,L14,0)))","v":"/ / /"},null,{"$f":"IF(ISERR(L14),\"/ / /\",IF(OFFSET(SIMPL_DeclarationSalaires_StockOptions_Entete_ValeurAttribution,L14,0)=\"\",\"\",OFFSET(SIMPL_DeclarationSalaires_StockOptions_Entete_ValeurAttribution,L14,0)))","v":"/ / /"},{"$f":"IF(ISERR(L14),\"/ / /\",IF(OFFSET(SIMPL_DeclarationSalaires_StockOptions_Entete_ValeurLeveeOption,L14,0)=\"\",\"\",OFFSET(SIMPL_DeclarationSalaires_StockOptions_Entete_ValeurLeveeOption,L14,0)))","v":"/ / /"},null,{"$f":"IF(ISERR(L14),\"/ / /\",IF(OFFSET(SIMPL_DeclarationSalaires_StockOptions_Entete_NbreActionsCedees,L14,0)=\"\",\"\",OFFSET(SIMPL_DeclarationSalaires_StockOptions_Entete_NbreActionsCedees,L14,0)))","v":"/ / /"}]
[{"$f":"IF(ISERR(L16),\"/ / /\",OFFSET(SIMPL_DeclarationSalaires_StockOptions_Entete_Nom,L16,0)&\" \"&OFFSET(SIMPL_DeclarationSalaires_StockOptions_Entete_Prenom,L16,0))","v":"/ / /"},{"$f":"IF(ISERR(L16),\"/ / /\",IF(OFFSET(SIMPL_DeclarationSalaires_StockOptions_Entete_NumCIN,L16,0)<>\"\",CONCATENATE(OFFSET(SIMPL_DeclarationSalaires_StockOptions_Entete_NumCIN,L16,0)),CONCATENATE(OFFSET(SIMPL_DeclarationSalaires_StockOptions_Entete_NumCDS,L16,0))))","v":"/ / /"},{"$f":"IF(ISERR(L16),\"/ / /\",CONCATENATE(OFFSET(SIMPL_DeclarationSalaires_StockOptions_Entete_NumIF,L16,0)))","v":"/ / /"},{"$f":"IF(ISERR(L16),\"/ / /\",CONCATENATE(OFFSET(SIMPL_DeclarationSalaires_StockOptions_Entete_Organisme,L16,0)))","v":"/ / /"},{"$f":"IF(ISERR(L16),\"/ / /\",IF(OFFSET(SIMPL_DeclarationSalaires_StockOptions_Entete_NbreActionsAcquises,L16,0)=\"\",\"\",OFFSET(SIMPL_DeclarationSalaires_StockOptions_Entete_NbreActionsAcquises,L16,0)))","v":"/ / /"},{"$f":"IF(ISERR(L16),\"/ / /\",IF(OFFSET(SIMPL_DeclarationSalaires_StockOptions_Entete_PrixAcquisition,L16,0)=\"\",\"\",OFFSET(SIMPL_DeclarationSalaires_StockOptions_Entete_PrixAcquisition,L16,0)))","v":"/ / /"},{"$f":"IF(ISERR(L16),\"/ / /\",IF(OFFSET(SIMPL_DeclarationSalaires_StockOptions_Entete_DateAttribution,L16,0)=\"\",\"\",OFFSET(SIMPL_DeclarationSalaires_StockOptions_Entete_DateAttribution,L16,0)))","v":"/ / /"},{"$f":"IF(ISERR(L16),\"/ / /\",IF(OFFSET(SIMPL_DeclarationSalaires_StockOptions_Entete_DateLeveeOption,L16,0)=\"\",\"\",OFFSET(SIMPL_DeclarationSalaires_StockOptions_Entete_DateLeveeOption,L16,0)))","v":"/ / /"},{"$f":"IF(ISERR(L16),\"/ / /\",IF(OFFSET(SIMPL_DeclarationSalaires_StockOptions_Entete_MontantAbondement,L16,0)=\"\",\"\",OFFSET(SIMPL_DeclarationSalaires_StockOptions_Entete_MontantAbondement,L16,0)))","v":"/ / /"},{"$f":"IF(ISERR(L16),\"/ / /\",IF(OFFSET(SIMPL_DeclarationSalaires_StockOptions_Entete_DateCession,L16,0)=\"\",\"\",OFFSET(SIMPL_DeclarationSalaires_StockOptions_Entete_DateCession,L16,0)))","v":"/ / /"},{"$f":"IF(ISERR(L16),\"/ / /\",IF(OFFSET(SIMPL_DeclarationSalaires_StockOptions_Entete_ComplementSalaire,L16,0)=\"\",\"\",OFFSET(SIMPL_DeclarationSalaires_StockOptions_Entete_ComplementSalaire,L16,0)))","v":"/ / /"},{"$f":"IF(10*($L$4-1)+5<=SIMPL_DeclarationSalaires_StockOptions_NbreLignes,10*($L$4-1)+5,0/0)","v":{"$error":"#DIV/0!"}}]
[{"$f":"IF(ISERR(L16),\"/ / /\",CONCATENATE(OFFSET(SIMPL_DeclarationSalaires_StockOptions_Entete_Adresse,L16,0)))","v":"/ / /"},{"$f":"IF(ISERR(L16),\"/ / /\",CONCATENATE(OFFSET(SIMPL_DeclarationSalaires_StockOptions_Entete_NumCNSS,L16,0)))","v":"/ / /"},null,null,{"$f":"IF(ISERR(L16),\"/ / /\",IF(OFFSET(SIMPL_DeclarationSalaires_StockOptions_Entete_NbreActionsGratuites,L16,0)=\"\",\"\",OFFSET(SIMPL_DeclarationSalaires_StockOptions_Entete_NbreActionsGratuites,L16,0)))","v":"/ / /"},null,{"$f":"IF(ISERR(L16),\"/ / /\",IF(OFFSET(SIMPL_DeclarationSalaires_StockOptions_Entete_ValeurAttribution,L16,0)=\"\",\"\",OFFSET(SIMPL_DeclarationSalaires_StockOptions_Entete_ValeurAttribution,L16,0)))","v":"/ / /"},{"$f":"IF(ISERR(L16),\"/ / /\",IF(OFFSET(SIMPL_DeclarationSalaires_StockOptions_Entete_ValeurLeveeOption,L16,0)=\"\",\"\",OFFSET(SIMPL_DeclarationSalaires_StockOptions_Entete_ValeurLeveeOption,L16,0)))","v":"/ / /"},null,{"$f":"IF(ISERR(L16),\"/ / /\",IF(OFFSET(SIMPL_DeclarationSalaires_StockOptions_Entete_NbreActionsCedees,L16,0)=\"\",\"\",OFFSET(SIMPL_DeclarationSalaires_StockOptions_Entete_NbreActionsCedees,L16,0)))","v":"/ / /"}]
[{"$f":"IF(ISERR(L18),\"/ / /\",OFFSET(SIMPL_DeclarationSalaires_StockOptions_Entete_Nom,L18,0)&\" \"&OFFSET(SIMPL_DeclarationSalaires_StockOptions_Entete_Prenom,L18,0))","v":"/ / /"},{"$f":"IF(ISERR(L18),\"/ / /\",IF(OFFSET(SIMPL_DeclarationSalaires_StockOptions_Entete_NumCIN,L18,0)<>\"\",CONCATENATE(OFFSET(SIMPL_DeclarationSalaires_StockOptions_Entete_NumCIN,L18,0)),CONCATENATE(OFFSET(SIMPL_DeclarationSalaires_StockOptions_Entete_NumCDS,L18,0))))","v":"/ / /"},{"$f":"IF(ISERR(L18),\"/ / /\",CONCATENATE(OFFSET(SIMPL_DeclarationSalaires_StockOptions_Entete_NumIF,L18,0)))","v":"/ / /"},{"$f":"IF(ISERR(L18),\"/ / /\",CONCATENATE(OFFSET(SIMPL_DeclarationSalaires_StockOptions_Entete_Organisme,L18,0)))","v":"/ / /"},{"$f":"IF(ISERR(L18),\"/ / /\",IF(OFFSET(SIMPL_DeclarationSalaires_StockOptions_Entete_NbreActionsAcquises,L18,0)=\"\",\"\",OFFSET(SIMPL_DeclarationSalaires_StockOptions_Entete_NbreActionsAcquises,L18,0)))","v":"/ / /"},{"$f":"IF(ISERR(L18),\"/ / /\",IF(OFFSET(SIMPL_DeclarationSalaires_StockOptions_Entete_PrixAcquisition,L18,0)=\"\",\"\",OFFSET(SIMPL_DeclarationSalaires_StockOptions_Entete_PrixAcquisition,L18,0)))","v":"/ / /"},{"$f":"IF(ISERR(L18),\"/ / /\",IF(OFFSET(SIMPL_DeclarationSalaires_StockOptions_Entete_DateAttribution,L18,0)=\"\",\"\",OFFSET(SIMPL_DeclarationSalaires_StockOptions_Entete_DateAttribution,L18,0)))","v":"/ / /"},{"$f":"IF(ISERR(L18),\"/ / /\",IF(OFFSET(SIMPL_DeclarationSalaires_StockOptions_Entete_DateLeveeOption,L18,0)=\"\",\"\",OFFSET(SIMPL_DeclarationSalaires_StockOptions_Entete_DateLeveeOption,L18,0)))","v":"/ / /"},{"$f":"IF(ISERR(L18),\"/ / /\",IF(OFFSET(SIMPL_DeclarationSalaires_StockOptions_Entete_MontantAbondement,L18,0)=\"\",\"\",OFFSET(SIMPL_DeclarationSalaires_StockOptions_Entete_MontantAbondement,L18,0)))","v":"/ / /"},{"$f":"IF(ISERR(L18),\"/ / /\",IF(OFFSET(SIMPL_DeclarationSalaires_StockOptions_Entete_DateCession,L18,0)=\"\",\"\",OFFSET(SIMPL_DeclarationSalaires_StockOptions_Entete_DateCession,L18,0)))","v":"/ / /"},{"$f":"IF(ISERR(L18),\"/ / /\",IF(OFFSET(SIMPL_DeclarationSalaires_StockOptions_Entete_ComplementSalaire,L18,0)=\"\",\"\",OFFSET(SIMPL_DeclarationSalaires_StockOptions_Entete_ComplementSalaire,L18,0)))","v":"/ / /"},{"$f":"IF(10*($L$4-1)+6<=SIMPL_DeclarationSalaires_StockOptions_NbreLignes,10*($L$4-1)+6,0/0)","v":{"$error":"#DIV/0!"}}]
[{"$f":"IF(ISERR(L18),\"/ / /\",CONCATENATE(OFFSET(SIMPL_DeclarationSalaires_StockOptions_Entete_Adresse,L18,0)))","v":"/ / /"},{"$f":"IF(ISERR(L18),\"/ / /\",CONCATENATE(OFFSET(SIMPL_DeclarationSalaires_StockOptions_Entete_NumCNSS,L18,0)))","v":"/ / /"},null,null,{"$f":"IF(ISERR(L18),\"/ / /\",IF(OFFSET(SIMPL_DeclarationSalaires_StockOptions_Entete_NbreActionsGratuites,L18,0)=\"\",\"\",OFFSET(SIMPL_DeclarationSalaires_StockOptions_Entete_NbreActionsGratuites,L18,0)))","v":"/ / /"},null,{"$f":"IF(ISERR(L18),\"/ / /\",IF(OFFSET(SIMPL_DeclarationSalaires_StockOptions_Entete_ValeurAttribution,L18,0)=\"\",\"\",OFFSET(SIMPL_DeclarationSalaires_StockOptions_Entete_ValeurAttribution,L18,0)))","v":"/ / /"},{"$f":"IF(ISERR(L18),\"/ / /\",IF(OFFSET(SIMPL_DeclarationSalaires_StockOptions_Entete_ValeurLeveeOption,L18,0)=\"\",\"\",OFFSET(SIMPL_DeclarationSalaires_StockOptions_Entete_ValeurLeveeOption,L18,0)))","v":"/ / /"},null,{"$f":"IF(ISERR(L18),\"/ / /\",IF(OFFSET(SIMPL_DeclarationSalaires_StockOptions_Entete_NbreActionsCedees,L18,0)=\"\",\"\",OFFSET(SIMPL_DeclarationSalaires_StockOptions_Entete_NbreActionsCedees,L18,0)))","v":"/ / /"}]
[{"$f":"IF(ISERR(L20),\"/ / /\",OFFSET(SIMPL_DeclarationSalaires_StockOptions_Entete_Nom,L20,0)&\" \"&OFFSET(SIMPL_DeclarationSalaires_StockOptions_Entete_Prenom,L20,0))","v":"/ / /"},{"$f":"IF(ISERR(L20),\"/ / /\",IF(OFFSET(SIMPL_DeclarationSalaires_StockOptions_Entete_NumCIN,L20,0)<>\"\",CONCATENATE(OFFSET(SIMPL_DeclarationSalaires_StockOptions_Entete_NumCIN,L20,0)),CONCATENATE(OFFSET(SIMPL_DeclarationSalaires_StockOptions_Entete_NumCDS,L20,0))))","v":"/ / /"},{"$f":"IF(ISERR(L20),\"/ / /\",CONCATENATE(OFFSET(SIMPL_DeclarationSalaires_StockOptions_Entete_NumIF,L20,0)))","v":"/ / /"},{"$f":"IF(ISERR(L20),\"/ / /\",CONCATENATE(OFFSET(SIMPL_DeclarationSalaires_StockOptions_Entete_Organisme,L20,0)))","v":"/ / /"},{"$f":"IF(ISERR(L20),\"/ / /\",IF(OFFSET(SIMPL_DeclarationSalaires_StockOptions_Entete_NbreActionsAcquises,L20,0)=\"\",\"\",OFFSET(SIMPL_DeclarationSalaires_StockOptions_Entete_NbreActionsAcquises,L20,0)))","v":"/ / /"},{"$f":"IF(ISERR(L20),\"/ / /\",IF(OFFSET(SIMPL_DeclarationSalaires_StockOptions_Entete_PrixAcquisition,L20,0)=\"\",\"\",OFFSET(SIMPL_DeclarationSalaires_StockOptions_Entete_PrixAcquisition,L20,0)))","v":"/ / /"},{"$f":"IF(ISERR(L20),\"/ / /\",IF(OFFSET(SIMPL_DeclarationSalaires_StockOptions_Entete_DateAttribution,L20,0)=\"\",\"\",OFFSET(SIMPL_DeclarationSalaires_StockOptions_Entete_DateAttribution,L20,0)))","v":"/ / /"},{"$f":"IF(ISERR(L20),\"/ / /\",IF(OFFSET(SIMPL_DeclarationSalaires_StockOptions_Entete_DateLeveeOption,L20,0)=\"\",\"\",OFFSET(SIMPL_DeclarationSalaires_StockOptions_Entete_DateLeveeOption,L20,0)))","v":"/ / /"},{"$f":"IF(ISERR(L20),\"/ / /\",IF(OFFSET(SIMPL_DeclarationSalaires_StockOptions_Entete_MontantAbondement,L20,0)=\"\",\"\",OFFSET(SIMPL_DeclarationSalaires_StockOptions_Entete_MontantAbondement,L20,0)))","v":"/ / /"},{"$f":"IF(ISERR(L20),\"/ / /\",IF(OFFSET(SIMPL_DeclarationSalaires_StockOptions_Entete_DateCession,L20,0)=\"\",\"\",OFFSET(SIMPL_DeclarationSalaires_StockOptions_Entete_DateCession,L20,0)))","v":"/ / /"},{"$f":"IF(ISERR(L20),\"/ / /\",IF(OFFSET(SIMPL_DeclarationSalaires_StockOptions_Entete_ComplementSalaire,L20,0)=\"\",\"\",OFFSET(SIMPL_DeclarationSalaires_StockOptions_Entete_ComplementSalaire,L20,0)))","v":"/ / /"},{"$f":"IF(10*($L$4-1)+7<=SIMPL_DeclarationSalaires_StockOptions_NbreLignes,10*($L$4-1)+7,0/0)","v":{"$error":"#DIV/0!"}}]
[{"$f":"IF(ISERR(L20),\"/ / /\",CONCATENATE(OFFSET(SIMPL_DeclarationSalaires_StockOptions_Entete_Adresse,L20,0)))","v":"/ / /"},{"$f":"IF(ISERR(L20),\"/ / /\",CONCATENATE(OFFSET(SIMPL_DeclarationSalaires_StockOptions_Entete_NumCNSS,L20,0)))","v":"/ / /"},null,null,{"$f":"IF(ISERR(L20),\"/ / /\",IF(OFFSET(SIMPL_DeclarationSalaires_StockOptions_Entete_NbreActionsGratuites,L20,0)=\"\",\"\",OFFSET(SIMPL_DeclarationSalaires_StockOptions_Entete_NbreActionsGratuites,L20,0)))","v":"/ / /"},null,{"$f":"IF(ISERR(L20),\"/ / /\",IF(OFFSET(SIMPL_DeclarationSalaires_StockOptions_Entete_ValeurAttribution,L20,0)=\"\",\"\",OFFSET(SIMPL_DeclarationSalaires_StockOptions_Entete_ValeurAttribution,L20,0)))","v":"/ / /"},{"$f":"IF(ISERR(L20),\"/ / /\",IF(OFFSET(SIMPL_DeclarationSalaires_StockOptions_Entete_ValeurLeveeOption,L20,0)=\"\",\"\",OFFSET(SIMPL_DeclarationSalaires_StockOptions_Entete_ValeurLeveeOption,L20,0)))","v":"/ / /"},null,{"$f":"IF(ISERR(L20),\"/ / /\",IF(OFFSET(SIMPL_DeclarationSalaires_StockOptions_Entete_NbreActionsCedees,L20,0)=\"\",\"\",OFFSET(SIMPL_DeclarationSalaires_StockOptions_Entete_NbreActionsCedees,L20,0)))","v":"/ / /"}]
[{"$f":"IF(ISERR(L22),\"/ / /\",OFFSET(SIMPL_DeclarationSalaires_StockOptions_Entete_Nom,L22,0)&\" \"&OFFSET(SIMPL_DeclarationSalaires_StockOptions_Entete_Prenom,L22,0))","v":"/ / /"},{"$f":"IF(ISERR(L22),\"/ / /\",IF(OFFSET(SIMPL_DeclarationSalaires_StockOptions_Entete_NumCIN,L22,0)<>\"\",CONCATENATE(OFFSET(SIMPL_DeclarationSalaires_StockOptions_Entete_NumCIN,L22,0)),CONCATENATE(OFFSET(SIMPL_DeclarationSalaires_StockOptions_Entete_NumCDS,L22,0))))","v":"/ / /"},{"$f":"IF(ISERR(L22),\"/ / /\",CONCATENATE(OFFSET(SIMPL_DeclarationSalaires_StockOptions_Entete_NumIF,L22,0)))","v":"/ / /"},{"$f":"IF(ISERR(L22),\"/ / /\",CONCATENATE(OFFSET(SIMPL_DeclarationSalaires_StockOptions_Entete_Organisme,L22,0)))","v":"/ / /"},{"$f":"IF(ISERR(L22),\"/ / /\",IF(OFFSET(SIMPL_DeclarationSalaires_StockOptions_Entete_NbreActionsAcquises,L22,0)=\"\",\"\",OFFSET(SIMPL_DeclarationSalaires_StockOptions_Entete_NbreActionsAcquises,L22,0)))","v":"/ / /"},{"$f":"IF(ISERR(L22),\"/ / /\",IF(OFFSET(SIMPL_DeclarationSalaires_StockOptions_Entete_PrixAcquisition,L22,0)=\"\",\"\",OFFSET(SIMPL_DeclarationSalaires_StockOptions_Entete_PrixAcquisition,L22,0)))","v":"/ / /"},{"$f":"IF(ISERR(L22),\"/ / /\",IF(OFFSET(SIMPL_DeclarationSalaires_StockOptions_Entete_DateAttribution,L22,0)=\"\",\"\",OFFSET(SIMPL_DeclarationSalaires_StockOptions_Entete_DateAttribution,L22,0)))","v":"/ / /"},{"$f":"IF(ISERR(L22),\"/ / /\",IF(OFFSET(SIMPL_DeclarationSalaires_StockOptions_Entete_DateLeveeOption,L22,0)=\"\",\"\",OFFSET(SIMPL_DeclarationSalaires_StockOptions_Entete_DateLeveeOption,L22,0)))","v":"/ / /"},{"$f":"IF(ISERR(L22),\"/ / /\",IF(OFFSET(SIMPL_DeclarationSalaires_StockOptions_Entete_MontantAbondement,L22,0)=\"\",\"\",OFFSET(SIMPL_DeclarationSalaires_StockOptions_Entete_MontantAbondement,L22,0)))","v":"/ / /"},{"$f":"IF(ISERR(L22),\"/ / /\",IF(OFFSET(SIMPL_DeclarationSalaires_StockOptions_Entete_DateCession,L22,0)=\"\",\"\",OFFSET(SIMPL_DeclarationSalaires_StockOptions_Entete_DateCession,L22,0)))","v":"/ / /"},{"$f":"IF(ISERR(L22),\"/ / /\",IF(OFFSET(SIMPL_DeclarationSalaires_StockOptions_Entete_ComplementSalaire,L22,0)=\"\",\"\",OFFSET(SIMPL_DeclarationSalaires_StockOptions_Entete_ComplementSalaire,L22,0)))","v":"/ / /"},{"$f":"IF(10*($L$4-1)+8<=SIMPL_DeclarationSalaires_StockOptions_NbreLignes,10*($L$4-1)+8,0/0)","v":{"$error":"#DIV/0!"}}]
[{"$f":"IF(ISERR(L22),\"/ / /\",CONCATENATE(OFFSET(SIMPL_DeclarationSalaires_StockOptions_Entete_Adresse,L22,0)))","v":"/ / /"},{"$f":"IF(ISERR(L22),\"/ / /\",CONCATENATE(OFFSET(SIMPL_DeclarationSalaires_StockOptions_Entete_NumCNSS,L22,0)))","v":"/ / /"},null,null,{"$f":"IF(ISERR(L22),\"/ / /\",IF(OFFSET(SIMPL_DeclarationSalaires_StockOptions_Entete_NbreActionsGratuites,L22,0)=\"\",\"\",OFFSET(SIMPL_DeclarationSalaires_StockOptions_Entete_NbreActionsGratuites,L22,0)))","v":"/ / /"},null,{"$f":"IF(ISERR(L22),\"/ / /\",IF(OFFSET(SIMPL_DeclarationSalaires_StockOptions_Entete_ValeurAttribution,L22,0)=\"\",\"\",OFFSET(SIMPL_DeclarationSalaires_StockOptions_Entete_ValeurAttribution,L22,0)))","v":"/ / /"},{"$f":"IF(ISERR(L22),\"/ / /\",IF(OFFSET(SIMPL_DeclarationSalaires_StockOptions_Entete_ValeurLeveeOption,L22,0)=\"\",\"\",OFFSET(SIMPL_DeclarationSalaires_StockOptions_Entete_ValeurLeveeOption,L22,0)))","v":"/ / /"},null,{"$f":"IF(ISERR(L22),\"/ / /\",IF(OFFSET(SIMPL_DeclarationSalaires_StockOptions_Entete_NbreActionsCedees,L22,0)=\"\",\"\",OFFSET(SIMPL_DeclarationSalaires_StockOptions_Entete_NbreActionsCedees,L22,0)))","v":"/ / /"}]
[{"$f":"IF(ISERR(L24),\"/ / /\",OFFSET(SIMPL_DeclarationSalaires_StockOptions_Entete_Nom,L24,0)&\" \"&OFFSET(SIMPL_DeclarationSalaires_StockOptions_Entete_Prenom,L24,0))","v":"/ / /"},{"$f":"IF(ISERR(L24),\"/ / /\",IF(OFFSET(SIMPL_DeclarationSalaires_StockOptions_Entete_NumCIN,L24,0)<>\"\",CONCATENATE(OFFSET(SIMPL_DeclarationSalaires_StockOptions_Entete_NumCIN,L24,0)),CONCATENATE(OFFSET(SIMPL_DeclarationSalaires_StockOptions_Entete_NumCDS,L24,0))))","v":"/ / /"},{"$f":"IF(ISERR(L24),\"/ / /\",CONCATENATE(OFFSET(SIMPL_DeclarationSalaires_StockOptions_Entete_NumIF,L24,0)))","v":"/ / /"},{"$f":"IF(ISERR(L24),\"/ / /\",CONCATENATE(OFFSET(SIMPL_DeclarationSalaires_StockOptions_Entete_Organisme,L24,0)))","v":"/ / /"},{"$f":"IF(ISERR(L24),\"/ / /\",IF(OFFSET(SIMPL_DeclarationSalaires_StockOptions_Entete_NbreActionsAcquises,L24,0)=\"\",\"\",OFFSET(SIMPL_DeclarationSalaires_StockOptions_Entete_NbreActionsAcquises,L24,0)))","v":"/ / /"},{"$f":"IF(ISERR(L24),\"/ / /\",IF(OFFSET(SIMPL_DeclarationSalaires_StockOptions_Entete_PrixAcquisition,L24,0)=\"\",\"\",OFFSET(SIMPL_DeclarationSalaires_StockOptions_Entete_PrixAcquisition,L24,0)))","v":"/ / /"},{"$f":"IF(ISERR(L24),\"/ / /\",IF(OFFSET(SIMPL_DeclarationSalaires_StockOptions_Entete_DateAttribution,L24,0)=\"\",\"\",OFFSET(SIMPL_DeclarationSalaires_StockOptions_Entete_DateAttribution,L24,0)))","v":"/ / /"},{"$f":"IF(ISERR(L24),\"/ / /\",IF(OFFSET(SIMPL_DeclarationSalaires_StockOptions_Entete_DateLeveeOption,L24,0)=\"\",\"\",OFFSET(SIMPL_DeclarationSalaires_StockOptions_Entete_DateLeveeOption,L24,0)))","v":"/ / /"},{"$f":"IF(ISERR(L24),\"/ / /\",IF(OFFSET(SIMPL_DeclarationSalaires_StockOptions_Entete_MontantAbondement,L24,0)=\"\",\"\",OFFSET(SIMPL_DeclarationSalaires_StockOptions_Entete_MontantAbondement,L24,0)))","v":"/ / /"},{"$f":"IF(ISERR(L24),\"/ / /\",IF(OFFSET(SIMPL_DeclarationSalaires_StockOptions_Entete_DateCession,L24,0)=\"\",\"\",OFFSET(SIMPL_DeclarationSalaires_StockOptions_Entete_DateCession,L24,0)))","v":"/ / /"},{"$f":"IF(ISERR(L24),\"/ / /\",IF(OFFSET(SIMPL_DeclarationSalaires_StockOptions_Entete_ComplementSalaire,L24,0)=\"\",\"\",OFFSET(SIMPL_DeclarationSalaires_StockOptions_Entete_ComplementSalaire,L24,0)))","v":"/ / /"},{"$f":"IF(10*($L$4-1)+9<=SIMPL_DeclarationSalaires_StockOptions_NbreLignes,10*($L$4-1)+9,0/0)","v":{"$error":"#DIV/0!"}}]
[{"$f":"IF(ISERR(L24),\"/ / /\",CONCATENATE(OFFSET(SIMPL_DeclarationSalaires_StockOptions_Entete_Adresse,L24,0)))","v":"/ / /"},{"$f":"IF(ISERR(L24),\"/ / /\",CONCATENATE(OFFSET(SIMPL_DeclarationSalaires_StockOptions_Entete_NumCNSS,L24,0)))","v":"/ / /"},null,null,{"$f":"IF(ISERR(L24),\"/ / /\",IF(OFFSET(SIMPL_DeclarationSalaires_StockOptions_Entete_NbreActionsGratuites,L24,0)=\"\",\"\",OFFSET(SIMPL_DeclarationSalaires_StockOptions_Entete_NbreActionsGratuites,L24,0)))","v":"/ / /"},null,{"$f":"IF(ISERR(L24),\"/ / /\",IF(OFFSET(SIMPL_DeclarationSalaires_StockOptions_Entete_ValeurAttribution,L24,0)=\"\",\"\",OFFSET(SIMPL_DeclarationSalaires_StockOptions_Entete_ValeurAttribution,L24,0)))","v":"/ / /"},{"$f":"IF(ISERR(L24),\"/ / /\",IF(OFFSET(SIMPL_DeclarationSalaires_StockOptions_Entete_ValeurLeveeOption,L24,0)=\"\",\"\",OFFSET(SIMPL_DeclarationSalaires_StockOptions_Entete_ValeurLeveeOption,L24,0)))","v":"/ / /"},null,{"$f":"IF(ISERR(L24),\"/ / /\",IF(OFFSET(SIMPL_DeclarationSalaires_StockOptions_Entete_NbreActionsCedees,L24,0)=\"\",\"\",OFFSET(SIMPL_DeclarationSalaires_StockOptions_Entete_NbreActionsCedees,L24,0)))","v":"/ / /"}]
[{"$f":"IF(ISERR(L26),\"/ / /\",OFFSET(SIMPL_DeclarationSalaires_StockOptions_Entete_Nom,L26,0)&\" \"&OFFSET(SIMPL_DeclarationSalaires_StockOptions_Entete_Prenom,L26,0))","v":"/ / /"},{"$f":"IF(ISERR(L26),\"/ / /\",IF(OFFSET(SIMPL_DeclarationSalaires_StockOptions_Entete_NumCIN,L26,0)<>\"\",CONCATENATE(OFFSET(SIMPL_DeclarationSalaires_StockOptions_Entete_NumCIN,L26,0)),CONCATENATE(OFFSET(SIMPL_DeclarationSalaires_StockOptions_Entete_NumCDS,L26,0))))","v":"/ / /"},{"$f":"IF(ISERR(L26),\"/ / /\",CONCATENATE(OFFSET(SIMPL_DeclarationSalaires_StockOptions_Entete_NumIF,L26,0)))","v":"/ / /"},{"$f":"IF(ISERR(L26),\"/ / /\",CONCATENATE(OFFSET(SIMPL_DeclarationSalaires_StockOptions_Entete_Organisme,L26,0)))","v":"/ / /"},{"$f":"IF(ISERR(L26),\"/ / /\",IF(OFFSET(SIMPL_DeclarationSalaires_StockOptions_Entete_NbreActionsAcquises,L26,0)=\"\",\"\",OFFSET(SIMPL_DeclarationSalaires_StockOptions_Entete_NbreActionsAcquises,L26,0)))","v":"/ / /"},{"$f":"IF(ISERR(L26),\"/ / /\",IF(OFFSET(SIMPL_DeclarationSalaires_StockOptions_Entete_PrixAcquisition,L26,0)=\"\",\"\",OFFSET(SIMPL_DeclarationSalaires_StockOptions_Entete_PrixAcquisition,L26,0)))","v":"/ / /"},{"$f":"IF(ISERR(L26),\"/ / /\",IF(OFFSET(SIMPL_DeclarationSalaires_StockOptions_Entete_DateAttribution,L26,0)=\"\",\"\",OFFSET(SIMPL_DeclarationSalaires_StockOptions_Entete_DateAttribution,L26,0)))","v":"/ / /"},{"$f":"IF(ISERR(L26),\"/ / /\",IF(OFFSET(SIMPL_DeclarationSalaires_StockOptions_Entete_DateLeveeOption,L26,0)=\"\",\"\",OFFSET(SIMPL_DeclarationSalaires_StockOptions_Entete_DateLeveeOption,L26,0)))","v":"/ / /"},{"$f":"IF(ISERR(L26),\"/ / /\",IF(OFFSET(SIMPL_DeclarationSalaires_StockOptions_Entete_MontantAbondement,L26,0)=\"\",\"\",OFFSET(SIMPL_DeclarationSalaires_StockOptions_Entete_MontantAbondement,L26,0)))","v":"/ / /"},{"$f":"IF(ISERR(L26),\"/ / /\",IF(OFFSET(SIMPL_DeclarationSalaires_StockOptions_Entete_DateCession,L26,0)=\"\",\"\",OFFSET(SIMPL_DeclarationSalaires_StockOptions_Entete_DateCession,L26,0)))","v":"/ / /"},{"$f":"IF(ISERR(L26),\"/ / /\",IF(OFFSET(SIMPL_DeclarationSalaires_StockOptions_Entete_ComplementSalaire,L26,0)=\"\",\"\",OFFSET(SIMPL_DeclarationSalaires_StockOptions_Entete_ComplementSalaire,L26,0)))","v":"/ / /"},{"$f":"IF(10*($L$4-1)+10<=SIMPL_DeclarationSalaires_StockOptions_NbreLignes,10*($L$4-1)+10,0/0)","v":{"$error":"#DIV/0!"}}]
[{"$f":"IF(ISERR(L26),\"/ / /\",CONCATENATE(OFFSET(SIMPL_DeclarationSalaires_StockOptions_Entete_Adresse,L26,0)))","v":"/ / /"},{"$f":"IF(ISERR(L26),\"/ / /\",CONCATENATE(OFFSET(SIMPL_DeclarationSalaires_StockOptions_Entete_NumCNSS,L26,0)))","v":"/ / /"},null,null,{"$f":"IF(ISERR(L26),\"/ / /\",IF(OFFSET(SIMPL_DeclarationSalaires_StockOptions_Entete_NbreActionsGratuites,L26,0)=\"\",\"\",OFFSET(SIMPL_DeclarationSalaires_StockOptions_Entete_NbreActionsGratuites,L26,0)))","v":"/ / /"},null,{"$f":"IF(ISERR(L26),\"/ / /\",IF(OFFSET(SIMPL_DeclarationSalaires_StockOptions_Entete_ValeurAttribution,L26,0)=\"\",\"\",OFFSET(SIMPL_DeclarationSalaires_StockOptions_Entete_ValeurAttribution,L26,0)))","v":"/ / /"},{"$f":"IF(ISERR(L26),\"/ / /\",IF(OFFSET(SIMPL_DeclarationSalaires_StockOptions_Entete_ValeurLeveeOption,L26,0)=\"\",\"\",OFFSET(SIMPL_DeclarationSalaires_StockOptions_Entete_ValeurLeveeOption,L26,0)))","v":"/ / /"},null,{"$f":"IF(ISERR(L26),\"/ / /\",IF(OFFSET(SIMPL_DeclarationSalaires_StockOptions_Entete_NbreActionsCedees,L26,0)=\"\",\"\",OFFSET(SIMPL_DeclarationSalaires_StockOptions_Entete_NbreActionsCedees,L26,0)))","v":"/ / /"}]
["(1) - L’abondement obtenu au titre des souscriptions ou achats d’actions distribuées par les sociétés résidentes."]
["      - La fraction de l’abondement qui excède 10%  de la valeur de l’action à la date d’attribution est considérée comme un complément de salaire. Cet excèdent est à inclure dans le salaire du mois de la levée de l’option, sous réserve de régularisation en fin d’année."]
[" (2) En cas de cession d’actions avant la période d’indisponibilité visée à l’article 57-14°du CGI, l’abondement exonéré et la plus-value d’acquisition seront considérées comme un complément de salaire à inclure dans le salaire du mois au cours duquel la cession a été effectuée, sous réserve de régularisation en fin d’année. "]
[{"$f":"PagePrincipale!$B$1","v":"xEdiS 7.0.0.1"}]
["www.xedis.ma"]

{"sheet":"E_Print (1)","index":5,"n_rows":35,"n_cols":8,"rows_kept":35,"cut":false,"hidden":true,"merged":[[0,0,0,6],[1,0,1,6],[5,5,8,5],[5,6,8,6],[5,2,5,4],[6,2,8,2],[6,3,8,3],[6,4,8,4],[9,2,12,2],[9,3,12,3],[9,4,12,4],[9,5,12,5],[9,6,12,6],[17,4,20,4],[17,5,20,5],[17,6,20,6],[9,7,12,7],[13,3,16,3],[13,4,16,4],[13,5,16,5],[13,6,16,6],[13,7,16,7],[21,2,24,2],[13,2,16,2],[25,7,28,7],[25,2,28,2],[25,3,28,3],[25,4,28,4],[25,5,28,5],[25,6,28,6],[17,7,20,7],[21,3,24,3],[21,4,24,4],[21,5,24,5],[21,6,24,6],[21,7,24,7],[17,2,20,2],[17,3,20,3]]}
["ETAT CONCERNANT LES BENEFICIAIRES D’ABONDEMENT DANS LE CADRE D’UN PLAN D’EPARGNE ENTREPRISE (ARTICLE 79-IV DU CGI)"]
[{"$f":"\"ANNEE : \"&YEAR(PagePrincipale!F23)","v":"ANNEE : 2017"}]
[]
["Identifiant Fiscal de l'employeur n° :                                     Nom et Prénom(s) ou Raison Sociale :",null,null,null,null,"Feuille n° : ",{"$f":"(SIMPL_DeclarationSalaires_Permanents_NbreFeuilles+SIMPL_DeclarationSalaires_Occasionnels_NbreFeuilles+SIMPL_DeclarationSalaires_Stagiaires_NbreFeuilles+SIMPL_DeclarationSalaires_StockOptions_NbreFeuilles+H4)&\"/\"&SIMPL_DeclarationSalaires_NbreFeuilles","v":"5/7"},{"$f":"LEFT(MID(WorkSheetName(H4),FIND(\"(\",WorkSheetName(H4))+1,1000),FIND(\")\",MID(WorkSheetName(H4),FIND(\"(\",WorkSheetName(H4))+1,1000))-1)+0","v":1}]
[]
["01","Nom et Prénom","Références du plan",null,null,"Montant de l’abondement versé","Montant annuel du revenu salarial imposable"]
["02","Adresse du domicile fiscal","N° du plan","Durée (en années)","Date d’ouverture"]
["03","Ville"]
["04","N° de la C.N.I ou de la carte de séjour"]
["01",{"$f":"IF(ISERR(H10),\"/ / /\",OFFSET(SIMPL_DeclarationSalaires_Epargnes_Entete_Nom,H10,0)&\" \"&OFFSET(SIMPL_DeclarationSalaires_Epargnes_Entete_Prenom,H10,0))","v":"/ / /"},{"$f":"CONCATENATE(IF(ISERR(H10),\"/ / /\",OFFSET(SIMPL_DeclarationSalaires_Epargnes_Entete_NumPlan,H10,0)))","v":"/ / /"},{"$f":"CONCATENATE(IF(ISERR(H10),\"/ / /\",OFFSET(SIMPL_DeclarationSalaires_Epargnes_Entete_DureeAnnees,H10,0)))","v":"/ / /"},{"$f":"IF(ISERR(H10),\"/ / /\",IF(OFFSET(SIMPL_DeclarationSalaires_Epargnes_Entete_DateOuverture,H10,0)=\"\",\"\",OFFSET(SIMPL_DeclarationSalaires_Epargnes_Entete_DateOuverture,H10,0)))","v":"/ / /"},{"$f":"IF(ISERR(H10),\"/ / /\",OFFSET(SIMPL_DeclarationSalaires_Epargnes_Entete_MontantAbondement,H10,0))","v":"/ / /"},{"$f":"IF(ISERR(H10),\"/ / /\",OFFSET(SIMPL_DeclarationSalaires_Epargnes_Entete_MontantRevenuAnnuel,H10,0))","v":"/ / /"},{"$f":"IF(5*($H$4-1)+1<=SIMPL_DeclarationSalaires_Epargnes_NbreLignes,5*($H$4-1)+1,0/0)","v":{"$error":"#DIV/0!"}}]
["02",{"$f":"CONCATENATE(IF(ISERR(H10),\"/ / /\",OFFSET(SIMPL_DeclarationSalaires_Epargnes_Entete_Adresse,H10,0)))","v":"/ / /"}]
["03",{"$f":"CONCATENATE(IF(ISERR(H10),\"/ / /\",OFFSET(SIMPL_DeclarationSalaires_Epargnes_Entete_Ville,H10,0)))","v":"/ / /"}]
["04",{"$f":"CONCATENATE(IF(ISERR(H10),\"/ / /\",IF(OFFSET(SIMPL_DeclarationSalaires_Epargnes_Entete_NumCIN,H10,0)<>\"\",OFFSET(SIMPL_DeclarationSalaires_Epargnes_Entete_NumCIN,H10,0),OFFSET(SIMPL_DeclarationSalaires_Epargnes_Entete_NumCDS,H10,0))))","v":"/ / /"}]
["01",{"$f":"IF(ISERR(H14),\"/ / /\",OFFSET(SIMPL_DeclarationSalaires_Epargnes_Entete_Nom,H14,0)&\" \"&OFFSET(SIMPL_DeclarationSalaires_Epargnes_Entete_Prenom,H14,0))","v":"/ / /"},{"$f":"CONCATENATE(IF(ISERR(H14),\"/ / /\",OFFSET(SIMPL_DeclarationSalaires_Epargnes_Entete_NumPlan,H14,0)))","v":"/ / /"},{"$f":"CONCATENATE(IF(ISERR(H14),\"/ / /\",OFFSET(SIMPL_DeclarationSalaires_Epargnes_Entete_DureeAnnees,H14,0)))","v":"/ / /"},{"$f":"IF(ISERR(H14),\"/ / /\",IF(OFFSET(SIMPL_DeclarationSalaires_Epargnes_Entete_DateOuverture,H14,0)=\"\",\"\",OFFSET(SIMPL_DeclarationSalaires_Epargnes_Entete_DateOuverture,H14,0)))","v":"/ / /"},{"$f":"IF(ISERR(H14),\"/ / /\",OFFSET(SIMPL_DeclarationSalaires_Epargnes_Entete_MontantAbondement,H14,0))","v":"/ / /"},{"$f":"IF(ISERR(H14),\"/ / /\",OFFSET(SIMPL_DeclarationSalaires_Epargnes_Entete_MontantRevenuAnnuel,H14,0))","v":"/ / /"},{"$f":"IF(5*($H$4-1)+2<=SIMPL_DeclarationSalaires_Epargnes_NbreLignes,5*($H$4-1)+2,0/0)","v":{"$error":"#DIV/0!"}}]
["02",{"$f":"CONCATENATE(IF(ISERR(H14),\"/ / /\",OFFSET(SIMPL_DeclarationSalaires_Epargnes_Entete_Adresse,H14,0)))","v":"/ / /"}]
["03",{"$f":"CONCATENATE(IF(ISERR(H14),\"/ / /\",OFFSET(SIMPL_DeclarationSalaires_Epargnes_Entete_Ville,H14,0)))","v":"/ / /"}]
["04",{"$f":"CONCATENATE(IF(ISERR(H14),\"/ / /\",IF(OFFSET(SIMPL_DeclarationSalaires_Epargnes_Entete_NumCIN,H14,0)<>\"\",OFFSET(SIMPL_DeclarationSalaires_Epargnes_Entete_NumCIN,H14,0),OFFSET(SIMPL_DeclarationSalaires_Epargnes_Entete_NumCDS,H14,0))))","v":"/ / /"}]
["01",{"$f":"IF(ISERR(H18),\"/ / /\",OFFSET(SIMPL_DeclarationSalaires_Epargnes_Entete_Nom,H18,0)&\" \"&OFFSET(SIMPL_DeclarationSalaires_Epargnes_Entete_Prenom,H18,0))","v":"/ / /"},{"$f":"CONCATENATE(IF(ISERR(H18),\"/ / /\",OFFSET(SIMPL_DeclarationSalaires_Epargnes_Entete_NumPlan,H18,0)))","v":"/ / /"},{"$f":"CONCATENATE(IF(ISERR(H18),\"/ / /\",OFFSET(SIMPL_DeclarationSalaires_Epargnes_Entete_DureeAnnees,H18,0)))","v":"/ / /"},{"$f":"IF(ISERR(H18),\"/ / /\",IF(OFFSET(SIMPL_DeclarationSalaires_Epargnes_Entete_DateOuverture,H18,0)=\"\",\"\",OFFSET(SIMPL_DeclarationSalaires_Epargnes_Entete_DateOuverture,H18,0)))","v":"/ / /"},{"$f":"IF(ISERR(H18),\"/ / /\",OFFSET(SIMPL_DeclarationSalaires_Epargnes_Entete_MontantAbondement,H18,0))","v":"/ / /"},{"$f":"IF(ISERR(H18),\"/ / /\",OFFSET(SIMPL_DeclarationSalaires_Epargnes_Entete_MontantRevenuAnnuel,H18,0))","v":"/ / /"},{"$f":"IF(5*($H$4-1)+3<=SIMPL_DeclarationSalaires_Epargnes_NbreLignes,5*($H$4-1)+3,0/0)","v":{"$error":"#DIV/0!"}}]
["02",{"$f":"CONCATENATE(IF(ISERR(H18),\"/ / /\",OFFSET(SIMPL_DeclarationSalaires_Epargnes_Entete_Adresse,H18,0)))","v":"/ / /"}]
["03",{"$f":"CONCATENATE(IF(ISERR(H18),\"/ / /\",OFFSET(SIMPL_DeclarationSalaires_Epargnes_Entete_Ville,H18,0)))","v":"/ / /"}]
["04",{"$f":"CONCATENATE(IF(ISERR(H18),\"/ / /\",IF(OFFSET(SIMPL_DeclarationSalaires_Epargnes_Entete_NumCIN,H18,0)<>\"\",OFFSET(SIMPL_DeclarationSalaires_Epargnes_Entete_NumCIN,H18,0),OFFSET(SIMPL_DeclarationSalaires_Epargnes_Entete_NumCDS,H18,0))))","v":"/ / /"}]
["01",{"$f":"IF(ISERR(H22),\"/ / /\",OFFSET(SIMPL_DeclarationSalaires_Epargnes_Entete_Nom,H22,0)&\" \"&OFFSET(SIMPL_DeclarationSalaires_Epargnes_Entete_Prenom,H22,0))","v":"/ / /"},{"$f":"CONCATENATE(IF(ISERR(H22),\"/ / /\",OFFSET(SIMPL_DeclarationSalaires_Epargnes_Entete_NumPlan,H22,0)))","v":"/ / /"},{"$f":"CONCATENATE(IF(ISERR(H22),\"/ / /\",OFFSET(SIMPL_DeclarationSalaires_Epargnes_Entete_DureeAnnees,H22,0)))","v":"/ / /"},{"$f":"IF(ISERR(H22),\"/ / /\",IF(OFFSET(SIMPL_DeclarationSalaires_Epargnes_Entete_DateOuverture,H22,0)=\"\",\"\",OFFSET(SIMPL_DeclarationSalaires_Epargnes_Entete_DateOuverture,H22,0)))","v":"/ / /"},{"$f":"IF(ISERR(H22),\"/ / /\",OFFSET(SIMPL_DeclarationSalaires_Epargnes_Entete_MontantAbondement,H22,0))","v":"/ / /"},{"$f":"IF(ISERR(H22),\"/ / /\",OFFSET(SIMPL_DeclarationSalaires_Epargnes_Entete_MontantRevenuAnnuel,H22,0))","v":"/ / /"},{"$f":"IF(5*($H$4-1)+4<=SIMPL_DeclarationSalaires_Epargnes_NbreLignes,5*($H$4-1)+4,0/0)","v":{"$error":"#DIV/0!"}}]
["02",{"$f":"CONCATENATE(IF(ISERR(H22),\"/ / /\",OFFSET(SIMPL_DeclarationSalaires_Epargnes_Entete_Adresse,H22,0)))","v":"/ / /"}]
["03",{"$f":"CONCATENATE(IF(ISERR(H22),\"/ / /\",OFFSET(SIMPL_DeclarationSalaires_Epargnes_Entete_Ville,H22,0)))","v":"/ / /"}]
["04",{"$f":"CONCATENATE(IF(ISERR(H22),\"/ / /\",IF(OFFSET(SIMPL_DeclarationSalaires_Epargnes_Entete_NumCIN,H22,0)<>\"\",OFFSET(SIMPL_DeclarationSalaires_Epargnes_Entete_NumCIN,H22,0),OFFSET(SIMPL_DeclarationSalaires_Epargnes_Entete_NumCDS,H22,0))))","v":"/ / /"}]
["01",{"$f":"IF(ISERR(H26),\"/ / /\",OFFSET(SIMPL_DeclarationSalaires_Epargnes_Entete_Nom,H26,0)&\" \"&OFFSET(SIMPL_DeclarationSalaires_Epargnes_Entete_Prenom,H26,0))","v":"/ / /"},{"$f":"CONCATENATE(IF(ISERR(H26),\"/ / /\",OFFSET(SIMPL_DeclarationSalaires_Epargnes_Entete_NumPlan,H26,0)))","v":"/ / /"},{"$f":"CONCATENATE(IF(ISERR(H26),\"/ / /\",OFFSET(SIMPL_DeclarationSalaires_Epargnes_Entete_DureeAnnees,H26,0)))","v":"/ / /"},{"$f":"IF(ISERR(H26),\"/ / /\",IF(OFFSET(SIMPL_DeclarationSalaires_Epargnes_Entete_DateOuverture,H26,0)=\"\",\"\",OFFSET(SIMPL_DeclarationSalaires_Epargnes_Entete_DateOuverture,H26,0)))","v":"/ / /"},{"$f":"IF(ISERR(H26),\"/ / /\",OFFSET(SIMPL_DeclarationSalaires_Epargnes_Entete_MontantAbondement,H26,0))","v":"/ / /"},{"$f":"IF(ISERR(H26),\"/ / /\",OFFSET(SIMPL_DeclarationSalaires_Epargnes_Entete_MontantRevenuAnnuel,H26,0))","v":"/ / /"},{"$f":"IF(5*($H$4-1)+5<=SIMPL_DeclarationSalaires_Epargnes_NbreLignes,5*($H$4-1)+5,0/0)","v":{"$error":"#DIV/0!"}}]
["02",{"$f":"CONCATENATE(IF(ISERR(H26),\"/ / /\",OFFSET(SIMPL_DeclarationSalaires_Epargnes_Entete_Adresse,H26,0)))","v":"/ / /"}]
["03",{"$f":"CONCATENATE(IF(ISERR(H26),\"/ / /\",OFFSET(SIMPL_DeclarationSalaires_Epargnes_Entete_Ville,H26,0)))","v":"/ / /"}]
["04",{"$f":"CONCATENATE(IF(ISERR(H26),\"/ / /\",IF(OFFSET(SIMPL_DeclarationSalaires_Epargnes_Entete_NumCIN,H26,0)<>\"\",OFFSET(SIMPL_DeclarationSalaires_Epargnes_Entete_NumCIN,H26,0),OFFSET(SIMPL_DeclarationSalaires_Epargnes_Entete_NumCDS,H26,0))))","v":"/ / /"}]
[{"$f":"PagePrincipale!$B$1","v":"xEdiS 7.0.0.1"}]
["www.xedis.ma",null,"Totaux Page","-","-",{"$f":"SUM(F10,F14,F18,F22,F26)","v":0},{"$f":"SUM(G10,G14,G18,G22,G26)","v":0}]
[]
[null,null,"Report Pages Précédentes","-","-",{"$f":"IF($H$4>1,INDIRECT(ADDRESS(35,COLUMN(),1,TRUE,\"E_Print (\"&($H$4-1)&\")\")),0)","v":0},{"$f":"IF($H$4>1,INDIRECT(ADDRESS(35,COLUMN(),1,TRUE,\"E_Print (\"&($H$4-1)&\")\")),0)","v":0}]
[]
[null,null,"Cumul","-","-",{"$f":"SUM(F31,F33)","v":0},{"$f":"SUM(G31,G33)","v":0}]

{"sheet":"X_Print (1)","index":6,"n_rows":31,"n_cols":10,"rows_kept":31,"cut":false,"hidden":true,"merged":[[0,0,0,8],[1,0,1,8],[5,4,6,4],[5,6,6,6],[5,7,6,7],[5,8,6,8],[5,5,6,5],[7,9,8,9],[9,4,10,4],[9,6,10,6],[9,7,10,7],[9,8,10,8],[9,9,10,9],[7,4,8,4],[7,6,8,6],[7,7,8,7],[7,8,8,8],[7,5,8,5],[9,5,10,5],[11,9,12,9],[13,4,14,4],[13,6,14,6],[13,7,14,7],[13,8,14,8],[13,9,14,9],[11,4,12,4],[11,6,12,6],[11,7,12,7],[11,8,12,8],[11,5,12,5],[13,5,14,5],[15,9,16,9],[17,4,18,4],[17,6,18,6],[17,7,18,7],[17,8,18,8],[17,9,18,9],[15,4,16,4],[15,6,16,6],[15,7,16,7],[15,8,16,8],[15,5,16,5],[17,5,18,5],[19,9,20,9],[19,4,20,4],[19,6,20,6],[19,7,20,7],[19,8,20,8],[19,5,20,5]]}
["LISTE DES SALARIES BENEFICIANT DE L'EXONERATION (1) (ARTICLE 57-20° DU CGI)"]
[{"$f":"\"ANNEE : \"&YEAR(PagePrincipale!F23)","v":"ANNEE : 2017"}]
[]
["Identifiant Fiscal de l'employeur n° :","Nom et Prénom(s) ou Raison Sociale :",null,null,null,null,null,"Feuille n° : ",{"$f":"(SIMPL_DeclarationSalaires_Permanents_NbreFeuilles+SIMPL_DeclarationSalaires_Occasionnels_NbreFeuilles+SIMPL_DeclarationSalaires_Stagiaires_NbreFeuilles+SIMPL_DeclarationSalaires_StockOptions_NbreFeuilles+SIMPL_DeclarationSalaires_Epargnes_NbreFeuilles+J4)&\"/\"&SIMPL_DeclarationSalaires_NbreFeuilles","v":"6/7"},{"$f":"LEFT(MID(WorkSheetName(J4),FIND(\"(\",WorkSheetName(J4))+1,1000),FIND(\")\",MID(WorkSheetName(J4),FIND(\"(\",WorkSheetName(J4))+1,1000))-1)+0","v":1}]
[]
["Nom et Prénom(s)","N° C.I.N. ou Carte d'étranger","N° d'identification fiscale","Montant brut des traitements, salaires et émoluments","Montant des indemnités versées à titre de frais professionnels","Montant du revenu brut imposable","Montant des retenues opérées (2)","Montant du revenu net imposable","Période en jours"]
["Adresse Personnelle","N° CNSS","Date de recrutement","Montant brut des indemnités payées en argent ou en nature"]
[{"$f":"IF(ISERR(J8),\"/ / /\",OFFSET(SIMPL_DeclarationSalaires_Exoneres_Entete_Nom,J8,0)&\" \"&OFFSET(SIMPL_DeclarationSalaires_Exoneres_Entete_Prenom,J8,0))","v":"/ / /"},{"$f":"CONCATENATE(IF(ISERR(J8),\"/ / /\",IF(OFFSET(SIMPL_DeclarationSalaires_Exoneres_Entete_NumCIN,J8,0)<>\"\",OFFSET(SIMPL_DeclarationSalaires_Exoneres_Entete_NumCIN,J8,0),OFFSET(SIMPL_DeclarationSalaires_Exoneres_Entete_NumCDS,J8,0))))","v":"/ / /"},{"$f":"CONCATENATE(IF(ISERR(J8),\"/ / /\",OFFSET(SIMPL_DeclarationSalaires_Exoneres_Entete_NumIF,J8,0)))","v":"/ / /"},{"$f":"IF(ISERR(J8),\"/ / /\",OFFSET(SIMPL_DeclarationSalaires_Exoneres_Entete_TraitementsEtSalaires,J8,0))","v":"/ / /"},{"$f":"IF(ISERR(J8),\"/ / /\",OFFSET(SIMPL_DeclarationSalaires_Exoneres_Entete_Indemnites,J8,0))","v":"/ / /"},{"$f":"IF(ISERR(J8),\"/ / /\",OFFSET(SIMPL_DeclarationSalaires_Exoneres_Entete_BrutImposable,J8,0))","v":"/ / /"},{"$f":"IF(ISERR(J8),\"/ / /\",OFFSET(SIMPL_DeclarationSalaires_Exoneres_Entete_RetenuesSociales,J8,0))","v":"/ / /"},{"$f":"IF(ISERR(J8),\"/ / /\",OFFSET(SIMPL_DeclarationSalaires_Exoneres_Entete_NetImposable,J8,0))","v":"/ / /"},{"$f":"IF(ISERR(J8),\"/ / /\",OFFSET(SIMPL_DeclarationSalaires_Exoneres_Entete_NbreJours,J8,0))","v":"/ / /"},{"$f":"IF(7*($J$4-1)+1<=SIMPL_DeclarationSalaires_Exoneres_NbreLignes,7*($J$4-1)+1,0/0)","v":{"$error":"#DIV/0!"}}]
[{"$f":"CONCATENATE(IF(ISERR(J8),\"/ / /\",OFFSET(SIMPL_DeclarationSalaires_Exoneres_Entete_Adresse,J8,0)))","v":"/ / /"},{"$f":"CONCATENATE(IF(ISERR(J8),\"/ / /\",OFFSET(SIMPL_DeclarationSalaires_Exoneres_Entete_NumCNSS,J8,0)))","v":"/ / /"},{"$f":"IF(ISERR(J8),\"/ / /\",OFFSET(SIMPL_DeclarationSalaires_Exoneres_Entete_DateRecrutement,J8,0))","v":"/ / /"},{"$f":"IF(ISERR(J8),\"/ / /\",OFFSET(SIMPL_DeclarationSalaires_Exoneres_Entete_Avantages,J8,0))","v":"/ / /"}]
[{"$f":"IF(ISERR(J10),\"/ / /\",OFFSET(SIMPL_DeclarationSalaires_Exoneres_Entete_Nom,J10,0)&\" \"&OFFSET(SIMPL_DeclarationSalaires_Exoneres_Entete_Prenom,J10,0))","v":"/ / /"},{"$f":"CONCATENATE(IF(ISERR(J10),\"/ / /\",IF(OFFSET(SIMPL_DeclarationSalaires_Exoneres_Entete_NumCIN,J10,0)<>\"\",OFFSET(SIMPL_DeclarationSalaires_Exoneres_Entete_NumCIN,J10,0),OFFSET(SIMPL_DeclarationSalaires_Exoneres_Entete_NumCDS,J10,0))))","v":"/ / /"},{"$f":"CONCATENATE(IF(ISERR(J10),\"/ / /\",OFFSET(SIMPL_DeclarationSalaires_Exoneres_Entete_NumIF,J10,0)))","v":"/ / /"},{"$f":"IF(ISERR(J10),\"/ / /\",OFFSET(SIMPL_DeclarationSalaires_Exoneres_Entete_TraitementsEtSalaires,J10,0))","v":"/ / /"},{"$f":"IF(ISERR(J10),\"/ / /\",OFFSET(SIMPL_DeclarationSalaires_Exoneres_Entete_Indemnites,J10,0))","v":"/ / /"},{"$f":"IF(ISERR(J10),\"/ / /\",OFFSET(SIMPL_DeclarationSalaires_Exoneres_Entete_BrutImposable,J10,0))","v":"/ / /"},{"$f":"IF(ISERR(J10),\"/ / /\",OFFSET(SIMPL_DeclarationSalaires_Exoneres_Entete_RetenuesSociales,J10,0))","v":"/ / /"},{"$f":"IF(ISERR(J10),\"/ / /\",OFFSET(SIMPL_DeclarationSalaires_Exoneres_Entete_NetImposable,J10,0))","v":"/ / /"},{"$f":"IF(ISERR(J10),\"/ / /\",OFFSET(SIMPL_DeclarationSalaires_Exoneres_Entete_NbreJours,J10,0))","v":"/ / /"},{"$f":"IF(7*($J$4-1)+2<=SIMPL_DeclarationSalaires_Exoneres_NbreLignes,7*($J$4-1)+2,0/0)","v":{"$error":"#DIV/0!"}}]
[{"$f":"CONCATENATE(IF(ISERR(J10),\"/ / /\",OFFSET(SIMPL_DeclarationSalaires_Exoneres_Entete_Adresse,J10,0)))","v":"/ / /"},{"$f":"CONCATENATE(IF(ISERR(J10),\"/ / /\",OFFSET(SIMPL_DeclarationSalaires_Exoneres_Entete_NumCNSS,J10,0)))","v":"/ / /"},{"$f":"IF(ISERR(J10),\"/ / /\",OFFSET(SIMPL_DeclarationSalaires_Exoneres_Entete_DateRecrutement,J10,0))","v":"/ / /"},{"$f":"IF(ISERR(J10),\"/ / /\",OFFSET(SIMPL_DeclarationSalaires_Exoneres_Entete_Avantages,J10,0))","v":"/ / /"}]
[{"$f":"IF(ISERR(J12),\"/ / /\",OFFSET(SIMPL_DeclarationSalaires_Exoneres_Entete_Nom,J12,0)&\" \"&OFFSET(SIMPL_DeclarationSalaires_Exoneres_Entete_Prenom,J12,0))","v":"/ / /"},{"$f":"CONCATENATE(IF(ISERR(J12),\"/ / /\",IF(OFFSET(SIMPL_DeclarationSalaires_Exoneres_Entete_NumCIN,J12,0)<>\"\",OFFSET(SIMPL_DeclarationSalaires_Exoneres_Entete_NumCIN,J12,0),OFFSET(SIMPL_DeclarationSalaires_Exoneres_Entete_NumCDS,J12,0))))","v":"/ / /"},{"$f":"CONCATENATE(IF(ISERR(J12),\"/ / /\",OFFSET(SIMPL_DeclarationSalaires_Exoneres_Entete_NumIF,J12,0)))","v":"/ / /"},{"$f":"IF(ISERR(J12),\"/ / /\",OFFSET(SIMPL_DeclarationSalaires_Exoneres_Entete_TraitementsEtSalaires,J12,0))","v":"/ / /"},{"$f":"IF(ISERR(J12),\"/ / /\",OFFSET(SIMPL_DeclarationSalaires_Exoneres_Entete_Indemnites,J12,0))","v":"/ / /"},{"$f":"IF(ISERR(J12),\"/ / /\",OFFSET(SIMPL_DeclarationSalaires_Exoneres_Entete_BrutImposable,J12,0))","v":"/ / /"},{"$f":"IF(ISERR(J12),\"/ / /\",OFFSET(SIMPL_DeclarationSalaires_Exoneres_Entete_RetenuesSociales,J12,0))","v":"/ / /"},{"$f":"IF(ISERR(J12),\"/ / /\",OFFSET(SIMPL_DeclarationSalaires_Exoneres_Entete_NetImposable,J12,0))","v":"/ / /"},{"$f":"IF(ISERR(J12),\"/ / /\",OFFSET(SIMPL_DeclarationSalaires_Exoneres_Entete_NbreJours,J12,0))","v":"/ / /"},{"$f":"IF(7*($J$4-1)+3<=SIMPL_DeclarationSalaires_Exoneres_NbreLignes,7*($J$4-1)+3,0/0)","v":{"$error":"#DIV/0!"}}]
[{"$f":"CONCATENATE(IF(ISERR(J12),\"/ / /\",OFFSET(SIMPL_DeclarationSalaires_Exoneres_Entete_Adresse,J12,0)))","v":"/ / /"},{"$f":"CONCATENATE(IF(ISERR(J12),\"/ / /\",OFFSET(SIMPL_DeclarationSalaires_Exoneres_Entete_NumCNSS,J12,0)))","v":"/ / /"},{"$f":"IF(ISERR(J12),\"/ / /\",OFFSET(SIMPL_DeclarationSalaires_Exoneres_Entete_DateRecrutement,J12,0))","v":"/ / /"},{"$f":"IF(ISERR(J12),\"/ / /\",OFFSET(SIMPL_DeclarationSalaires_Exoneres_Entete_Avantages,J12,0))","v":"/ / /"}]
[{"$f":"IF(ISERR(J14),\"/ / /\",OFFSET(SIMPL_DeclarationSalaires_Exoneres_Entete_Nom,J14,0)&\" \"&OFFSET(SIMPL_DeclarationSalaires_Exoneres_Entete_Prenom,J14,0))","v":"/ / /"},{"$f":"CONCATENATE(IF(ISERR(J14),\"/ / /\",IF(OFFSET(SIMPL_DeclarationSalaires_Exoneres_Entete_NumCIN,J14,0)<>\"\",OFFSET(SIMPL_DeclarationSalaires_Exoneres_Entete_NumCIN,J14,0),OFFSET(SIMPL_DeclarationSalaires_Exoneres_Entete_NumCDS,J14,0))))","v":"/ / /"},{"$f":"CONCATENATE(IF(ISERR(J14),\"/ / /\",OFFSET(SIMPL_DeclarationSalaires_Exoneres_Entete_NumIF,J14,0)))","v":"/ / /"},{"$f":"IF(ISERR(J14),\"/ / /\",OFFSET(SIMPL_DeclarationSalaires_Exoneres_Entete_TraitementsEtSalaires,J14,0))","v":"/ / /"},{"$f":"IF(ISERR(J14),\"/ / /\",OFFSET(SIMPL_DeclarationSalaires_Exoneres_Entete_Indemnites,J14,0))","v":"/ / /"},{"$f":"IF(ISERR(J14),\"/ / /\",OFFSET(SIMPL_DeclarationSalaires_Exoneres_Entete_BrutImposable,J14,0))","v":"/ / /"},{"$f":"IF(ISERR(J14),\"/ / /\",OFFSET(SIMPL_DeclarationSalaires_Exoneres_Entete_RetenuesSociales,J14,0))","v":"/ / /"},{"$f":"IF(ISERR(J14),\"/ / /\",OFFSET(SIMPL_DeclarationSalaires_Exoneres_Entete_NetImposable,J14,0))","v":"/ / /"},{"$f":"IF(ISERR(J14),\"/ / /\",OFFSET(SIMPL_DeclarationSalaires_Exoneres_Entete_NbreJours,J14,0))","v":"/ / /"},{"$f":"IF(7*($J$4-1)+4<=SIMPL_DeclarationSalaires_Exoneres_NbreLignes,7*($J$4-1)+4,0/0)","v":{"$error":"#DIV/0!"}}]
[{"$f":"CONCATENATE(IF(ISERR(J14),\"/ / /\",OFFSET(SIMPL_DeclarationSalaires_Exoneres_Entete_Adresse,J14,0)))","v":"/ / /"},{"$f":"CONCATENATE(IF(ISERR(J14),\"/ / /\",OFFSET(SIMPL_DeclarationSalaires_Exoneres_Entete_NumCNSS,J14,0)))","v":"/ / /"},{"$f":"IF(ISERR(J14),\"/ / /\",OFFSET(SIMPL_DeclarationSalaires_Exoneres_Entete_DateRecrutement,J14,0))","v":"/ / /"},{"$f":"IF(ISERR(J14),\"/ / /\",OFFSET(SIMPL_DeclarationSalaires_Exoneres_Entete_Avantages,J14,0))","v":"/ / /"}]
[{"$f":"IF(ISERR(J16),\"/ / /\",OFFSET(SIMPL_DeclarationSalaires_Exoneres_Entete_Nom,J16,0)&\" \"&OFFSET(SIMPL_DeclarationSalaires_Exoneres_Entete_Prenom,J16,0))","v":"/ / /"},{"$f":"CONCATENATE(IF(ISERR(J16),\"/ / /\",IF(OFFSET(SIMPL_DeclarationSalaires_Exoneres_Entete_NumCIN,J16,0)<>\"\",OFFSET(SIMPL_DeclarationSalaires_Exoneres_Entete_NumCIN,J16,0),OFFSET(SIMPL_DeclarationSalaires_Exoneres_Entete_NumCDS,J16,0))))","v":"/ / /"},{"$f":"CONCATENATE(IF(ISERR(J16),\"/ / /\",OFFSET(SIMPL_DeclarationSalaires_Exoneres_Entete_NumIF,J16,0)))","v":"/ / /"},{"$f":"IF(ISERR(J16),\"/ / /\",OFFSET(SIMPL_DeclarationSalaires_Exoneres_Entete_TraitementsEtSalaires,J16,0))","v":"/ / /"},{"$f":"IF(ISERR(J16),\"/ / /\",OFFSET(SIMPL_DeclarationSalaires_Exoneres_Entete_Indemnites,J16,0))","v":"/ / /"},{"$f":"IF(ISERR(J16),\"/ / /\",OFFSET(SIMPL_DeclarationSalaires_Exoneres_Entete_BrutImposable,J16,0))","v":"/ / /"},{"$f":"IF(ISERR(J16),\"/ / /\",OFFSET(SIMPL_DeclarationSalaires_Exoneres_Entete_RetenuesSociales,J16,0))","v":"/ / /"},{"$f":"IF(ISERR(J16),\"/ / /\",OFFSET(SIMPL_DeclarationSalaires_Exoneres_Entete_NetImposable,J16,0))","v":"/ / /"},{"$f":"IF(ISERR(J16),\"/ / /\",OFFSET(SIMPL_DeclarationSalaires_Exoneres_Entete_NbreJours,J16,0))","v":"/ / /"},{"$f":"IF(7*($J$4-1)+5<=SIMPL_DeclarationSalaires_Exoneres_NbreLignes,7*($J$4-1)+5,0/0)","v":{"$error":"#DIV/0!"}}]
[{"$f":"CONCATENATE(IF(ISERR(J16),\"/ / /\",OFFSET(SIMPL_DeclarationSalaires_Exoneres_Entete_Adresse,J16,0)))","v":"/ / /"},{"$f":"CONCATENATE(IF(ISERR(J16),\"/ / /\",OFFSET(SIMPL_DeclarationSalaires_Exoneres_Entete_NumCNSS,J16,0)))","v":"/ / /"},{"$f":"IF(ISERR(J16),\"/ / /\",OFFSET(SIMPL_DeclarationSalaires_Exoneres_Entete_DateRecrutement,J16,0))","v":"/ / /"},{"$f":"IF(ISERR(J16),\"/ / /\",OFFSET(SIMPL_DeclarationSalaires_Exoneres_Entete_Avantages,J16,0))","v":"/ / /"}]
[{"$f":"IF(ISERR(J18),\"/ / /\",OFFSET(SIMPL_DeclarationSalaires_Exoneres_Entete_Nom,J18,0)&\" \"&OFFSET(SIMPL_DeclarationSalaires_Exoneres_Entete_Prenom,J18,0))","v":"/ / /"},{"$f":"CONCATENATE(IF(ISERR(J18),\"/ / /\",IF(OFFSET(SIMPL_DeclarationSalaires_Exoneres_Entete_NumCIN,J18,0)<>\"\",OFFSET(SIMPL_DeclarationSalaires_Exoneres_Entete_NumCIN,J18,0),OFFSET(SIMPL_DeclarationSalaires_Exoneres_Entete_NumCDS,J18,0))))","v":"/ / /"},{"$f":"CONCATENATE(IF(ISERR(J18),\"/ / /\",OFFSET(SIMPL_DeclarationSalaires_Exoneres_Entete_NumIF,J18,0)))","v":"/ / /"},{"$f":"IF(ISERR(J18),\"/ / /\",OFFSET(SIMPL_DeclarationSalaires_Exoneres_Entete_TraitementsEtSalaires,J18,0))","v":"/ / /"},{"$f":"IF(ISERR(J18),\"/ / /\",OFFSET(SIMPL_DeclarationSalaires_Exoneres_Entete_Indemnites,J18,0))","v":"/ / /"},{"$f":"IF(ISERR(J18),\"/ / /\",OFFSET(SIMPL_DeclarationSalaires_Exoneres_Entete_BrutImposable,J18,0))","v":"/ / /"},{"$f":"IF(ISERR(J18),\"/ / /\",OFFSET(SIMPL_DeclarationSalaires_Exoneres_Entete_RetenuesSociales,J18,0))","v":"/ / /"},{"$f":"IF(ISERR(J18),\"/ / /\",OFFSET(SIMPL_DeclarationSalaires_Exoneres_Entete_NetImposable,J18,0))","v":"/ / /"},{"$f":"IF(ISERR(J18),\"/ / /\",OFFSET(SIMPL_DeclarationSalaires_Exoneres_Entete_NbreJours,J18,0))","v":"/ / /"},{"$f":"IF(7*($J$4-1)+6<=SIMPL_DeclarationSalaires_Exoneres_NbreLignes,7*($J$4-1)+6,0/0)","v":{"$error":"#DIV/0!"}}]
[{"$f":"CONCATENATE(IF(ISERR(J18),\"/ / /\",OFFSET(SIMPL_DeclarationSalaires_Exoneres_Entete_Adresse,J18,0)))","v":"/ / /"},{"$f":"CONCATENATE(IF(ISERR(J18),\"/ / /\",OFFSET(SIMPL_DeclarationSalaires_Exoneres_Entete_NumCNSS,J18,0)))","v":"/ / /"},{"$f":"IF(ISERR(J18),\"/ / /\",OFFSET(SIMPL_DeclarationSalaires_Exoneres_Entete_DateRecrutement,J18,0))","v":"/ / /"},{"$f":"IF(ISERR(J18),\"/ / /\",OFFSET(SIMPL_DeclarationSalaires_Exoneres_Entete_Avantages,J18,0))","v":"/ / /"}]
[{"$f":"IF(ISERR(J20),\"/ / /\",OFFSET(SIMPL_DeclarationSalaires_Exoneres_Entete_Nom,J20,0)&\" \"&OFFSET(SIMPL_DeclarationSalaires_Exoneres_Entete_Prenom,J20,0))","v":"/ / /"},{"$f":"CONCATENATE(IF(ISERR(J20),\"/ / /\",IF(OFFSET(SIMPL_DeclarationSalaires_Exoneres_Entete_NumCIN,J20,0)<>\"\",OFFSET(SIMPL_DeclarationSalaires_Exoneres_Entete_NumCIN,J20,0),OFFSET(SIMPL_DeclarationSalaires_Exoneres_Entete_NumCDS,J20,0))))","v":"/ / /"},{"$f":"CONCATENATE(IF(ISERR(J20),\"/ / /\",OFFSET(SIMPL_DeclarationSalaires_Exoneres_Entete_NumIF,J20,0)))","v":"/ / /"},{"$f":"IF(ISERR(J20),\"/ / /\",OFFSET(SIMPL_DeclarationSalaires_Exoneres_Entete_TraitementsEtSalaires,J20,0))","v":"/ / /"},{"$f":"IF(ISERR(J20),\"/ / /\",OFFSET(SIMPL_DeclarationSalaires_Exoneres_Entete_Indemnites,J20,0))","v":"/ / /"},{"$f":"IF(ISERR(J20),\"/ / /\",OFFSET(SIMPL_DeclarationSalaires_Exoneres_Entete_BrutImposable,J20,0))","v":"/ / /"},{"$f":"IF(ISERR(J20),\"/ / /\",OFFSET(SIMPL_DeclarationSalaires_Exoneres_Entete_RetenuesSociales,J20,0))","v":"/ / /"},{"$f":"IF(ISERR(J20),\"/ / /\",OFFSET(SIMPL_DeclarationSalaires_Exoneres_Entete_NetImposable,J20,0))","v":"/ / /"},{"$f":"IF(ISERR(J20),\"/ / /\",OFFSET(SIMPL_DeclarationSalaires_Exoneres_Entete_NbreJours,J20,0))","v":"/ / /"},{"$f":"IF(7*($J$4-1)+7<=SIMPL_DeclarationSalaires_Exoneres_NbreLignes,7*($J$4-1)+7,0/0)","v":{"$error":"#DIV/0!"}}]
[{"$f":"CONCATENATE(IF(ISERR(J20),\"/ / /\",OFFSET(SIMPL_DeclarationSalaires_Exoneres_Entete_Adresse,J20,0)))","v":"/ / /"},{"$f":"CONCATENATE(IF(ISERR(J20),\"/ / /\",OFFSET(SIMPL_DeclarationSalaires_Exoneres_Entete_NumCNSS,J20,0)))","v":"/ / /"},{"$f":"IF(ISERR(J20),\"/ / /\",OFFSET(SIMPL_DeclarationSalaires_Exoneres_Entete_DateRecrutement,J20,0))","v":"/ / /"},{"$f":"IF(ISERR(J20),\"/ / /\",OFFSET(SIMPL_DeclarationSalaires_Exoneres_Entete_Avantages,J20,0))","v":"/ / /"}]
[]
["(1) - Salaire mensuel brut plafonné à 10.000DH pour une durée de 24 mois.",null,"Totaux Page",{"$f":"SUM(D8:D21)","v":0},{"$f":"SUM(E8:E21)","v":0},{"$f":"SUM(F8:F21)","v":0},{"$f":"SUM(G8:G21)","v":0},{"$f":"SUM(H8,H10,H12,H14,H16,H18,H20)","v":0},"-"]
[]
["       -  Joindre : - Copie du contrat de travail.",null,"Report Pages Précédentes",{"$f":"IF($J$4>1,INDIRECT(ADDRESS(27,COLUMN(),1,TRUE,\"X_Print (\"&($J$4-1)&\")\")),0)","v":0},{"$f":"IF($J$4>1,INDIRECT(ADDRESS(27,COLUMN(),1,TRUE,\"X_Print (\"&($J$4-1)&\")\")),0)","v":0},{"$f":"IF($J$4>1,INDIRECT(ADDRESS(27,COLUMN(),1,TRUE,\"X_Print (\"&($J$4-1)&\")\")),0)","v":0},{"$f":"IF($J$4>1,INDIRECT(ADDRESS(27,COLUMN(),1,TRUE,\"X_Print (\"&($J$4-1)&\")\")),0)","v":0},{"$f":"IF($J$4>1,INDIRECT(ADDRESS(27,COLUMN(),1,TRUE,\"X_Print (\"&($J$4-1)&\")\")),0)","v":0},"-"]
[]
[null,null,"Cumul",{"$f":"SUM(D23,D25)","v":0},{"$f":"SUM(E23,E25)","v":0},{"$f":"SUM(F23,F25)","v":0},{"$f":"SUM(G23,G25)","v":0},{"$f":"SUM(H23,H25)","v":0},"-"]
[]
["(2) Montant des retenues opérées au titre de la pension de retraite, de la CNSS et des organismes de prévoyance sociale"]
[{"$f":"PagePrincipale!$B$1","v":"xEdiS 7.0.0.1"}]
["www.xedis.ma"]

{"sheet":"D_Print (1)","index":7,"n_rows":26,"n_cols":5,"rows_kept":26,"cut":false,"hidden":true,"merged":[[0,0,0,3],[1,0,1,3]]}
["LISTE DES DOCTORANTS (1) (ARTICLE 57-21° DU CGI)"]
[{"$f":"\"ANNEE : \"&YEAR(PagePrincipale!F23)","v":"ANNEE : 2017"}]
[]
["Identifiant Fiscal de l'employeur n° :","Nom et Prénom(s) ou Raison Sociale :",null,{"$f":"(SIMPL_DeclarationSalaires_Permanents_NbreFeuilles+SIMPL_DeclarationSalaires_Occasionnels_NbreFeuilles+SIMPL_DeclarationSalaires_Stagiaires_NbreFeuilles+SIMPL_DeclarationSalaires_StockOptions_NbreFeuilles+SIMPL_DeclarationSalaires_Epargnes_NbreFeuilles+SIMPL_DeclarationSalaires_Exoneres_NbreFeuilles+E4)&\"/\"&SIMPL_DeclarationSalaires_NbreFeuilles","v":"7/7"},{"$f":"LEFT(MID(WorkSheetName(E4),FIND(\"(\",WorkSheetName(E4))+1,1000),FIND(\")\",MID(WorkSheetName(E4),FIND(\"(\",WorkSheetName(E4))+1,1000))-1)+0","v":1}]
[]
["Nom et Prénom(s)","N° C.I.N. ou Carte d'étranger","Adresse Personnelle","Montant brut des traitements, salaires et émoluments"]
[{"$f":"IF(ISERR(E7),\"/ / /\",OFFSET(SIMPL_DeclarationSalaires_Doctorants_Entete_Nom,E7,0)&\" \"&OFFSET(SIMPL_DeclarationSalaires_Doctorants_Entete_Prenom,E7,0))","v":"/ / /"},{"$f":"CONCATENATE(IF(ISERR(E7),\"/ / /\",IF(OFFSET(SIMPL_DeclarationSalaires_Doctorants_Entete_NumCIN,E7,0)<>\"\",OFFSET(SIMPL_DeclarationSalaires_Doctorants_Entete_NumCIN,E7,0),OFFSET(SIMPL_DeclarationSalaires_Doctorants_Entete_NumCDS,E7,0))))","v":"/ / /"},{"$f":"CONCATENATE(IF(ISERR(E7),\"/ / /\",OFFSET(SIMPL_DeclarationSalaires_Doctorants_Entete_Adresse,E7,0)))","v":"/ / /"},{"$f":"IF(ISERR(E7),\"/ / /\",OFFSET(SIMPL_DeclarationSalaires_Doctorants_Entete_BrutEtIndemnites,E7,0))","v":"/ / /"},{"$f":"IF(10*($E$4-1)+1<=SIMPL_DeclarationSalaires_Doctorants_NbreLignes,10*($E$4-1)+1,0/0)","v":{"$error":"#DIV/0!"}}]
["/ / /","/ / /","/ / /","/ / /",{"$f":"IF(10*($E$4-1)+2<=SIMPL_DeclarationSalaires_Doctorants_NbreLignes,10*($E$4-1)+2,0/0)","v":{"$error":"#DIV/0!"}}]
["/ / /","/ / /","/ / /","/ / /",{"$f":"IF(10*($E$4-1)+3<=SIMPL_DeclarationSalaires_Doctorants_NbreLignes,10*($E$4-1)+3,0/0)","v":{"$error":"#DIV/0!"}}]
["/ / /","/ / /","/ / /","/ / /",{"$f":"IF(10*($E$4-1)+4<=SIMPL_DeclarationSalaires_Doctorants_NbreLignes,10*($E$4-1)+4,0/0)","v":{"$error":"#DIV/0!"}}]
["/ / /","/ / /","/ / /","/ / /",{"$f":"IF(10*($E$4-1)+5<=SIMPL_DeclarationSalaires_Doctorants_NbreLignes,10*($E$4-1)+5,0/0)","v":{"$error":"#DIV/0!"}}]
["/ / /","/ / /","/ / /","/ / /",{"$f":"IF(10*($E$4-1)+6<=SIMPL_DeclarationSalaires_Doctorants_NbreLignes,10*($E$4-1)+6,0/0)","v":{"$error":"#DIV/0!"}}]
["/ / /","/ / /","/ / /","/ / /",{"$f":"IF(10*($E$4-1)+6<=SIMPL_DeclarationSalaires_Doctorants_NbreLignes,10*($E$4-1)+7,0/0)","v":{"$error":"#DIV/0!"}}]
["/ / /","/ / /","/ / /","/ / /",{"$f":"IF(10*($E$4-1)+6<=SIMPL_DeclarationSalaires_Doctorants_NbreLignes,10*($E$4-1)+8,0/0)","v":{"$error":"#DIV/0!"}}]
["/ / /","/ / /","/ / /","/ / /",{"$f":"IF(10*($E$4-1)+6<=SIMPL_DeclarationSalaires_Doctorants_NbreLignes,10*($E$4-1)+9,0/0)","v":{"$error":"#DIV/0!"}}]
["/ / /","/ / /","/ / /","/ / /",{"$f":"IF(10*($E$4-1)+7<=SIMPL_DeclarationSalaires_Doctorants_NbreLignes,10*($E$4-1)+10,0/0)","v":{"$error":"#DIV/0!"}}]
[]
["(1) - Etudiants inscrits au cycle de doctorat bénéficiant de l'exonération prévue",null,"Totaux Page",{"$f":"SUM(D7:D16)","v":0}]
[]
["à l'article 57-21° du CGI. Joindre : ",null,"Report Pages Précédentes",{"$f":"IF($E$4>1,INDIRECT(ADDRESS(22,COLUMN(),1,TRUE,\"D_Print (\"&($E$4-1)&\")\")),0)","v":0}]
[]
["          -une copie du contrat de recherche ;",null,"Cumul",{"$f":"SUM(D18,D20)","v":0}]
[]
["          -une copie certifiée conforme d'attestation d'inscription au cycle de doctorat."]
[{"$f":"PagePrincipale!$B$1","v":"xEdiS 7.0.0.1"}]
["www.xedis.ma"]

{"sheet":"Q_Print","index":8,"n_rows":39,"n_cols":10,"rows_kept":39,"cut":false,"hidden":true,"merged":[[0,0,0,10],[1,0,1,10],[5,6,5,9],[28,9,28,10],[29,9,29,10],[14,6,14,9],[11,6,11,9],[8,6,8,9],[16,0,16,9],[17,2,19,2],[17,3,19,3],[17,4,19,4],[17,5,19,5],[17,0,19,0],[17,1,19,1],[32,9,32,10],[17,6,17,10],[22,9,22,10],[23,9,23,10],[24,9,24,10],[25,9,25,10],[26,9,26,10],[27,9,27,10],[18,9,19,10],[20,9,20,10],[21,9,21,10],[18,6,18,8],[30,9,30,10],[31,9,31,10]]}
["ETAT RECAPITULATIF DES TRAITEMENTS ET SALAIRES"]
[{"$f":"\"ANNEE : \"&YEAR(PagePrincipale!F23)","v":"ANNEE : 2017"}]
[]
["Identifiant Fiscal de l'employeur n° :",null,null,"Nom et Prénom(s) ou Raison Sociale :"]
[]
["Montant des traitements, salaires, indemnités et émoluments versés au personnel permanent (a) ",null,null,null,null,null,{"$f":"SUM(SIMPL_DeclarationSalaires_Permanents_Total_TraitementsEtSalaires,SIMPL_DeclarationSalaires_Permanents_Total_Avantages,SIMPL_DeclarationSalaires_Permanents_Total_Indemnites)","v":0}]
[]
[]
["Montant des traitements, salaires, indemnités et émoluments versés au personnel occasionnel (b) ",null,null,null,null,null,{"$f":"SUM(SIMPL_DeclarationSalaires_Occasionnels_Total_Brut)","v":0}]
[]
[]
["Montant des traitements, salaires, indemnités et émoluments versés aux stagiaires (c)",null,null,null,null,null,{"$f":"SUM(SIMPL_DeclarationSalaires_Stagiaires_Total_Brut,SIMPL_DeclarationSalaires_Stagiaires_Total_Indemnites)","v":0}]
[]
[]
["Total des sommes payées = (a) + (b) + (c) ",null,null,null,null,null,{"$f":"SUM(G6,G9,G12)","v":0}]
[]
["DETAIL DES VERSEMENTS"]
["Mois auquel se rapporte le paiement","Date de Versement","Principal\n\n(d)","Pénalités (1)\n(10%)\n(e)","Majorations (1)\n(5%  et 0,5%)\n(f)","Total (2)\n\n(d) + (e) + (f) ","Références de Paiement"]
[null,null,null,null,null,null,"Mode de Paiement",null,null,"Quittance N°"]
[null,null,null,null,null,null,"Espèces","Chèque","Virement"]
["JANVIER",{"$f":"IF(Quitances!B5=0,\"\",Quitances!B5)","v":""},{"$f":"Quitances!C5","v":0},{"$f":"Quitances!E5","v":0},{"$f":"Quitances!D5","v":0},{"$f":"Quitances!F5","v":0},{"$f":"IF(Quitances!G5=\"Espèces\",\"X\",\"\")","v":""},{"$f":"IF(Quitances!G5=\"Chèque\",\"X\",\"\")","v":""},{"$f":"IF(Quitances!G5=\"Télépaiement/Virement\",\"X\",\"\")","v":""},{"$f":"CONCATENATE(Quitances!H5)","v":""}]
["FEVRIER",{"$f":"IF(Quitances!B6=0,\"\",Quitances!B6)","v":""},{"$f":"Quitances!C6","v":0},{"$f":"Quitances!E6","v":0},{"$f":"Quitances!D6","v":0},{"$f":"Quitances!F6","v":0},{"$f":"IF(Quitances!G6=\"Espèces\",\"X\",\"\")","v":""},{"$f":"IF(Quitances!G6=\"Chèque\",\"X\",\"\")","v":""},{"$f":"IF(Quitances!G6=\"Télépaiement/Virement\",\"X\",\"\")","v":""},{"$f":"CONCATENATE(Quitances!H6)","v":""}]
["MARS",{"$f":"IF(Quitances!B7=0,\"\",Quitances!B7)","v":""},{"$f":"Quitances!C7","v":0},{"$f":"Quitances!E7","v":0},{"$f":"Quitances!D7","v":0},{"$f":"Quitances!F7","v":0},{"$f":"IF(Quitances!G7=\"Espèces\",\"X\",\"\")","v":""},{"$f":"IF(Quitances!G7=\"Chèque\",\"X\",\"\")","v":""},{"$f":"IF(Quitances!G7=\"Télépaiement/Virement\",\"X\",\"\")","v":""},{"$f":"CONCATENATE(Quitances!H7)","v":""}]
["AVRIL",{"$f":"IF(Quitances!B8=0,\"\",Quitances!B8)","v":""},{"$f":"Quitances!C8","v":0},{"$f":"Quitances!E8","v":0},{"$f":"Quitances!D8","v":0},{"$f":"Quitances!F8","v":0},{"$f":"IF(Quitances!G8=\"Espèces\",\"X\",\"\")","v":""},{"$f":"IF(Quitances!G8=\"Chèque\",\"X\",\"\")","v":""},{"$f":"IF(Quitances!G8=\"Télépaiement/Virement\",\"X\",\"\")","v":""},{"$f":"CONCATENATE(Quitances!H8)","v":""}]
["MAI",{"$f":"IF(Quitances!B9=0,\"\",Quitances!B9)","v":""},{"$f":"Quitances!C9","v":0},{"$f":"Quitances!E9","v":0},{"$f":"Quitances!D9","v":0},{"$f":"Quitances!F9","v":0},{"$f":"IF(Quitances!G9=\"Espèces\",\"X\",\"\")","v":""},{"$f":"IF(Quitances!G9=\"Chèque\",\"X\",\"\")","v":""},{"$f":"IF(Quitances!G9=\"Télépaiement/Virement\",\"X\",\"\")","v":""},{"$f":"CONCATENATE(Quitances!H9)","v":""}]
["JUIN",{"$f":"IF(Quitances!B10=0,\"\",Quitances!B10)","v":""},{"$f":"Quitances!C10","v":0},{"$f":"Quitances!E10","v":0},{"$f":"Quitances!D10","v":0},{"$f":"Quitances!F10","v":0},{"$f":"IF(Quitances!G10=\"Espèces\",\"X\",\"\")","v":""},{"$f":"IF(Quitances!G10=\"Chèque\",\"X\",\"\")","v":""},{"$f":"IF(Quitances!G10=\"Télépaiement/Virement\",\"X\",\"\")","v":""},{"$f":"CONCATENATE(Quitances!H10)","v":""}]
["JUILLET",{"$f":"IF(Quitances!B11=0,\"\",Quitances!B11)","v":""},{"$f":"Quitances!C11","v":0},{"$f":"Quitances!E11","v":0},{"$f":"Quitances!D11","v":0},{"$f":"Quitances!F11","v":0},{"$f":"IF(Quitances!G11=\"Espèces\",\"X\",\"\")","v":""},{"$f":"IF(Quitances!G11=\"Chèque\",\"X\",\"\")","v":""},{"$f":"IF(Quitances!G11=\"Télépaiement/Virement\",\"X\",\"\")","v":""},{"$f":"CONCATENATE(Quitances!H11)","v":""}]
["AOUT",{"$f":"IF(Quitances!B12=0,\"\",Quitances!B12)","v":""},{"$f":"Quitances!C12","v":0},{"$f":"Quitances!E12","v":0},{"$f":"Quitances!D12","v":0},{"$f":"Quitances!F12","v":0},{"$f":"IF(Quitances!G12=\"Espèces\",\"X\",\"\")","v":""},{"$f":"IF(Quitances!G12=\"Chèque\",\"X\",\"\")","v":""},{"$f":"IF(Quitances!G12=\"Télépaiement/Virement\",\"X\",\"\")","v":""},{"$f":"CONCATENATE(Quitances!H12)","v":""}]
["SEPTEMBRE",{"$f":"IF(Quitances!B13=0,\"\",Quitances!B13)","v":""},{"$f":"Quitances!C13","v":0},{"$f":"Quitances!E13","v":0},{"$f":"Quitances!D13","v":0},{"$f":"Quitances!F13","v":0},{"$f":"IF(Quitances!G13=\"Espèces\",\"X\",\"\")","v":""},{"$f":"IF(Quitances!G13=\"Chèque\",\"X\",\"\")","v":""},{"$f":"IF(Quitances!G13=\"Télépaiement/Virement\",\"X\",\"\")","v":""},{"$f":"CONCATENATE(Quitances!H13)","v":""}]
["OCTOBRE",{"$f":"IF(Quitances!B14=0,\"\",Quitances!B14)","v":""},{"$f":"Quitances!C14","v":0},{"$f":"Quitances!E14","v":0},{"$f":"Quitances!D14","v":0},{"$f":"Quitances!F14","v":0},{"$f":"IF(Quitances!G14=\"Espèces\",\"X\",\"\")","v":""},{"$f":"IF(Quitances!G14=\"Chèque\",\"X\",\"\")","v":""},{"$f":"IF(Quitances!G14=\"Télépaiement/Virement\",\"X\",\"\")","v":""},{"$f":"CONCATENATE(Quitances!H14)","v":""}]
["NOVEMBRE",{"$f":"IF(Quitances!B15=0,\"\",Quitances!B15)","v":""},{"$f":"Quitances!C15","v":0},{"$f":"Quitances!E15","v":0},{"$f":"Quitances!D15","v":0},{"$f":"Quitances!F15","v":0},{"$f":"IF(Quitances!G15=\"Espèces\",\"X\",\"\")","v":""},{"$f":"IF(Quitances!G15=\"Chèque\",\"X\",\"\")","v":""},{"$f":"IF(Quitances!G15=\"Télépaiement/Virement\",\"X\",\"\")","v":""},{"$f":"CONCATENATE(Quitances!H15)","v":""}]
["DECEMBRE",{"$f":"IF(Quitances!B16=0,\"\",Quitances!B16)","v":""},{"$f":"Quitances!C16","v":0},{"$f":"Quitances!E16","v":0},{"$f":"Quitances!D16","v":0},{"$f":"Quitances!F16","v":0},{"$f":"IF(Quitances!G16=\"Espèces\",\"X\",\"\")","v":""},{"$f":"IF(Quitances!G16=\"Chèque\",\"X\",\"\")","v":""},{"$f":"IF(Quitances!G16=\"Télépaiement/Virement\",\"X\",\"\")","v":""},{"$f":"CONCATENATE(Quitances!H16)","v":""}]
["TOTAL","-",{"$f":"SUM(C21:C32)","v":0},{"$f":"SUM(D21:D32)","v":0},0,0,"-","-","-","-"]
[]
["(1) En cas de paiement tardif (art. 208 du C.G.I)",null,null,null,null,null,"Cachet et signature (de l’employeur) "]
["(2) Arrondi au dirham supérieur.",null,null,null,null,null,{"$f":"\"à \"&G_Print!$E$8&\", le \"&TEXT(DAY(NOW()),\"00\")&\"/\"&TEXT(MONTH(NOW()),\"00\")&\"/\"&YEAR(NOW())","v":"à CASABLANCA, le 10/01/2019"}]
["(3) Cocher la case appropriée."]
[{"$f":"PagePrincipale!$B$1","v":"xEdiS 7.0.0.1"}]
["www.xedis.ma"]

{"sheet":"R_Print","index":9,"n_rows":9,"n_cols":3,"rows_kept":9,"cut":false,"hidden":true,"merged":[]}
[]
[]
[null,"Année :",{"$f":"EspacerChaine2(YEAR(SIMPL_Cell_exerciceFiscalAu))","v":"2  0  1  7                                "}]
[null,"Identifiant Fiscal :",{"$f":"EspacerChaine1(SIMPL_Cell_identifiantFiscal)","v":"9 9 9 9 9 9 9             "}]
[null,"Nom et Prénom ou Raison Sociale :",{"$f":"IF(SIMPL_Cell_societe=\"\",SIMPL_Cell_nom&\" \"&SIMPL_Cell_prenom,CONCATENATE(SIMPL_Cell_societe))","v":"MaSociete"}]
[null,"xedis :",{"$f":"PagePrincipale!$B$1","v":"xEdiS 7.0.0.1"}]
[null,"ICE1 :",{"$f":"EspacerChaine1(LEFT(SIMPL_Cell_identifiantCommun,9))","v":"0 0 0 0 0 0 0 0 0           "}]
[null,"ICE2 :",{"$f":"EspacerChaine1(MID(SIMPL_Cell_identifiantCommun,10,4))","v":"0 0 0 0                "}]
[null,"ICE3 :",{"$f":"EspacerChaine1(RIGHT(SIMPL_Cell_identifiantCommun,2))","v":"0 0                  "}]

{"sheet":"PagePrincipale","index":10,"n_rows":41,"n_cols":11,"rows_kept":41,"cut":false,"hidden":false,"merged":[[40,5,40,12],[24,5,24,12],[26,5,26,12],[10,5,10,12],[28,5,28,12],[30,5,30,12],[32,5,32,12],[34,5,34,12],[36,5,36,12],[22,5,22,12],[12,5,12,12],[14,5,14,12],[20,5,20,12],[16,5,16,12],[18,5,18,12],[0,1,3,9],[0,10,0,12],[8,5,8,12],[4,1,4,12],[38,5,38,12]]}
[null,"xEdiS 7.0.0.1",null,null,null,null,null,null,null,null,"www.xedis.ma"]
[]
[]
[]
[null,"IR - Déclaration des Traitements et Salaires"]
[]
[]
[]
[null,"Nom :"]
[]
[null,"Prénom :"]
[]
[null,"Raison Sociale :",null,null,null,"MaSociete"]
[]
[null,"Identifiant Fiscal :",null,null,null,9999999]
[]
[null,"Identifiant à la TP :",null,null,null,9999999]
[]
[null,"ICE :",null,null,null,"000000000000000"]
[]
[null,"Exercice Date Début :",null,null,null,"2017-01-01"]
[]
[null,"Exercice Date Fin :",null,null,null,"2017-12-31"]
[]
[null,"Adresse :",null,null,null,"MonAdresse"]
[]
[null,"Ville / Commune :",null,null,null,"CASABLANCA-ANFA (AR)"]
[]
[null,"N° CIN :"]
[]
[null,"N° Carte de Séjour :"]
[]
[null,"N° CNSS :",null,null,null,9999999]
[]
[null,"N° RC :",null,null,null,9999999]
[]
[null,"Téléphone :",null,null,null,"0522000000"]
[]
[null,"Fax :",null,null,null,"0522000000"]
[]
[null,"e-mail :",null,null,null,"monemail@masociete.com"]

{"sheet":"Permanents","index":11,"n_rows":16,"n_cols":48,"rows_kept":16,"cut":false,"hidden":false,"merged":[[0,0,0,47],[3,18,3,19],[3,20,3,21],[3,22,3,23],[3,24,3,25],[3,26,3,27],[3,28,3,29],[3,30,3,31],[3,32,3,33],[3,34,3,35],[3,36,3,37]]}
["Etat Concernant le Personnel Permanent"]
[{"$f":"CONCATENATE(PagePrincipale!$F$13)","v":"MaSociete"},null,null,null,null,null,null,null,null,null,null,null,null,null,null,null,null,null,null,null,null,null,null,null,null,null,null,null,null,null,null,null,null,null,null,null,null,null,null,null,null,null,null,null,null,null,null,{"$f":"PeriodeArrete_DuAu()","v":"Du 1/1/2017 Au 31/12/2017"}]
[]
["Matricule Salarié","Nom Salarié","Prénom Salarié","Adresse Salarié","N° CIN","N° Carte de Séjour","N° CNSS","N° PPR","N° Identifiant Fiscal","Situation Familiale","Sportif (ve)","Nombre de réductions pour charges de famille","Salaire de base annuel","Période en Jours","Montant brut des traitements, salaires et émoluments","Montant des avantages en argent ou en nature","Montant des indemnités versées à titre de frais professionnels","Montant des éléments exonérés","Elément exonéré 1",null,"Elément exonéré 2",null,"Elément exonéré 3",null,"Elément exonéré 4",null,"Elément exonéré 5",null,"Elément exonéré 6",null,"Elément exonéré 7",null,"Elément exonéré 8",null,"Elément exonéré 9",null,"Elément exonéré 10",null,"Montant du revenu brut imposable","Taux des frais professionnels ou d'abattement en %","Montant des frais professionnels ou d’abattement","Montant des cotisations d'assurance retraite","Montant des autres retenues","Montant des échéances prélevées","Date de l'AC","Date du PH","Montant du revenu net imposable","Montant de l'IR prélevé"]
[null,null,null,null,null,null,null,null,null,null,null,null,null,null,"(1)","(2)","(3)","(4)","Nature","Montant","Nature","Montant","Nature","Montant","Nature","Montant","Nature","Montant","Nature","Montant","Nature","Montant","Nature","Montant","Nature","Montant","Nature","Montant","(5)",null,"(6)","(7)","(8)","(9)",null,null,"(10)"]
[null,null,null,null,null,null,null,null,null,null,null,null,null,null,null,null,null,null,null,null,null,null,null,null,null,null,null,null,null,null,null,null,null,null,null,null,null,null,{"$f":"SUM(O6,P6,Q6,-R6)","v":0}," 20 %",{"$f":"DTS_2017_MontantFraisProf(AM6,AN6,N6,DTS_2017_PlafondFraisProf())","v":0},null,null,null,null,null,{"$f":"DTS_2017_NetImposable(AM6,AO6,AP6,AQ6,AR6)","v":0},{"$f":"DTS_2017_MontantIR(AU6,N6,L6)","v":0}]
[null,null,null,null,null,null,null,null,null,null,null,null,null,null,null,null,null,null,null,null,null,null,null,null,null,null,null,null,null,null,null,null,null,null,null,null,null,null,0," 20 %",{"$f":"DTS_2017_MontantFraisProf(AM7,AN7,N7,DTS_2017_PlafondFraisProf())","v":0},null,null,null,null,null,0,0]
[null,null,null,null,null,null,null,null,null,null,null,null,null,null,null,null,null,null,null,null,null,null,null,null,null,null,null,null,null,null,null,null,null,null,null,null,null,null,0," 20 %",{"$f":"DTS_2017_MontantFraisProf(AM8,AN8,N8,DTS_2017_PlafondFraisProf())","v":0},null,null,null,null,null,0,0]
[null,null,null,null,null,null,null,null,null,null,null,null,null,null,null,null,null,null,null,null,null,null,null,null,null,null,null,null,null,null,null,null,null,null,null,null,null,null,0," 20 %",{"$f":"DTS_2017_MontantFraisProf(AM9,AN9,N9,DTS_2017_PlafondFraisProf())","v":0},null,null,null,null,null,0,0]
[null,null,null,null,null,null,null,null,null,null,null,null,null,null,null,null,null,null,null,null,null,null,null,null,null,null,null,null,null,null,null,null,null,null,null,null,null,null,0," 20 %",{"$f":"DTS_2017_MontantFraisProf(AM10,AN10,N10,DTS_2017_PlafondFraisProf())","v":0},null,null,null,null,null,0,0]
[null,null,null,null,null,null,null,null,null,null,null,null,null,null,null,null,null,null,null,null,null,null,null,null,null,null,null,null,null,null,null,null,null,null,null,null,null,null,0," 20 %",{"$f":"DTS_2017_MontantFraisProf(AM11,AN11,N11,DTS_2017_PlafondFraisProf())","v":0},null,null,null,null,null,0,0]
[null,null,null,null,null,null,null,null,null,null,null,null,null,null,null,null,null,null,null,null,null,null,null,null,null,null,null,null,null,null,null,null,null,null,null,null,null,null,0," 20 %",{"$f":"DTS_2017_MontantFraisProf(AM12,AN12,N12,DTS_2017_PlafondFraisProf())","v":0},null,null,null,null,null,0,0]
[null,null,null,null,null,null,null,null,null,null,null,null,null,null,null,null,null,null,null,null,null,null,null,null,null,null,null,null,null,null,null,null,null,null,null,null,null,null,0," 20 %",{"$f":"DTS_2017_MontantFraisProf(AM13,AN13,N13,DTS_2017_PlafondFraisProf())","v":0},null,null,null,null,null,0,0]
[null,null,null,null,null,null,null,null,null,null,null,null,null,null,null,null,null,null,null,null,null,null,null,null,null,null,null,null,null,null,null,null,null,null,null,null,null,null,0," 20 %",{"$f":"DTS_2017_MontantFraisProf(AM14,AN14,N14,DTS_2017_PlafondFraisProf())","v":0},null,null,null,null,null,0,0]
[null,null,null,null,null,null,null,null,null,null,null,null,null,null,null,null,null,null,null,null,null,null,null,null,null,null,null,null,null,null,null,null,null,null,null,null,null,null,0," 20 %",{"$f":"DTS_2017_MontantFraisProf(AM15,AN15,N15,DTS_2017_PlafondFraisProf())","v":0},null,null,null,null,null,0,0]
["Total",null,null,null,null,null,null,null,null,null,null,null,null,null,{"$f":"SUM(INDIRECT(ADDRESS(ROW(O$5)+1,COLUMN(),4,TRUE)&\":\"&ADDRESS(ROW()-1,COLUMN(),4,TRUE)))","v":0},0,0,0,"-",0,"-",0,"-",0,"-",0,"-",0,"-",0,"-",0,"-",0,"-",0,"-",0,0,"-",{"$f":"SUM(INDIRECT(ADDRESS(ROW(AO$5)+1,COLUMN(),4,TRUE)&\":\"&ADDRESS(ROW()-1,COLUMN(),4,TRUE)))","v":0},0,0,0,"-","-",{"$f":"SUM(INDIRECT(ADDRESS(ROW(AU$5)+1,COLUMN(),4,TRUE)&\":\"&ADDRESS(ROW()-1,COLUMN(),4,TRUE)))","v":0},0]

{"sheet":"Occasionnels","index":12,"n_rows":15,"n_cols":9,"rows_kept":15,"cut":false,"hidden":false,"merged":[[0,0,0,8]]}
["Etat Concernant les Rémunerations et Indemnites Occasionnelles"]
[{"$f":"CONCATENATE(PagePrincipale!$F$13)","v":"MaSociete"},null,null,null,null,null,null,null,{"$f":"PeriodeArrete_DuAu()","v":"Du 1/1/2017 Au 31/12/2017"}]
[]
["Nom","Prénom","Adresse","N° CIN","N° Carte de Séjour","N° Identifiant Fiscal","Profession","Montant brut des sommes payées","Montant de l'IR prélevé"]
[]
[]
[]
[]
[]
[]
[]
[]
[]
[]
["Total",null,null,null,null,null,null,{"$f":"SUM(INDIRECT(ADDRESS(ROW(H$4)+1,COLUMN(),4,TRUE)&\":\"&ADDRESS(ROW()-1,COLUMN(),4,TRUE)))","v":0},0]

{"sheet":"Stagiaires","index":13,"n_rows":15,"n_cols":12,"rows_kept":15,"cut":false,"hidden":false,"merged":[[0,0,0,11]]}
["Liste des Stagiaires"]
[{"$f":"CONCATENATE(PagePrincipale!$F$13)","v":"MaSociete"},null,null,null,null,null,null,null,null,null,null,{"$f":"PeriodeArrete_DuAu()","v":"Du 1/1/2017 Au 31/12/2017"}]
[]
["Nom","Prénom","Adresse personnelle","N° CIN","N° Carte de Séjour","N° CNSS","N° Identifiant Fiscal","Montant brut des traitements, salaires et émoluments","Montant brut des indemnités payées en argent ou en nature","Montant des retenues opérées\n\n\n(2) ","Montant du revenu net imposable ","Période en Jours"]
[]
[]
[]
[]
[]
[]
[]
[]
[]
[]
["Total",null,null,null,null,null,null,{"$f":"SUM(INDIRECT(ADDRESS(ROW(H$4)+1,COLUMN(),4,TRUE)&\":\"&ADDRESS(ROW()-1,COLUMN(),4,TRUE)))","v":0},0,0,0,"-"]

{"sheet":"StockOptions","index":14,"n_rows":15,"n_cols":19,"rows_kept":15,"cut":false,"hidden":false,"merged":[[0,0,0,18]]}
["Etat Concernant les Bénéficiaires d’Options de Souscription ou d’Achat d’Actions  ou de Distribution d’Actions Gratuites (Article 79-III du CGI)"]
[{"$f":"CONCATENATE(PagePrincipale!$F$13)","v":"MaSociete"},null,null,null,null,null,null,null,null,null,null,null,null,null,null,null,null,null,{"$f":"PeriodeArrete_DuAu()","v":"Du 1/1/2017 Au 31/12/2017"}]
[]
["Nom","Prénom","Adresse personnelle","N° CIN","N° Carte de Séjour","N° CNSS","N° Identifiant Fiscal","Organismes  distributeurs (sociétés résidentes ou non résidentes)","Nombre d'actions acquises\n\n(a)","Nombre d'actions distribuées gratuitement\n(b)","Prix d’acquisition (payé par le salarié ou dirigeant)","Date d’attribution","Valeur de l'action à la date d’attribution","Date de la levée d’option","Valeur de l'action à la date de levée d’option","Montant de l’abondement\n\n\n(1)","Date de cession\n\n\n(2)   ","Nombre d'actions cédées","Complément de salaire"]
[]
[]
[]
[]
[]
[]
[]
[]
[]
[]
["Total",null,null,null,null,null,null,null,{"$f":"SUM(INDIRECT(ADDRESS(ROW(I$4)+1,COLUMN(),4,TRUE)&\":\"&ADDRESS(ROW()-1,COLUMN(),4,TRUE)))","v":0},{"$f":"SUM(INDIRECT(ADDRESS(ROW(J$4)+1,COLUMN(),4,TRUE)&\":\"&ADDRESS(ROW()-1,COLUMN(),4,TRUE)))","v":0},0,"-",{"$f":"SUM(INDIRECT(ADDRESS(ROW(M$4)+1,COLUMN(),4,TRUE)&\":\"&ADDRESS(ROW()-1,COLUMN(),4,TRUE)))","v":0},"-",{"$f":"SUM(INDIRECT(ADDRESS(ROW(O$4)+1,COLUMN(),4,TRUE)&\":\"&ADDRESS(ROW()-1,COLUMN(),4,TRUE)))","v":0},{"$f":"SUM(INDIRECT(ADDRESS(ROW(P$4)+1,COLUMN(),4,TRUE)&\":\"&ADDRESS(ROW()-1,COLUMN(),4,TRUE)))","v":0},"-",{"$f":"SUM(INDIRECT(ADDRESS(ROW(R$4)+1,COLUMN(),4,TRUE)&\":\"&ADDRESS(ROW()-1,COLUMN(),4,TRUE)))","v":0},{"$f":"SUM(INDIRECT(ADDRESS(ROW(S$4)+1,COLUMN(),4,TRUE)&\":\"&ADDRESS(ROW()-1,COLUMN(),4,TRUE)))","v":0}]

{"sheet":"Epargnes","index":15,"n_rows":15,"n_cols":11,"rows_kept":15,"cut":false,"hidden":false,"merged":[[0,0,0,10]]}
["Etat Concernant les Bénéficiaires d’Abondement dans le Cadre d’un Plan d’Epargne Entreprise (Article 79-IV du CGI)"]
[{"$f":"CONCATENATE(PagePrincipale!$F$13)","v":"MaSociete"},null,null,null,null,null,null,null,null,null,{"$f":"PeriodeArrete_DuAu()","v":"Du 1/1/2017 Au 31/12/2017"}]
[]
["Nom","Prénom","Adresse personnelle","Ville","N° CIN","N° Carte de Séjour","N° du plan","Durée\n(en années)","Date d’ouverture","Montant de l’abondement versé","Montant annuel du revenu salarial imposable"]
[]
[]
[]
[]
[]
[]
[]
[]
[]
[]
["Total",null,null,null,null,null,"-","-","-",{"$f":"SUM(INDIRECT(ADDRESS(ROW(J$4)+1,COLUMN(),4,TRUE)&\":\"&ADDRESS(ROW()-1,COLUMN(),4,TRUE)))","v":0},{"$f":"SUM(INDIRECT(ADDRESS(ROW(K$4)+1,COLUMN(),4,TRUE)&\":\"&ADDRESS(ROW()-1,COLUMN(),4,TRUE)))","v":0}]

{"sheet":"SalariesExoneres","index":16,"n_rows":10,"n_cols":15,"rows_kept":10,"cut":false,"hidden":false,"merged":[[0,0,0,14]]}
["Liste des Salariés Bénéficiant de l'Exonération (Article 57-20° du CGI)"]
[{"$f":"CONCATENATE(PagePrincipale!$F$13)","v":"MaSociete"},null,null,null,null,null,null,null,null,null,null,null,null,null,{"$f":"PeriodeArrete_DuAu()","v":"Du 1/1/2017 Au 31/12/2017"}]
[]
["Nom","Prénom","Adresse personnelle","N° CIN","N° Carte de Séjour","N° CNSS","N° Identifiant Fiscal","Date de Recrutement","Montant brut des traitements, salaires et émoluments","Montant brut des indemnités payées en argent ou en nature","Montant des indemnités versées à titre de frais professionnels","Montant du revenu brut imposable ","Montant des retenues opérées\n\n\n(2) ","Montant du revenu net imposable","Période en Jours"]
[]
[]
[]
[]
[]
["Total",null,null,null,null,null,null,null,{"$f":"SUM(INDIRECT(ADDRESS(ROW(I$4)+1,COLUMN(),4,TRUE)&\":\"&ADDRESS(ROW()-1,COLUMN(),4,TRUE)))","v":0},0,0,0,0,0,"-"]

{"sheet":"Doctorants","index":17,"n_rows":15,"n_cols":6,"rows_kept":15,"cut":false,"hidden":false,"merged":[[0,0,0,5]]}
["Liste des Doctorants"]
[{"$f":"CONCATENATE(PagePrincipale!$F$13)","v":"MaSociete"},null,null,null,null,"Du 1/1/2017 Au 31/12/2017"]
[]
["Nom","Prénom","Adresse personnelle","N° CIN","N° Carte de Séjour","Montant brut des rémunérations et indemnités"]
[]
[]
[]
[]
[]
[]
[]
[]
[]
[]
["Total",null,null,null,null,{"$f":"SUM(INDIRECT(ADDRESS(ROW(F$4)+1,COLUMN(),4,TRUE)&\":\"&ADDRESS(ROW()-1,COLUMN(),4,TRUE)))","v":0}]

{"sheet":"Quitances","index":18,"n_rows":17,"n_cols":8,"rows_kept":17,"cut":false,"hidden":false,"merged":[[0,0,0,7]]}
["Détail des versements"]
[{"$f":"CONCATENATE(PagePrincipale!$F$13)","v":"MaSociete"},null,null,null,null,null,null,{"$f":"PeriodeArrete_DuAu()","v":"Du 1/1/2017 Au 31/12/2017"}]
[]
["Mois","Date","Principal","Majorations","Pénalités","Total","Mode de Paiement","Quittance"]
["Janvier",null,null,null,null,{"$f":"+C5+D5+E5","v":0}]
["Février",null,null,null,null,{"$f":"+C6+D6+E6","v":0}]
["Mars",null,null,null,null,0]
["Avril",null,null,null,null,0]
["Mai",null,null,null,null,0]
["Juin",null,null,null,null,0]
["Juillet",null,null,null,null,0]
["Août",null,null,null,null,0]
["Septembre",null,null,null,null,0]
["Octobre",null,null,null,null,0]
["Novembre",null,null,null,null,0]
["Décembre",null,null,null,null,0]
["Total","-",{"$f":"SUM(INDIRECT(ADDRESS(ROW(C$4)+1,COLUMN(),4,TRUE)&\":\"&ADDRESS(ROW()-1,COLUMN(),4,TRUE)))","v":0},{"$f":"SUM(INDIRECT(ADDRESS(ROW(D$4)+1,COLUMN(),4,TRUE)&\":\"&ADDRESS(ROW()-1,COLUMN(),4,TRUE)))","v":0},0,0,"-","-"]

{"sheet":"Erreurs_XML","index":19,"n_rows":5,"n_cols":3,"rows_kept":5,"cut":false,"hidden":false,"merged":[[0,0,0,2]]}
["xEdiS - Rapports des erreurs XML"]
[{"$f":"CONCATENATE(PagePrincipale!$F$13)","v":"MaSociete"},null,{"$f":"PeriodeArrete_DuAu()","v":"Du 1/1/2017 Au 31/12/2017"}]
[]
[]
["Adresse","Contenu","Remarque"]

{"sheet":"Complements","index":20,"n_rows":1794,"n_cols":9,"rows_kept":1794,"cut":false,"hidden":true,"merged":[[2,2,2,5]]}
[]
[]
["Module","Réf","Version",null,null,null,"XML","PDF","Caller"]
["XEDIS_SIMPLIR_DTS",{"$f":"CONCATENATE(C4,D4,E4,F4)","v":"7001"},7,0,0,1,1,1,"EXCEL"]
[]
["Tableau","Réf","Feuille","Adresse"]
["Etat Concernant le Personnel Permanent",null,{"$f":"WorkSheetName(Permanents!A1)","v":"Permanents"},"A1"]
["Etat Concernant les Rémunerations et Indemnites Occasionnelles",null,{"$f":"WorkSheetName(Occasionnels!A1)","v":"Occasionnels"},"A1"]
["Liste des Stagiaires",null,{"$f":"WorkSheetName(Stagiaires!A1)","v":"Stagiaires"},"A1"]
["Etat Concernant les Bénéficiaires d’Options de Souscription ou d’Achat d’Actions ou de Distribution d’Actions Gratuites (Article 79-III du CGI)",null,{"$f":"WorkSheetName(StockOptions!A1)","v":"StockOptions"},"A1"]
["Etat Concernant les Bénéficiaires d’Abondement dans le Cadre d’un Plan d’Epargne Entreprise (Article 79-IV du CGI)",null,{"$f":"WorkSheetName(Epargnes!A1)","v":"Epargnes"},"A1"]
["Liste des Salariés Bénéficiant de l'Exonération (Article 57-20° du CGI)",null,"SalariesExoneres","A1"]
["Liste des Doctorants",null,"Doctorants","A1"]
["Détail des versements",null,{"$f":"WorkSheetName(Quitances!A1)","v":"Quitances"},"A1"]
["Rapport des erreurs XML",null,"Erreurs_XML","A1"]
[]
["Navigation","Feuille","Cellule","Color"]
["Last Sheet/Cell","Erreurs_XML","$A$1:$C$1"]
["LastActiveCell",{"$f":"WorkSheetName(PagePrincipale!$A$1)","v":"PagePrincipale"},"$A$8"]
[]
["Selection Tableau"]
[1,{"$f":"OFFSET($C$6,SIMPL_Liste_Tableaux_Selection,0)","v":"Permanents"},{"$f":"OFFSET($D$6,SIMPL_Liste_Tableaux_Selection,0)","v":"A1"}]
[]
["Variable","Valeur","Colonne","Nbre Lignes","Nbre Vides","Nbre Non Vides","Validation"]
["SIMPL_CheckVersion_Nbre",0]
["SIMPL_CheckVersion_Option",false]
["SIMPL_Cell_villecommune_id",{"$f":"IF(ISNA(OFFSET(SIMPL_DeclarationSalaires_Entete_ReferentielCommunes,MATCH(SIMPL_Cell_villecommune,SIMPL_DeclarationSalaires_ReferentielCommunes,0),1)),\"zzz\",OFFSET(SIMPL_DeclarationSalaires_Entete_ReferentielCommunes,MATCH(SIMPL_Cell_villecommune,SIMPL_DeclarationSalaires_ReferentielCommunes,0),1))","v":"141.01.01"}]
["Permanents_Ligne_Deb",{"$f":"ROW(SIMPL_DeclarationSalaires_Permanents_Entete_TraitementsEtSalaires)+1","v":6},null,{"$f":"+B29-B28+1","v":10}]
["Permanents_Ligne_Fin",{"$f":"ROW(SIMPL_DeclarationSalaires_Permanents_Total_TraitementsEtSalaires)-1","v":15}]
["SIMPL_DeclarationSalaires_Permanents_Entete_SalarieCode",{"$f":"ADDRESS($B$28,C30,4,TRUE,$C$7)&\":\"&ADDRESS($B$29,C30,4,TRUE)","v":"Permanents!A6:A15"},{"$f":"COLUMN(SIMPL_DeclarationSalaires_Permanents_Entete_SalarieCode)","v":1},{"$f":"+$D$28","v":10},{"$f":"COUNTBLANK(INDIRECT(B30))","v":10},{"$f":"+D30-E30","v":0},"Unique"]
["SIMPL_DeclarationSalaires_Permanents_Entete_SalarieNom",{"$f":"ADDRESS($B$28,C31,4,TRUE,$C$7)&\":\"&ADDRESS($B$29,C31,4,TRUE)","v":"Permanents!B6:B15"},{"$f":"COLUMN(SIMPL_DeclarationSalaires_Permanents_Entete_SalarieNom)","v":2},{"$f":"+$D$28","v":10},{"$f":"COUNTBLANK(INDIRECT(B31))","v":10},{"$f":"+D31-E31","v":0}]
["SIMPL_DeclarationSalaires_Permanents_Entete_SalariePrenom","Permanents!C6:C15",{"$f":"COLUMN(SIMPL_DeclarationSalaires_Permanents_Entete_SalariePrenom)","v":3},10,10,0]
["SIMPL_DeclarationSalaires_Permanents_Entete_SalarieAdresse","Permanents!D6:D15",{"$f":"COLUMN(SIMPL_DeclarationSalaires_Permanents_Entete_SalarieAdresse)","v":4},10,10,0]
["SIMPL_DeclarationSalaires_Permanents_Entete_SalarieCIN","Permanents!E6:E15",{"$f":"COLUMN(SIMPL_DeclarationSalaires_Permanents_Entete_SalarieCIN)","v":5},10,10,0,"Unique"]
["SIMPL_DeclarationSalaires_Permanents_Entete_SalarieCDS","Permanents!F6:F15",{"$f":"COLUMN(SIMPL_DeclarationSalaires_Permanents_Entete_SalarieCDS)","v":6},10,10,0,"Unique"]
["SIMPL_DeclarationSalaires_Permanents_Entete_SalarieCNSS","Permanents!G6:G15",{"$f":"COLUMN(SIMPL_DeclarationSalaires_Permanents_Entete_SalarieCNSS)","v":7},10,10,0,"Unique"]
["SIMPL_DeclarationSalaires_Permanents_Entete_SalariePPR","Permanents!H6:H15",{"$f":"COLUMN(SIMPL_DeclarationSalaires_Permanents_Entete_SalariePPR)","v":8},10,10,0,"Unique"]
["SIMPL_DeclarationSalaires_Permanents_Entete_SalarieIF","Permanents!I6:I15",{"$f":"COLUMN(SIMPL_DeclarationSalaires_Permanents_Entete_SalarieIF)","v":9},10,10,0,"Unique"]
["SIMPL_DeclarationSalaires_Permanents_Entete_SalarieSitFamiliale","Permanents!J6:J15",{"$f":"COLUMN(SIMPL_DeclarationSalaires_Permanents_Entete_SalarieSitFamiliale)","v":10},10,10,0,"Liste","SIMPL_DeclarationSalaires_ReferentielSitFamiliale"]
["SIMPL_DeclarationSalaires_Permanents_Entete_SalarieSportif","Permanents!K6:K15",{"$f":"COLUMN(SIMPL_DeclarationSalaires_Permanents_Entete_SalarieSportif)","v":11},10,{"$f":"COUNTBLANK(INDIRECT(B40))","v":10},{"$f":"+D40-E40","v":0},"Liste","SIMPL_DeclarationSalaires_ReferentielOuiNon"]
["SIMPL_DeclarationSalaires_Permanents_Entete_SalarieNbrePersonnesACharge","Permanents!L6:L15",{"$f":"COLUMN(SIMPL_DeclarationSalaires_Permanents_Entete_SalarieNbrePersonnesACharge)","v":12},10,10,0,"MinMax",0,6]
["SIMPL_DeclarationSalaires_Permanents_Entete_SalaireDeBaseAnnuel","Permanents!M6:M15",{"$f":"COLUMN(SIMPL_DeclarationSalaires_Permanents_Entete_SalaireDeBaseAnnuel)","v":13},10,{"$f":"COUNTBLANK(INDIRECT(B42))","v":10},{"$f":"+D42-E42","v":0},"Min",0]
["SIMPL_DeclarationSalaires_Permanents_Entete_NbreJours","Permanents!N6:N15",{"$f":"COLUMN(SIMPL_DeclarationSalaires_Permanents_Entete_NbreJours)","v":14},10,{"$f":"COUNTIF(INDIRECT(B43),0)+COUNTBLANK(INDIRECT(B43))","v":10},0,"Min",0]
["SIMPL_DeclarationSalaires_Permanents_Entete_TraitementsEtSalaires","Permanents!O6:O15",{"$f":"COLUMN(SIMPL_DeclarationSalaires_Permanents_Entete_TraitementsEtSalaires)","v":15},10,10,0,"Min",0]
["SIMPL_DeclarationSalaires_Permanents_Entete_Avantages","Permanents!P6:P15",{"$f":"COLUMN(SIMPL_DeclarationSalaires_Permanents_Entete_Avantages)","v":16},10,10,0,"Min",0]
["SIMPL_DeclarationSalaires_Permanents_Entete_Indemnites","Permanents!Q6:Q15",{"$f":"COLUMN(SIMPL_DeclarationSalaires_Permanents_Entete_Indemnites)","v":17},10,10,0,"Min",0]
["SIMPL_DeclarationSalaires_Permanents_Entete_ElementsExoneres","Permanents!R6:R15",{"$f":"COLUMN(SIMPL_DeclarationSalaires_Permanents_Entete_ElementsExoneres)","v":18},10,10,0,"Min",0]
["SIMPL_DeclarationSalaires_Permanents_Entete_ElementExonere_1_Nature","Permanents!S6:S15",{"$f":"COLUMN(SIMPL_DeclarationSalaires_Permanents_Entete_ElementExonere_1_Nature)","v":19},10,{"$f":"COUNTBLANK(INDIRECT(B48))","v":10},{"$f":"+D48-E48","v":0},"ListeNature","SIMPL_DeclarationSalaires_NatureElementExonere"]
["SIMPL_DeclarationSalaires_Permanents_Entete_ElementExonere_1_Montant","Permanents!T6:T15",{"$f":"COLUMN(SIMPL_DeclarationSalaires_Permanents_Entete_ElementExonere_1_Montant)","v":20},10,10,0,"Min",0]
["SIMPL_DeclarationSalaires_Permanents_Entete_ElementExonere_2_Nature","Permanents!U6:U15",{"$f":"COLUMN(SIMPL_DeclarationSalaires_Permanents_Entete_ElementExonere_2_Nature)","v":21},10,10,0,"ListeNature","SIMPL_DeclarationSalaires_NatureElementExonere"]
["SIMPL_DeclarationSalaires_Permanents_Entete_ElementExonere_2_Montant","Permanents!V6:V15",{"$f":"COLUMN(SIMPL_DeclarationSalaires_Permanents_Entete_ElementExonere_2_Montant)","v":22},10,10,0,"Min",0]
["SIMPL_DeclarationSalaires_Permanents_Entete_ElementExonere_3_Nature","Permanents!W6:W15",{"$f":"COLUMN(SIMPL_DeclarationSalaires_Permanents_Entete_ElementExonere_3_Nature)","v":23},10,10,0,"ListeNature","SIMPL_DeclarationSalaires_NatureElementExonere"]
["SIMPL_DeclarationSalaires_Permanents_Entete_ElementExonere_3_Montant","Permanents!X6:X15",{"$f":"COLUMN(SIMPL_DeclarationSalaires_Permanents_Entete_ElementExonere_3_Montant)","v":24},10,10,0,"Min",0]
["SIMPL_DeclarationSalaires_Permanents_Entete_ElementExonere_4_Nature","Permanents!Y6:Y15",{"$f":"COLUMN(SIMPL_DeclarationSalaires_Permanents_Entete_ElementExonere_4_Nature)","v":25},10,10,0,"ListeNature","SIMPL_DeclarationSalaires_NatureElementExonere"]
["SIMPL_DeclarationSalaires_Permanents_Entete_ElementExonere_4_Montant","Permanents!Z6:Z15",{"$f":"COLUMN(SIMPL_DeclarationSalaires_Permanents_Entete_ElementExonere_4_Montant)","v":26},10,10,0,"Min",0]
["SIMPL_DeclarationSalaires_Permanents_Entete_ElementExonere_5_Nature","Permanents!AA6:AA15",{"$f":"COLUMN(SIMPL_DeclarationSalaires_Permanents_Entete_ElementExonere_5_Nature)","v":27},10,10,0,"ListeNature","SIMPL_DeclarationSalaires_NatureElementExonere"]
["SIMPL_DeclarationSalaires_Permanents_Entete_ElementExonere_5_Montant","Permanents!AB6:AB15",{"$f":"COLUMN(SIMPL_DeclarationSalaires_Permanents_Entete_ElementExonere_5_Montant)","v":28},10,10,0,"Min",0]
["SIMPL_DeclarationSalaires_Permanents_Entete_ElementExonere_6_Nature","Permanents!AC6:AC15",{"$f":"COLUMN(SIMPL_DeclarationSalaires_Permanents_Entete_ElementExonere_6_Nature)","v":29},10,10,0,"ListeNature","SIMPL_DeclarationSalaires_NatureElementExonere"]
["SIMPL_DeclarationSalaires_Permanents_Entete_ElementExonere_6_Montant","Permanents!AD6:AD15",{"$f":"COLUMN(SIMPL_DeclarationSalaires_Permanents_Entete_ElementExonere_6_Montant)","v":30},10,10,0,"Min",0]
["SIMPL_DeclarationSalaires_Permanents_Entete_ElementExonere_7_Nature","Permanents!AE6:AE15",{"$f":"COLUMN(SIMPL_DeclarationSalaires_Permanents_Entete_ElementExonere_7_Nature)","v":31},10,10,0,"ListeNature","SIMPL_DeclarationSalaires_NatureElementExonere"]
["SIMPL_DeclarationSalaires_Permanents_Entete_ElementExonere_7_Montant","Permanents!AF6:AF15",{"$f":"COLUMN(SIMPL_DeclarationSalaires_Permanents_Entete_ElementExonere_7_Montant)","v":32},10,10,0,"Min",0]
["SIMPL_DeclarationSalaires_Permanents_Entete_ElementExonere_8_Nature","Permanents!AG6:AG15",{"$f":"COLUMN(SIMPL_DeclarationSalaires_Permanents_Entete_ElementExonere_8_Nature)","v":33},10,10,0,"ListeNature","SIMPL_DeclarationSalaires_NatureElementExonere"]
["SIMPL_DeclarationSalaires_Permanents_Entete_ElementExonere_8_Montant","Permanents!AH6:AH15",{"$f":"COLUMN(SIMPL_DeclarationSalaires_Permanents_Entete_ElementExonere_8_Montant)","v":34},10,10,0,"Min",0]
["SIMPL_DeclarationSalaires_Permanents_Entete_ElementExonere_9_Nature","Permanents!AI6:AI15",{"$f":"COLUMN(SIMPL_DeclarationSalaires_Permanents_Entete_ElementExonere_9_Nature)","v":35},10,10,0,"ListeNature","SIMPL_DeclarationSalaires_NatureElementExonere"]
["SIMPL_DeclarationSalaires_Permanents_Entete_ElementExonere_9_Montant","Permanents!AJ6:AJ15",{"$f":"COLUMN(SIMPL_DeclarationSalaires_Permanents_Entete_ElementExonere_9_Montant)","v":36},10,10,0,"Min",0]
["SIMPL_DeclarationSalaires_Permanents_Entete_ElementExonere_10_Nature","Permanents!AK6:AK15",{"$f":"COLUMN(SIMPL_DeclarationSalaires_Permanents_Entete_ElementExonere_10_Nature)","v":37},10,10,0,"ListeNature","SIMPL_DeclarationSalaires_NatureElementExonere"]
["SIMPL_DeclarationSalaires_Permanents_Entete_ElementExonere_10_Montant","Permanents!AL6:AL15",{"$f":"COLUMN(SIMPL_DeclarationSalaires_Permanents_Entete_ElementExonere_10_Montant)","v":38},10,10,0,"Min",0]
["SIMPL_DeclarationSalaires_Permanents_Entete_BrutImposable","Permanents!AM6:AM15",{"$f":"COLUMN(SIMPL_DeclarationSalaires_Permanents_Entete_BrutImposable)","v":39},10,{"$f":"COUNTIF(INDIRECT(B68),0)+COUNTBLANK(INDIRECT(B68))","v":10},0,"Min",0]
["SIMPL_DeclarationSalaires_Permanents_Entete_FraisProfTaux","Permanents!AN6:AN15",{"$f":"COLUMN(SIMPL_DeclarationSalaires_Permanents_Entete_FraisProfTaux)","v":40},10,{"$f":"+E70","v":10},0,"Liste","SIMPL_DeclarationSalaires_ReferentielTaux"]
["SIMPL_DeclarationSalaires_Permanents_Entete_FraisProfMontant","Permanents!AO6:AO15",{"$f":"COLUMN(SIMPL_DeclarationSalaires_Permanents_Entete_FraisProfMontant)","v":41},10,{"$f":"COUNTIF(INDIRECT(B70),0)+COUNTBLANK(INDIRECT(B70))","v":10},0,"Min",0]
["SIMPL_DeclarationSalaires_Permanents_Entete_RetenuesRetraites","Permanents!AP6:AP15",{"$f":"COLUMN(SIMPL_DeclarationSalaires_Permanents_Entete_RetenuesRetraites)","v":42},10,10,0,"Min",0]
["SIMPL_DeclarationSalaires_Permanents_Entete_RetenuesSocialesAutres","Permanents!AQ6:AQ15",{"$f":"COLUMN(SIMPL_DeclarationSalaires_Permanents_Entete_RetenuesSocialesAutres)","v":43},10,10,0,"Min",0]
["SIMPL_DeclarationSalaires_Permanents_Entete_EcheancesPrelevees","Permanents!AR6:AR15",{"$f":"COLUMN(SIMPL_DeclarationSalaires_Permanents_Entete_EcheancesPrelevees)","v":44},10,10,0,"Min",0]
["SIMPL_DeclarationSalaires_Permanents_Entete_DateAC","Permanents!AS6:AS15",{"$f":"COLUMN(SIMPL_DeclarationSalaires_Permanents_Entete_DateAC)","v":45},10,10,0]
["SIMPL_DeclarationSalaires_Permanents_Entete_DatePH","Permanents!AT6:AT15",{"$f":"COLUMN(SIMPL_DeclarationSalaires_Permanents_Entete_DatePH)","v":46},10,10,0]
["SIMPL_DeclarationSalaires_Permanents_Entete_NetImposable","Permanents!AU6:AU15",{"$f":"COLUMN(SIMPL_DeclarationSalaires_Permanents_Entete_NetImposable)","v":47},10,{"$f":"COUNTIF(INDIRECT(B76),0)+COUNTBLANK(INDIRECT(B76))","v":10},0,"Min",0]
["SIMPL_DeclarationSalaires_Permanents_Entete_IRMontant","Permanents!AV6:AV15",{"$f":"COLUMN(SIMPL_DeclarationSalaires_Permanents_Entete_IRMontant)","v":48},10,10,0,"Min",0]
["Occasionnels_Ligne_Deb",{"$f":"ROW(SIMPL_DeclarationSalaires_Occasionnels_Entete_Brut)+1","v":5},null,{"$f":"+B79-B78+1","v":10}]
["Occasionnels_Ligne_Fin",{"$f":"ROW(SIMPL_DeclarationSalaires_Occasionnels_Total_Brut)-1","v":14}]
["SIMPL_DeclarationSalaires_Occasionnels_Entete_Nom",{"$f":"ADDRESS($B$78,C80,4,TRUE,$C$8)&\":\"&ADDRESS($B$79,C80,4,TRUE)","v":"Occasionnels!A5:A14"},{"$f":"COLUMN(SIMPL_DeclarationSalaires_Occasionnels_Entete_Nom)","v":1},{"$f":"+$D$78","v":10},{"$f":"COUNTBLANK(INDIRECT(B80))","v":10},{"$f":"+D80-E80","v":0}]
["SIMPL_DeclarationSalaires_Occasionnels_Entete_Prenom","Occasionnels!B5:B14",{"$f":"COLUMN(SIMPL_DeclarationSalaires_Occasionnels_Entete_Prenom)","v":2},{"$f":"+$D$78","v":10},{"$f":"COUNTBLANK(INDIRECT(B81))","v":10},{"$f":"+D81-E81","v":0}]
["SIMPL_DeclarationSalaires_Occasionnels_Entete_Adresse","Occasionnels!C5:C14",{"$f":"COLUMN(SIMPL_DeclarationSalaires_Occasionnels_Entete_Adresse)","v":3},10,10,0]
["SIMPL_DeclarationSalaires_Occasionnels_Entete_NumCIN","Occasionnels!D5:D14",{"$f":"COLUMN(SIMPL_DeclarationSalaires_Occasionnels_Entete_NumCIN)","v":4},10,10,0,"Unique"]
["SIMPL_DeclarationSalaires_Occasionnels_Entete_NumCDS","Occasionnels!E5:E14",{"$f":"COLUMN(SIMPL_DeclarationSalaires_Occasionnels_Entete_NumCDS)","v":5},10,10,0,"Unique"]
["SIMPL_DeclarationSalaires_Occasionnels_Entete_NumIF","Occasionnels!F5:F14",{"$f":"COLUMN(SIMPL_DeclarationSalaires_Occasionnels_Entete_NumIF)","v":6},10,10,0,"Unique"]
["SIMPL_DeclarationSalaires_Occasionnels_Entete_Profession","Occasionnels!G5:G14",{"$f":"COLUMN(SIMPL_DeclarationSalaires_Occasionnels_Entete_Profession)","v":7},10,10,0]
["SIMPL_DeclarationSalaires_Occasionnels_Entete_Brut","Occasionnels!H5:H14",{"$f":"COLUMN(SIMPL_DeclarationSalaires_Occasionnels_Entete_Brut)","v":8},10,10,0]
["SIMPL_DeclarationSalaires_Occasionnels_Entete_IRMontant","Occasionnels!I5:I14",{"$f":"COLUMN(SIMPL_DeclarationSalaires_Occasionnels_Entete_IRMontant)","v":9},10,10,0]
["Stagiaires_Ligne_Deb",{"$f":"ROW(SIMPL_DeclarationSalaires_Stagiaires_Entete_Brut)+1","v":5},null,{"$f":"+B90-B89+1","v":10}]
["Stagiaires_Ligne_Fin",{"$f":"ROW(SIMPL_DeclarationSalaires_Stagiaires_Total_Brut)-1","v":14}]
["SIMPL_DeclarationSalaires_Stagiaires_Entete_Nom",{"$f":"ADDRESS($B$89,C91,4,TRUE,$C$9)&\":\"&ADDRESS($B$90,C91,4,TRUE)","v":"Stagiaires!A5:A14"},{"$f":"COLUMN(SIMPL_DeclarationSalaires_Stagiaires_Entete_Nom)","v":1},{"$f":"+$D$89","v":10},{"$f":"COUNTBLANK(INDIRECT(B91))","v":10},{"$f":"+D91-E91","v":0}]
["SIMPL_DeclarationSalaires_Stagiaires_Entete_Prenom","Stagiaires!B5:B14",{"$f":"COLUMN(SIMPL_DeclarationSalaires_Stagiaires_Entete_Prenom)","v":2},{"$f":"+$D$89","v":10},{"$f":"COUNTBLANK(INDIRECT(B92))","v":10},{"$f":"+D92-E92","v":0}]
["SIMPL_DeclarationSalaires_Stagiaires_Entete_Adresse","Stagiaires!C5:C14",{"$f":"COLUMN(SIMPL_DeclarationSalaires_Stagiaires_Entete_Adresse)","v":3},10,10,0]
["SIMPL_DeclarationSalaires_Stagiaires_Entete_NumCIN","Stagiaires!D5:D14",{"$f":"COLUMN(SIMPL_DeclarationSalaires_Stagiaires_Entete_NumCIN)","v":4},10,10,0,"Unique"]
["SIMPL_DeclarationSalaires_Stagiaires_Entete_NumCDS","Stagiaires!E5:E14",{"$f":"COLUMN(SIMPL_DeclarationSalaires_Stagiaires_Entete_NumCDS)","v":5},10,10,0,"Unique"]
["SIMPL_DeclarationSalaires_Stagiaires_Entete_NumCNSS","Stagiaires!F5:F14",{"$f":"COLUMN(SIMPL_DeclarationSalaires_Stagiaires_Entete_NumCNSS)","v":6},10,10,0,"Unique"]
["SIMPL_DeclarationSalaires_Stagiaires_Entete_NumIF","Stagiaires!G5:G14",{"$f":"COLUMN(SIMPL_DeclarationSalaires_Stagiaires_Entete_NumIF)","v":7},10,10,0,"Unique"]
["SIMPL_DeclarationSalaires_Stagiaires_Entete_Brut","Stagiaires!H5:H14",{"$f":"COLUMN(SIMPL_DeclarationSalaires_Stagiaires_Entete_Brut)","v":8},10,10,0,"Min",0]
["SIMPL_DeclarationSalaires_Stagiaires_Entete_Indemnites","Stagiaires!I5:I14",{"$f":"COLUMN(SIMPL_DeclarationSalaires_Stagiaires_Entete_Indemnites)","v":9},10,10,0,"Min",0]
["SIMPL_DeclarationSalaires_Stagiaires_Entete_RetenuesSociales","Stagiaires!J5:J14",{"$f":"COLUMN(SIMPL_DeclarationSalaires_Stagiaires_Entete_RetenuesSociales)","v":10},10,10,0,"Min",0]
["SIMPL_DeclarationSalaires_Stagiaires_Entete_NetImposable","Stagiaires!K5:K14",{"$f":"COLUMN(SIMPL_DeclarationSalaires_Stagiaires_Entete_NetImposable)","v":11},10,10,0,"Min",0]
["SIMPL_DeclarationSalaires_Stagiaires_Entete_NbreJours","Stagiaires!L5:L14",{"$f":"COLUMN(SIMPL_DeclarationSalaires_Stagiaires_Entete_NbreJours)","v":12},10,10,0,"Min",0]
["StockOptions_Ligne_Deb",{"$f":"ROW(SIMPL_DeclarationSalaires_StockOptions_Entete_NbreActionsAcquises)+1","v":5},null,{"$f":"+B104-B103+1","v":10}]
["StockOptions_Ligne_Fin",{"$f":"ROW(SIMPL_DeclarationSalaires_StockOptions_Total_NbreActionsAcquises)-1","v":14}]
["SIMPL_DeclarationSalaires_StockOptions_Entete_Nom",{"$f":"ADDRESS($B$103,C105,4,TRUE,$C$10)&\":\"&ADDRESS($B$104,C105,4,TRUE)","v":"StockOptions!A5:A14"},{"$f":"COLUMN(SIMPL_DeclarationSalaires_StockOptions_Entete_Nom)","v":1},{"$f":"+$D$103","v":10},{"$f":"COUNTBLANK(INDIRECT(B105))","v":10},{"$f":"+D105-E105","v":0}]
["SIMPL_DeclarationSalaires_StockOptions_Entete_Prenom","StockOptions!B5:B14",{"$f":"COLUMN(SIMPL_DeclarationSalaires_StockOptions_Entete_Prenom)","v":2},{"$f":"+$D$103","v":10},10,0]
["SIMPL_DeclarationSalaires_StockOptions_Entete_Adresse","StockOptions!C5:C14",{"$f":"COLUMN(SIMPL_DeclarationSalaires_StockOptions_Entete_Adresse)","v":3},10,10,0]
["SIMPL_DeclarationSalaires_StockOptions_Entete_NumCIN","StockOptions!D5:D14",{"$f":"COLUMN(SIMPL_DeclarationSalaires_StockOptions_Entete_NumCIN)","v":4},10,10,0,"Unique"]
["SIMPL_DeclarationSalaires_StockOptions_Entete_NumCDS","StockOptions!E5:E14",{"$f":"COLUMN(SIMPL_DeclarationSalaires_StockOptions_Entete_NumCDS)","v":5},10,10,0,"Unique"]
["SIMPL_DeclarationSalaires_StockOptions_Entete_NumCNSS","StockOptions!F5:F14",{"$f":"COLUMN(SIMPL_DeclarationSalaires_StockOptions_Entete_NumCNSS)","v":6},10,10,0,"Unique"]
["SIMPL_DeclarationSalaires_StockOptions_Entete_NumIF","StockOptions!G5:G14",{"$f":"COLUMN(SIMPL_DeclarationSalaires_StockOptions_Entete_NumIF)","v":7},10,10,0,"Unique"]
["SIMPL_DeclarationSalaires_StockOptions_Entete_Organisme","StockOptions!H5:H14",{"$f":"COLUMN(SIMPL_DeclarationSalaires_StockOptions_Entete_Organisme)","v":8},10,10,0]
["SIMPL_DeclarationSalaires_StockOptions_Entete_NbreActionsAcquises","StockOptions!I5:I14",{"$f":"COLUMN(SIMPL_DeclarationSalaires_StockOptions_Entete_NbreActionsAcquises)","v":9},10,10,0,"Min",0]
["SIMPL_DeclarationSalaires_StockOptions_Entete_NbreActionsGratuites","StockOptions!J5:J14",{"$f":"COLUMN(SIMPL_DeclarationSalaires_StockOptions_Entete_NbreActionsGratuites)","v":10},10,10,0,"Min",0]
["SIMPL_DeclarationSalaires_StockOptions_Entete_PrixAcquisition","StockOptions!K5:K14",{"$f":"COLUMN(SIMPL_DeclarationSalaires_StockOptions_Entete_PrixAcquisition)","v":11},10,10,0,"Min",0]
["SIMPL_DeclarationSalaires_StockOptions_Entete_DateAttribution","StockOptions!L5:L14",{"$f":"COLUMN(SIMPL_DeclarationSalaires_StockOptions_Entete_DateAttribution)","v":12},10,10,0]
["SIMPL_DeclarationSalaires_StockOptions_Entete_ValeurAttribution","StockOptions!M5:M14",{"$f":"COLUMN(SIMPL_DeclarationSalaires_StockOptions_Entete_ValeurAttribution)","v":13},10,10,0,"Min",0]
["SIMPL_DeclarationSalaires_StockOptions_Entete_DateLeveeOption","StockOptions!N5:N14",{"$f":"COLUMN(SIMPL_DeclarationSalaires_StockOptions_Entete_DateLeveeOption)","v":14},10,10,0]
["SIMPL_DeclarationSalaires_StockOptions_Entete_ValeurLeveeOption","StockOptions!O5:O14",{"$f":"COLUMN(SIMPL_DeclarationSalaires_StockOptions_Entete_ValeurLeveeOption)","v":15},10,10,0,"Min",0]
["SIMPL_DeclarationSalaires_StockOptions_Entete_MontantAbondement","StockOptions!P5:P14",{"$f":"COLUMN(SIMPL_DeclarationSalaires_StockOptions_Entete_MontantAbondement)","v":16},10,10,0,"Min",0]
["SIMPL_DeclarationSalaires_StockOptions_Entete_DateCession","StockOptions!Q5:Q14",{"$f":"COLUMN(SIMPL_DeclarationSalaires_StockOptions_Entete_DateCession)","v":17},10,10,0]
["SIMPL_DeclarationSalaires_StockOptions_Entete_NbreActionsCedees","StockOptions!R5:R14",{"$f":"COLUMN(SIMPL_DeclarationSalaires_StockOptions_Entete_NbreActionsCedees)","v":18},10,10,0,"Min",0]
["SIMPL_DeclarationSalaires_StockOptions_Entete_ComplementSalaire","StockOptions!S5:S14",{"$f":"COLUMN(SIMPL_DeclarationSalaires_StockOptions_Entete_ComplementSalaire)","v":19},10,10,0,"Min",0]
["Epargnes_Ligne_Deb",{"$f":"ROW(SIMPL_DeclarationSalaires_Epargnes_Entete_MontantRevenuAnnuel)+1","v":5},null,{"$f":"+B125-B124+1","v":10}]
["Epargnes_Ligne_Fin",{"$f":"ROW(SIMPL_DeclarationSalaires_Epargnes_Total_MontantRevenuAnnuel)-1","v":14}]
["SIMPL_DeclarationSalaires_Epargnes_Entete_Nom",{"$f":"ADDRESS($B$124,C126,4,TRUE,$C$11)&\":\"&ADDRESS($B$125,C126,4,TRUE)","v":"Epargnes!A5:A14"},{"$f":"COLUMN(SIMPL_DeclarationSalaires_Epargnes_Entete_Nom)","v":1},{"$f":"+$D$124","v":10},{"$f":"COUNTBLANK(INDIRECT(B126))","v":10},{"$f":"+D126-E126","v":0}]
["SIMPL_DeclarationSalaires_Epargnes_Entete_Prenom","Epargnes!B5:B14",{"$f":"COLUMN(SIMPL_DeclarationSalaires_Epargnes_Entete_Prenom)","v":2},{"$f":"+$D$124","v":10},{"$f":"COUNTBLANK(INDIRECT(B127))","v":10},{"$f":"+D127-E127","v":0}]
["SIMPL_DeclarationSalaires_Epargnes_Entete_Adresse","Epargnes!C5:C14",{"$f":"COLUMN(SIMPL_DeclarationSalaires_Epargnes_Entete_Adresse)","v":3},10,10,{"$f":"+D128-E128","v":0}]
["SIMPL_DeclarationSalaires_Epargnes_Entete_Ville","Epargnes!D5:D14",{"$f":"COLUMN(SIMPL_DeclarationSalaires_Epargnes_Entete_Ville)","v":4},10,10,0]
["SIMPL_DeclarationSalaires_Epargnes_Entete_NumCIN","Epargnes!E5:E14",{"$f":"COLUMN(SIMPL_DeclarationSalaires_Epargnes_Entete_NumCIN)","v":5},10,10,0,"Unique"]
["SIMPL_DeclarationSalaires_Epargnes_Entete_NumCDS","Epargnes!F5:F14",{"$f":"COLUMN(SIMPL_DeclarationSalaires_Epargnes_Entete_NumCDS)","v":6},10,10,0,"Unique"]
["SIMPL_DeclarationSalaires_Epargnes_Entete_NumPlan","Epargnes!G5:G14",{"$f":"COLUMN(SIMPL_DeclarationSalaires_Epargnes_Entete_NumPlan)","v":7},10,10,0]
["SIMPL_DeclarationSalaires_Epargnes_Entete_DureeAnnees","Epargnes!H5:H14",{"$f":"COLUMN(SIMPL_DeclarationSalaires_Epargnes_Entete_DureeAnnees)","v":8},10,10,0]
["SIMPL_DeclarationSalaires_Epargnes_Entete_DateOuverture","Epargnes!I5:I14",{"$f":"COLUMN(SIMPL_DeclarationSalaires_Epargnes_Entete_DateOuverture)","v":9},10,10,0]
["SIMPL_DeclarationSalaires_Epargnes_Entete_MontantAbondement","Epargnes!J5:J14",{"$f":"COLUMN(SIMPL_DeclarationSalaires_Epargnes_Entete_MontantAbondement)","v":10},10,10,0,"Min",0]
["SIMPL_DeclarationSalaires_Epargnes_Entete_MontantRevenuAnnuel","Epargnes!K5:K14",{"$f":"COLUMN(SIMPL_DeclarationSalaires_Epargnes_Entete_MontantRevenuAnnuel)","v":11},10,10,0,"Min",0]
["Exoneres_Ligne_Deb",{"$f":"ROW(SIMPL_DeclarationSalaires_Exoneres_Entete_TraitementsEtSalaires)+1","v":5},null,{"$f":"+B138-B137+1","v":5}]
["Exoneres_Ligne_Fin",{"$f":"ROW(SIMPL_DeclarationSalaires_Exoneres_Total_Brut)-1","v":9}]
["SIMPL_DeclarationSalaires_Exoneres_Entete_Nom",{"$f":"ADDRESS($B$137,C139,4,TRUE,$C$12)&\":\"&ADDRESS($B$138,C139,4,TRUE)","v":"SalariesExoneres!A5:A9"},{"$f":"COLUMN(SIMPL_DeclarationSalaires_Exoneres_Entete_Nom)","v":1},{"$f":"+$D$137","v":5},{"$f":"COUNTBLANK(INDIRECT(B139))","v":5},{"$f":"+D139-E139","v":0}]
["SIMPL_DeclarationSalaires_Exoneres_Entete_Prenom","SalariesExoneres!B5:B9",{"$f":"COLUMN(SIMPL_DeclarationSalaires_Exoneres_Entete_Prenom)","v":2},{"$f":"+$D$137","v":5},5,{"$f":"+D140-E140","v":0}]
["SIMPL_DeclarationSalaires_Exoneres_Entete_Adresse","SalariesExoneres!C5:C9",{"$f":"COLUMN(SIMPL_DeclarationSalaires_Exoneres_Entete_Adresse)","v":3},5,5,0]
["SIMPL_DeclarationSalaires_Exoneres_Entete_NumCIN","SalariesExoneres!D5:D9",{"$f":"COLUMN(SIMPL_DeclarationSalaires_Exoneres_Entete_NumCIN)","v":4},5,5,0,"Unique"]
["SIMPL_DeclarationSalaires_Exoneres_Entete_NumCDS","SalariesExoneres!E5:E9",{"$f":"COLUMN(SIMPL_DeclarationSalaires_Exoneres_Entete_NumCDS)","v":5},5,5,0,"Unique"]
["SIMPL_DeclarationSalaires_Exoneres_Entete_NumCNSS","SalariesExoneres!F5:F9",{"$f":"COLUMN(SIMPL_DeclarationSalaires_Exoneres_Entete_NumCNSS)","v":6},5,5,0,"Unique"]
["SIMPL_DeclarationSalaires_Exoneres_Entete_NumIF","SalariesExoneres!G5:G9",{"$f":"COLUMN(SIMPL_DeclarationSalaires_Exoneres_Entete_NumIF)","v":7},5,5,0,"Unique"]
["SIMPL_DeclarationSalaires_Exoneres_Entete_DateRecrutement","SalariesExoneres!H5:H9",{"$f":"COLUMN(SIMPL_DeclarationSalaires_Exoneres_Entete_DateRecrutement)","v":8},5,5,0]
["SIMPL_DeclarationSalaires_Exoneres_Entete_TraitementsEtSalaires","SalariesExoneres!I5:I9",{"$f":"COLUMN(SIMPL_DeclarationSalaires_Exoneres_Entete_TraitementsEtSalaires)","v":9},5,5,0,"Min",0]
["SIMPL_DeclarationSalaires_Exoneres_Entete_Avantages","SalariesExoneres!J5:J9",{"$f":"COLUMN(SIMPL_DeclarationSalaires_Exoneres_Entete_Avantages)","v":10},5,5,0,"Min",0]
["SIMPL_DeclarationSalaires_Exoneres_Entete_Indemnites","SalariesExoneres!K5:K9",{"$f":"COLUMN(SIMPL_DeclarationSalaires_Exoneres_Entete_Indemnites)","v":11},5,5,0,"Min",0]
["SIMPL_DeclarationSalaires_Exoneres_Entete_BrutImposable","SalariesExoneres!L5:L9",{"$f":"COLUMN(SIMPL_DeclarationSalaires_Exoneres_Entete_BrutImposable)","v":12},5,5,0,"Min",0]
["SIMPL_DeclarationSalaires_Exoneres_Entete_RetenuesSociales","SalariesExoneres!M5:M9",{"$f":"COLUMN(SIMPL_DeclarationSalaires_Exoneres_Entete_RetenuesSociales)","v":13},5,5,0,"Min",0]
["SIMPL_DeclarationSalaires_Exoneres_Entete_NetImposable","SalariesExoneres!N5:N9",{"$f":"COLUMN(SIMPL_DeclarationSalaires_Exoneres_Entete_NetImposable)","v":14},5,5,0,"Min",0]
["SIMPL_DeclarationSalaires_Exoneres_Entete_NbreJours","SalariesExoneres!O5:O9",{"$f":"COLUMN(SIMPL_DeclarationSalaires_Exoneres_Entete_NbreJours)","v":15},5,5,0,"Min",0]
["Doctorants_Ligne_Deb",{"$f":"ROW(SIMPL_DeclarationSalaires_Doctorants_Entete_BrutEtIndemnites)+1","v":5},null,{"$f":"+B155-B154+1","v":10}]
["Doctorants_Ligne_Fin",{"$f":"ROW(SIMPL_DeclarationSalaires_Doctorants_Total_BrutEtIndemnites)-1","v":14}]
["SIMPL_DeclarationSalaires_Doctorants_Entete_Nom",{"$f":"ADDRESS($B$154,C156,4,TRUE,$C$13)&\":\"&ADDRESS($B$155,C156,4,TRUE)","v":"Doctorants!A5:A14"},{"$f":"COLUMN(SIMPL_DeclarationSalaires_Doctorants_Entete_Nom)","v":1},{"$f":"+$D$154","v":10},{"$f":"COUNTBLANK(INDIRECT(B156))","v":10},{"$f":"+D156-E156","v":0}]
["SIMPL_DeclarationSalaires_Doctorants_Entete_Prenom","Doctorants!B5:B14",{"$f":"COLUMN(SIMPL_DeclarationSalaires_Doctorants_Entete_Prenom)","v":2},{"$f":"+$D$154","v":10},{"$f":"COUNTBLANK(INDIRECT(B157))","v":10},{"$f":"+D157-E157","v":0}]
["SIMPL_DeclarationSalaires_Doctorants_Entete_NumCIN","Doctorants!D5:D14",{"$f":"COLUMN(SIMPL_DeclarationSalaires_Doctorants_Entete_NumCIN)","v":4},10,10,0,"Unique"]
["SIMPL_DeclarationSalaires_Doctorants_Entete_NumCDS","Doctorants!E5:E14",{"$f":"COLUMN(SIMPL_DeclarationSalaires_Doctorants_Entete_NumCDS)","v":5},10,10,0,"Unique"]
["SIMPL_DeclarationSalaires_Doctorants_Entete_Adresse","Doctorants!C5:C14",{"$f":"COLUMN(SIMPL_DeclarationSalaires_Doctorants_Entete_Adresse)","v":3},10,10,0]
["SIMPL_DeclarationSalaires_Doctorants_Entete_BrutEtIndemnites","Doctorants!F5:F14",{"$f":"COLUMN(SIMPL_DeclarationSalaires_Doctorants_Entete_BrutEtIndemnites)","v":6},10,10,0,"Min",0]
["Quitances_Ligne_Deb",{"$f":"ROW(SIMPL_DeclarationSalaires_Quitances_Entete_Principal)+1","v":5},null,{"$f":"+B163-B162+1","v":12}]
["Quitances_Ligne_Fin",{"$f":"ROW(SIMPL_DeclarationSalaires_Quitances_Total_Principal)-1","v":16}]
["SIMPL_DeclarationSalaires_Quitances_Entete_Date",{"$f":"ADDRESS($B$162,C164,4,TRUE,$C$14)&\":\"&ADDRESS($B$163,C164,4,TRUE)","v":"Quitances!B5:B16"},{"$f":"COLUMN(SIMPL_DeclarationSalaires_Quitances_Entete_Date)","v":2},{"$f":"+$D$162","v":12},{"$f":"COUNTBLANK(INDIRECT(B164))","v":12},{"$f":"+D164-E164","v":0}]
["SIMPL_DeclarationSalaires_Quitances_Entete_Principal","Quitances!C5:C16",{"$f":"COLUMN(SIMPL_DeclarationSalaires_Quitances_Entete_Principal)","v":3},{"$f":"+$D$162","v":12},{"$f":"COUNTIF(INDIRECT(B165),0)+COUNTBLANK(INDIRECT(B165))","v":12},{"$f":"+D165-E165","v":0},"Min",0]
["SIMPL_DeclarationSalaires_Quitances_Entete_Majorations","Quitances!D5:D16",{"$f":"COLUMN(SIMPL_DeclarationSalaires_Quitances_Entete_Majorations)","v":4},12,12,0,"Min",0]
["SIMPL_DeclarationSalaires_Quitances_Entete_Penalites","Quitances!E5:E16",{"$f":"COLUMN(SIMPL_DeclarationSalaires_Quitances_Entete_Penalites)","v":5},12,12,0,"Min",0]
["SIMPL_DeclarationSalaires_Quitances_Entete_Total","Quitances!F5:F16",{"$f":"COLUMN(SIMPL_DeclarationSalaires_Quitances_Entete_Total)","v":6},12,{"$f":"COUNTIF(INDIRECT(B168),0)+COUNTBLANK(INDIRECT(B168))","v":12},0,"Min",0]
["SIMPL_DeclarationSalaires_Quitances_Entete_ModePaiement","Quitances!G5:G16",{"$f":"COLUMN(SIMPL_DeclarationSalaires_Quitances_Entete_ModePaiement)","v":7},12,{"$f":"COUNTBLANK(INDIRECT(B169))","v":12},0,"Liste","SIMPL_DeclarationSalaires_ReferentielModePaiement"]
["SIMPL_DeclarationSalaires_Quitances_Entete_NumQuitance","Quitances!H5:H16",{"$f":"COLUMN(SIMPL_DeclarationSalaires_Quitances_Entete_NumQuitance)","v":8},12,12,0,"Unique"]
[]
[]
[]
["Compteur","Valeur","Nbre_Cells","Nbre_Vides","Nbre_Feuilles","Néant"]
["SIMPL_DeclarationSalaires_Permanents_NbreLignes",{"$f":"MAX(F30:F77)","v":0},null,null,{"$f":"IF(SIMPL_DeclarationSalaires_Permanents_NbreLignes<=0,1,ROUNDUP(SIMPL_DeclarationSalaires_Permanents_NbreLignes/7,0))","v":1},{"$f":"IF(SIMPL_DeclarationSalaires_Permanents_NbreLignes<=0,\"Néant\",\"\")","v":"Néant"}]
["SIMPL_DeclarationSalaires_Occasionnels_NbreLignes",{"$f":"MAX(F80:F88)","v":0},null,null,{"$f":"IF(SIMPL_DeclarationSalaires_Occasionnels_NbreLignes<=0,1,ROUNDUP(SIMPL_DeclarationSalaires_Occasionnels_NbreLignes/10,0))","v":1},{"$f":"IF(SIMPL_DeclarationSalaires_Occasionnels_NbreLignes<=0,\"Néant\",\"\")","v":"Néant"}]
["SIMPL_DeclarationSalaires_Stagiaires_NbreLignes",{"$f":"MAX(F91:F102)","v":0},null,null,{"$f":"IF(SIMPL_DeclarationSalaires_Stagiaires_NbreLignes<=0,1,ROUNDUP(SIMPL_DeclarationSalaires_Stagiaires_NbreLignes/10,0))","v":1},{"$f":"IF(SIMPL_DeclarationSalaires_Stagiaires_NbreLignes<=0,\"Néant\",\"\")","v":"Néant"}]
["SIMPL_DeclarationSalaires_StockOptions_NbreLignes",{"$f":"MAX(F105:F123)","v":0},null,null,{"$f":"IF(SIMPL_DeclarationSalaires_StockOptions_NbreLignes<=0,1,ROUNDUP(SIMPL_DeclarationSalaires_StockOptions_NbreLignes/10,0))","v":1},{"$f":"IF(SIMPL_DeclarationSalaires_StockOptions_NbreLignes<=0,\"Néant\",\"\")","v":"Néant"}]
["SIMPL_DeclarationSalaires_Epargnes_NbreLignes",{"$f":"MAX(F126:F136)","v":0},null,null,{"$f":"IF(SIMPL_DeclarationSalaires_Epargnes_NbreLignes<=0,1,ROUNDUP(SIMPL_DeclarationSalaires_Epargnes_NbreLignes/5,0))","v":1},{"$f":"IF(SIMPL_DeclarationSalaires_Epargnes_NbreLignes<=0,\"Néant\",\"\")","v":"Néant"}]
["SIMPL_DeclarationSalaires_Exoneres_NbreLignes",{"$f":"MAX(F139:F153)","v":0},null,null,{"$f":"IF(SIMPL_DeclarationSalaires_Exoneres_NbreLignes<=0,1,ROUNDUP(SIMPL_DeclarationSalaires_Exoneres_NbreLignes/7,0))","v":1},{"$f":"IF(SIMPL_DeclarationSalaires_Exoneres_NbreLignes<=0,\"Néant\",\"\")","v":"Néant"}]
["SIMPL_DeclarationSalaires_Doctorants_NbreLignes",{"$f":"MAX(F156:F161)","v":0},null,null,{"$f":"IF(SIMPL_DeclarationSalaires_Doctorants_NbreLignes<=0,1,ROUNDUP(SIMPL_DeclarationSalaires_Doctorants_NbreLignes/10,0))","v":1},{"$f":"IF(SIMPL_DeclarationSalaires_Doctorants_NbreLignes<=0,\"Néant\",\"\")","v":"Néant"}]
["SIMPL_DeclarationSalaires_EffectifTotal_NbreLignes",{"$f":"SUM(SIMPL_DeclarationSalaires_Permanents_NbreLignes,SIMPL_DeclarationSalaires_Occasionnels_NbreLignes,SIMPL_DeclarationSalaires_Stagiaires_NbreLignes)","v":0},null,null,{"$f":"SUM(SIMPL_DeclarationSalaires_Permanents_NbreFeuilles,SIMPL_DeclarationSalaires_Occasionnels_NbreFeuilles,SIMPL_DeclarationSalaires_Stagiaires_NbreFeuilles,SIMPL_DeclarationSalaires_StockOptions_NbreFeuilles,SIMPL_DeclarationSalaires_Epargnes_NbreFeuilles,SIMPL_DeclarationSalaires_Exoneres_NbreFeuilles,SIMPL_DeclarationSalaires_Doctorants_NbreFeuilles)","v":7}]
["SIMPL_DeclarationSalaires_Quitances_NbreLignes",{"$f":"MAX(F164:F170)","v":0},null,null,1,{"$f":"IF(SIMPL_DeclarationSalaires_Quitances_NbreLignes<=0,\"Néant\",\"\")","v":"Néant"}]
[]
["Fonctions DTS_2014_()"]
["=DTS_2014_BrutImposable()"]
["=DTS_2014_MontantFraisProf()"]
["=DTS_2014_NetImposable()"]
["=DTS_2014_MontantIR()"]
[]
[]
["SIMPL_DeclarationSalaires_ReferentielMois","Id"]
["Janvier",1]
["Février",2]
["Mars",3]
["Avril",4]
["Mai",5]
["Juin",6]
["Juillet",7]
["Août",8]
["Septembre",9]
["Octobre",10]
["Novembre",11]
["Décembre",12]
[]
["SIMPL_DeclarationSalaires_ReferentielTaux","Id"]
[" 20 %","TPP.20.2009"]
[" 25 %","TPP.25.2009"]
[" 35 %","TPP.35.2009"]
[" 40 %","TPP.40.2009"]
[" 45 %","TPP.45.2009"]
[" 17 %","TPP.17.2006"]
[]
["SIMPL_DeclarationSalaires_ReferentielSitFamiliale","Id"]
["Célibataire","C"]
["Marié(e)","M"]
["Veuf(ve)","V"]
["Divorcé(e)","D"]
[]
["SIMPL_DeclarationSalaires_ReferentielModePaiement","Id"]
["Espèces","ES"]
["Chèque","CH"]
["Télépaiement/Virement","SIR"]
[]
["SIMPL_DeclarationSalaires_ReferentielOuiNon","Id"]
["Oui","O"]
["Non","N"]
[]
["SIMPL_DeclarationSalaires_NatureElementExonere","Id"]
["Indemnité de déplacement et frais de déplacement accordée sur la base de pièces justificatives","NAT_ELEM_EXO_1"]
["Indemnité de déplacement et frais de déplacement accordée sur une base forfaitaire pour des déplacements ponctuels","NAT_ELEM_EXO_2"]
["Indemnité de déplacement et frais de déplacement accordée sur une base forfaitaire pour des déplacements réguliers","NAT_ELEM_EXO_3"]
["Indemnité kilométrique","NAT_ELEM_EXO_4"]
["Indemnité de transport du domicile vers le lieu de travail- périmètre urbain","NAT_ELEM_EXO_5"]
["Indemnité de transport du domicile vers le lieu de travail - en dehors du périmètre urbain","NAT_ELEM_EXO_6"]
["Prime de tournée","NAT_ELEM_EXO_7"]
["Indemnité de caisse","NAT_ELEM_EXO_8"]
["Indemnité de représentation","NAT_ELEM_EXO_9"]
["Prime d'outillage","NAT_ELEM_EXO_11"]
["Prime de salissure","NAT_ELEM_EXO_12"]
["Indemnité de lait","NAT_ELEM_EXO_13"]
["Prime de panier ou de casse-croute","NAT_ELEM_EXO_14"]
["Nourriture accordée aux officiers marins","NAT_ELEM_EXO_15"]
["Réduction d'intérêt de prêts consentis aux employés","NAT_ELEM_EXO_16"]
["Gratifications sociales liées à un évènement familial","NAT_ELEM_EXO_17"]
["Prime de voyage à la Mecque pour le pèlerinage","NAT_ELEM_EXO_18"]
["Allocation versée à un enfant d'un travailleur de l'entreprise","NAT_ELEM_EXO_19"]
["Indemnité de déménagement suite à mutation","NAT_ELEM_EXO_20"]
["Dépenses relatives aux postes de téléphone","NAT_ELEM_EXO_21"]
["Bons représentatifs des frais de nourriture ou d'alimentation délivrés par les employeurs à leurs salariés","NAT_ELEM_EXO_22"]
["Aide médicale","NAT_ELEM_EXO_23"]
["Indemnité de licenciement","NAT_ELEM_EXO_24"]
["Autres éléments","NAT_ELEM_EXO_25"]
[]
["SIMPL_DeclarationSalaires_ReferentielCommunes","Id"]
["ABDA-BOUGUEDRA","431.03.01"]
["ABDA-EL GOURAANI","431.03.03"]
["ABDA-LABKHATI","431.03.05"]
["ABDA-LAHDAR","431.03.07"]
["ABDA-LAMRASLA","431.03.09"]
["ABDA-LAMSABIH","431.03.11"]
["ABDA-SIDI AISSA","431.03.13"]
["ABDA-SIDI ETTIJI","431.03.15"]
["AGADIR (M)","001.01.01"]
["AGADIR BANLIEUE-AMSKROUD","001.05.01"]
["AGADIR BANLIEUE-AOURIR","001.05.03"]
["AGADIR BANLIEUE-AQESRI","001.05.05"]
["AGADIR BANLIEUE-AZIAR","001.05.07"]
["AGADIR BANLIEUE-DRARGUA","001.05.09"]
["AGADIR BANLIEUE-IDMINE","001.05.11"]
["AGADIR BANLIEUE-IMOUZZER","001.05.13"]
["AGADIR BANLIEUE-IMSOUANE","001.05.15"]
["AGADIR BANLIEUE-TADRART","001.05.21"]
["AGADIR BANLIEUE-TAGHAZOUT","001.05.23"]
["AGADIR BANLIEUE-TAMRI","001.05.25"]
["AGADIR BANLIEUE-TIQQI","001.05.29"]
["AGDZ (M)","587.01.01"]
["AGDZ-AFELLA N'DRA","587.03.01"]
["AGDZ-AFRA","587.03.03"]
["AGDZ-AIT BOUDAOUD","587.03.05"]
["AGDZ-AIT OUALLAL","587.03.07"]
["AGDZ-MEZGUITA","587.03.21"]
["AGDZ-N'KOB","587.03.25"]
["AGDZ-OULAD YAHIA LAGRAIRE","587.03.27"]
["AGDZ-TAGHBALTE","587.03.31"]
["AGDZ-TAMEZMOUTE","587.03.37"]
["AGDZ-TANSIFTE","587.03.39"]
["AGDZ-TAZARINE","587.03.41"]
["AGOURAI (M)","171.01.01"]
["AGOURAI-AIT YAAZEM","171.03.03"]
["AGOURAI-JAHJOUH","171.03.05"]
["AGOURAI-RAS IJERRI","171.03.07"]
["AGOURAI-TAMCHACHATE","171.03.09"]
["AHFIR (M)","113.01.01"]
["AHFIR-AGHBAL","113.03.01"]
["AHFIR-FEZOUANE","113.03.07"]
["AHFIR-LAATAMNA","113.03.09"]
["AHFIR-MADAGH","113.03.11"]
["AHMAR-ATIAMIM","431.05.01"]
["AHMAR-EL GANTOUR","431.05.03"]
["AHMAR-ESBIAAT","431.05.05"]
["AHMAR-IGHOUD","431.05.07"]
["AHMAR-JDOUR","431.05.09"]
["AHMAR-JNANE BOUIH","431.05.11"]
["AHMAR-LAKHOUALQA","431.05.13"]
["AHMAR-RAS EL AIN","431.05.15"]
["AHMAR-SIDI CHIKER","431.05.17"]
["AIN BNI MATHAR (M)","275.01.03"]
["AIN BNI MATHAR-MRIJA","275.05.11"]
["AIN BNI MATHAR-OULAD GHZIYEL","275.05.13"]
["AIN BNI MATHAR-OULAD SIDI ABDELHAKEM","275.05.15"]
["AIN EL AOUDA (M)","501.01.01"]
["AIN EL AOUDA-EL MENZEH","501.03.01"]
["AIN EL AOUDA-OUMAZZA","501.03.03"]
["AIN EL AOUDA-SIDI YAHYA ZAER","501.03.11"]
["AIN ERREGGADA (M)","113.01.05"]
["AIN HARROUDA(M)","371.01.03"]
["AIN ORMA-AIN JEMAA","061.03.01"]
["AIN ORMA-AIN KARMA","061.03.03"]
["AIN ORMA-AIT OUALLAL","061.03.07"]
["AIN ORMA-DAR OUM SOLTANE","061.03.09"]
["AIN ORMA-OUED ROMMANE","061.03.11"]
["AIN TAOUJDATE (M)","171.01.03"]
["AIN TAOUJDATE-AIT BOUBIDMANE","171.05.01"]
["AIN TAOUJDATE-AIT HARZ ALLAH","171.05.03"]
["AIN TAOUJDATE-BITIT","171.05.05"]
["AIN TAOUJDATE-LAQSIR","171.05.07"]
["AIT BAHA (M)","163.01.03"]
["AIT BAHA-AIT MZAL","163.03.05"]
["AIT BAHA-AIT OUADRIM","163.03.07"]
["AIT BAHA-AOUGUENZ","163.03.09"]
["AIT BAHA-HILALA","163.03.13"]
["AIT BAHA-IDA OUGNIDIF","163.03.15"]
["AIT BAHA-SIDI ABDALLAH EL BOUCHOUARI","163.03.25"]
["AIT BAHA-TANALT","163.03.33"]
["AIT BAHA-TARGUA NTOUCHKA","163.03.35"]
["AIT BAHA-TASSEGDELT","163.03.37"]
["AIT BAHA-TIZI NTAKOUCHT","163.03.39"]
["AIT DAOUD (M)","211.01.01"]
["AIT IAAZA (M)","541.01.01"]
["AIT MELLOUL (M)","273.01.05"]
["AIT MELLOUL-LQLIAA","273.05.17"]
["AIT MELLOUL-OULAD DAHOU","273.05.19"]
["AIT MELLOUL-TEMSIA","273.05.27"]
["AIT OURIR (M)","041.01.01"]
["AIT OURIR-ABADOU","041.03.01"]
["AIT OURIR-AIT AADEL","041.03.03"]
["AIT OURIR-AIT FASKA","041.03.05"]
["AIT OURIR-AIT HKIM AIT YZID","041.03.07"]
["AIT OURIR-AIT SIDI DAOUD","041.03.09"]
["AIT OURIR-GHMATE","041.03.11"]
["AIT OURIR-IGUERFEROUANE","041.03.13"]
["AIT OURIR-SIDI ABDALLAH GHIAT","041.03.15"]
["AIT OURIR-TAMAGUERT","041.03.17"]
["AIT OURIR-TAMAZOUZTE","041.03.19"]
["AIT OURIR-TAZART","041.03.21"]
["AIT OURIR-TIDILI MESFIOUA","041.03.23"]
["AIT OURIR-TIGHEDOUINE","041.03.25"]
["AIT OURIR-TOUAMA","041.03.27"]
["AIT OURIR-ZERKTEN","041.03.29"]
["AKKA (M)","551.01.01"]
["AKKA-AIT OUABELLI","551.03.01"]
["AKKA-KASBAT SIDI ABDELLAH BEN M'BAREK","551.03.03"]
["AKKA-TAMANARTE","551.03.05"]
["AKKA-TIZOUNINE","551.03.07"]
["AKLIM (M)","113.01.07"]
["AKLIM-BOUGHRIBA","113.05.03"]
["AKLIM-CHOUIHIA","113.05.05"]
["AKLIM-RISLANE","113.05.13"]
["AKLIM-SIDI BOUHRIA","113.05.15"]
["AKLIM-TAFOUGHALT","113.05.17"]
["AKLIM-ZEGZEL","113.05.19"]
["AKNOUL (M)","561.01.01"]
["AKNOUL-AJDIR","561.03.01"]
["AKNOUL-BOURD","561.03.03"]
["AKNOUL-GZENAYA AL JANOUBIA","561.03.05"]
["AKNOUL-JBARNA","561.03.07"]
["AKNOUL-SIDI ALI BOURAKBA","561.03.09"]
["AKNOUL-TIZI OUASLI","561.03.11"]
["AL AAROUI (M)","381.01.01"]
["AL HAOUZ-AMIZMIZ","041.05.03"]
["AL HAOUZ-ASNI","041.07.03"]
["AL HAOUZ-TAHANNAOUT","041.09.09"]
["AL HOCEIMA (M)","051.01.01"]
["AL HOCEIMA-BNI BOUFRAH","051.03.01"]
["AL MACHOUAR - STINIA (M)","061.01.03"]
["AMERZGANE-AIT ZINEB","401.03.01"]
["AMERZGANE-AZNAGUEN","401.03.05"]
["AMERZGANE-IGHREM N'OUGDAL","401.03.07"]
["AMERZGANE-KHOUZAMA","401.03.09"]
["AMERZGANE-OUISSELSATE","401.03.11"]
["AMERZGANE-SIROUA","401.03.13"]
["AMERZGANE-TELOUET","401.03.15"]
["AMERZGANE-TIDLI","401.03.17"]
["AMIZMIZ-AMGHRAS","041.05.01"]
["AMIZMIZ-ANOUGAL","041.05.05"]
["AMIZMIZ-AZGOUR","041.05.07"]
["AMIZMIZ-DAR JAMAA","041.05.09"]
["AMIZMIZ-LALLA TAKARKOUST","041.05.11"]
["AMIZMIZ-OUAZGUITA","041.05.13"]
["AMIZMIZ-OULAD MTAA","041.05.15"]
["AMIZMIZ-SIDI BADHAJ","041.05.17"]
["AMIZMIZ-TIZGUINE","041.05.19"]
["ANEZI-AIT ISSAFEN","581.03.01"]
["ANEZI-ARBAA AIT AHMED","581.03.05"]
["ANEZI-IDA OU GOUGMAR","581.03.07"]
["ANEZI-SIDI AHMED OU MOUSSA","581.03.09"]
["ANEZI-TAFRAOUT EL MOULOUD","581.03.11"]
["ANEZI-TIGHMI","581.03.13"]
["ANEZI-TIZOUGHRANE","581.03.15"]
["ANEZI-TNINE ADAY","581.03.17"]
["ANJRA-FAHS-ANJRA","227.03.05"]
["ANJRA-JOUAMAA","227.03.11"]
["ANJRA-KSAR EL MAJAZ","227.03.13"]
["ANJRA-TAGHRAMT","227.03.21"]
["AOUSSERD","066.03.05"]
["AOUSSERD-AGHOUINITE","066.03.03"]
["AOUSSERD-BIR GANDOUZ","066.05.03"]
["AOUSSERD-TICHLA","066.03.07"]
["AOUSSERD-ZOUG","066.03.09"]
["ARFOUD (M)","201.01.01"]
["ARFOUD-AARAB SEBBAH GHERIS","201.03.01"]
["ARFOUD-AARAB SEBBAH ZIZ","201.03.03"]
["ARFOUD-ALNIF","201.03.05"]
["ARFOUD-ES-SIFA","201.03.07"]
["ARFOUD-FEZNA","201.03.09"]
["ARFOUD-H'SSYIA","201.03.11"]
["ARFOUD-M'SSICI","201.03.13"]
["ASNI-AGHBAR","041.07.01"]
["ASNI-IGHIL","041.07.05"]
["ASNI-IJOUKAK","041.07.07"]
["ASNI-IMGDAL","041.07.09"]
["ASNI-OUIRGANE","041.07.11"]
["ASNI-TALAT N'YAAQOUB","041.07.13"]
["ASSA (M)","071.01.01"]
["ASSA-AOUINT LAHNA","071.03.01"]
["ASSA-AOUINT YGHOMANE","071.03.03"]
["ASSA-TOUIZGUI","071.03.05"]
["ASSILAH (M)","511.01.01"]
["ASSILAH-AL MANZLA","511.03.01"]
["ASSILAH-AQUOUASS BRIECH","511.03.03"]
["ASSILAH-AZZINATE","511.03.05"]
["ASSILAH-DAR CHAOUI","511.03.07"]
["ASSILAH-LKHALOUA","511.03.09"]
["ASSILAH-SAHEL CHAMALI","511.03.11"]
["ASSILAH-SIDI LYAMANI","511.03.13"]
["ASSOUL-AIT HANI","201.05.01"]
["ASSOUL-AMELLAGOU","201.05.03"]
["AUTRES VILLES","000.00.00"]
["AZEMMOUR (M)","181.01.01"]
["AZEMMOUR-CHTOUKA","181.03.01"]
["AZEMMOUR-HAOUZIA","181.03.03"]
["AZEMMOUR-LAGHDIRA","181.03.05"]
["AZEMMOUR-LAMHARZA ESSAHEL","181.03.07"]
["AZEMMOUR-OULAD RAHMOUNE","181.03.09"]
["AZEMMOUR-SIDI ALI BEN HAMDOUCHE","181.03.11"]
["AZILAL (M)","081.01.01"]
["AZILAL-AGOUDI N'LKHAIR","081.03.01"]
["AZILAL-AIT ABBAS","081.03.03"]
["AZILAL-AIT BOU OULLI","081.03.05"]
["AZILAL-AIT M'HAMED","081.03.07"]
["AZILAL-BZOU","081.05.07"]
["AZILAL-OUAOUIZEGHT","081.09.15"]
["AZILAL-TABANT","081.03.09"]
["AZILAL-TAMDA NOUMERCID","081.03.11"]
["AZILAL-ZAOUIAT AHANSAL","081.03.13"]
["AZROU (M)","271.01.01"]
["AZROU-AIN LEUH","271.03.01"]
["AZROU-BEN SMIM","271.03.03"]
["AZROU-OUED IFRANE","271.03.05"]
["AZROU-SIDI EL MAKHFI","271.03.07"]
["AZROU-TIGRIGRA","271.03.09"]
["AZROU-TIMAHDITE","271.03.11"]
["BAB BERRED-AMTAR","151.03.01"]
["BAB BERRED-BNI AHMED CHERQIA","151.03.05"]
["BAB BERRED-BNI AHMED GHARBIA","151.03.07"]
["BAB BERRED-BNI RZINE","151.03.09"]
["BAB BERRED-BNI SMIH","151.03.11"]
["BAB BERRED-IOUNANE","151.03.13"]
["BAB BERRED-MANSOURA","151.03.15"]
["BAB BERRED-M'TIOUA","151.03.17"]
["BAB BERRED-OUAOUZGANE","151.03.19"]
["BAB BERRED-OUED MALHA","151.03.21"]
["BAB BERRED-TAMOROT","151.03.23"]
["BAB TAZA-BNI DARKOUL","151.05.03"]
["BAB TAZA-BNI FAGHLOUM","151.05.05"]
["BAB TAZA-BNI SALAH","151.05.07"]
["BAB TAZA-DERDARA","151.05.09"]
["BAB TAZA-FIFI","151.05.11"]
["BAB TAZA-LAGHDIR","151.05.13"]
["BAB TAZA-TANAQOUB","151.05.15"]
["BEJAAD (M)","311.01.01"]
["BEJAAD-AIN KAICHER","311.03.01"]
["BEJAAD-BNI BATAOU","311.03.03"]
["BEJAAD-BNI ZRANTEL","311.03.05"]
["BEJAAD-BOUKHRISSE","311.03.07"]
["BEJAAD-CHOUGRANE","311.03.09"]
["BEJAAD-OULAD GOUAOUCH","311.03.11"]
["BEJAAD-ROUACHED","311.03.13"]
["BEJAAD-TACHRAFAT","311.03.15"]
["BELFAA- MASSA-AIT MILK","163.05.03"]
["BELFAA- MASSA-BELFAA","163.05.11"]
["BELFAA- MASSA-INCHADEN","163.05.19"]
["BELFAA- MASSA-MASSA","163.05.21"]
["BELFAA- MASSA-SIDI OUASSAY","163.05.31"]
["BEN AHMED (M)","461.01.01"]
["BEN AHMED-AIN DORBANE","461.03.01"]
["BEN AHMED-BOUGUARGOUH","461.03.03"]
["BEN AHMED-LAHLAF M'ZAB","461.03.05"]
["BEN AHMED-LAKHZAZRA","461.03.07"]
["BEN AHMED-M'GARTO","461.03.13"]
["BEN AHMED-MNIAA","461.03.09"]
["BEN AHMED-MRIZIGUE","461.03.11"]
["BEN AHMED-N'KHILA","461.03.15"]
["BEN AHMED-OUED NAANAA","461.03.17"]
["BEN AHMED-OULAD CHBANA","461.03.19"]
["BEN AHMED-OULAD FARES","461.03.21"]
["BEN AHMED-OULAD M'HAMED","461.03.23"]
["BEN AHMED-RAS EL AIN CHAOUIA","461.03.25"]
["BEN AHMED-SGAMNA","461.03.27"]
["BEN AHMED-SIDI ABDELKRIM","461.03.29"]
["BEN AHMED-SIDI DAHBI","461.03.31"]
["BEN AHMED-SIDI HAJJAJ","461.03.33"]
["BEN GUERIR (M)","191.01.01"]
["BENI MELLAL (M)","091.01.01"]
["BENI MELLAL-FOUM OUDI","091.03.01"]
["BENI MELLAL-OULAD GNAOU","091.03.03"]
["BENI MELLAL-OULAD M'BAREK","091.03.05"]
["BENI MELLAL-OULAD YAICH","091.03.07"]
["BENI MELLAL-SIDI JABER","091.03.09"]
["BENSLIMANE (M)","111.01.01"]
["BENSLIMANE-AHLAF","111.03.01"]
["BENSLIMANE-AIN TIZGHA","111.03.03"]
["BENSLIMANE-FDALATE","111.03.05"]
["BENSLIMANE-MELLILA","111.03.07"]
["BENSLIMANE-MOUALINE EL GHABA","111.03.09"]
["BENSLIMANE-MOUALINE EL OUED","111.03.11"]
["BENSLIMANE-OULAD ALI TOUALAA","111.03.13"]
["BENSLIMANE-OULAD YAHYA LOUTA","111.03.15"]
["BENSLIMANE-RDADNA OULAD MALEK","111.03.17"]
["BENSLIMANE-ZIAIDA","111.03.19"]
["BERKANE (M)","113.01.09"]
["BERRECHID (M)","461.01.03"]
["BERRECHID-BEN MAACHOU","461.05.01"]
["BERRECHID-LAGHNIMYINE","461.05.11"]
["BERRECHID-LAHSASNA","461.05.13"]
["BERRECHID-LAKHIAITA","461.05.15"]
["BERRECHID-SAHEL OULAD H'RIZ","461.05.25"]
["BERRECHID-SIDI ABDELKHALEQ","461.05.27"]
["BERRECHID-SIDI EL MEKKI","461.05.29"]
["BERRECHID-SIDI RAHAL CHATAI","461.05.31"]
["BERRECHID-SOUALEM","461.05.33"]
["BERRECHID-ZAOUIAT SIDI BEN HAMDOUN","461.05.35"]
["BHALIL (M)","451.01.01"]
["BIOUGRA (M)","163.01.11"]
["BIOUGRA-AIT AMIRA","163.07.01"]
["BIOUGRA-IMI MQOURN","163.07.17"]
["BIOUGRA-OUAD ESSAFA","163.07.23"]
["BIOUGRA-SIDI BIBI","163.07.27"]
["BIOUGRA-SIDI BOUSHAB","163.07.29"]
["BIR ANZARANE-GLEIBAT EL FOULA","391.05.03"]
["BIR ANZARANE-MIJIK","391.05.05"]
["BIR ANZARANE-OUM DREYGA","391.05.07"]
["BNI ANSAR (M)","381.01.03"]
["BNI BOUAYACH (M)","051.01.03"]
["BNI BOUFRAH-BNI GMIL","051.03.03"]
["BNI BOUFRAH-BNI GMIL MAKSOULINE","051.03.05"]
["BNI BOUFRAH-SENADA","051.03.07"]
["BNI DRAR (M)","411.01.11"]
["BNI MOUSSA-DAR OULD ZIDOUH","091.05.01"]
["BNI MOUSSA-HAD BOUMOUSSA","091.05.03"]
["BNI MOUSSA-OULAD BOURAHMOUNE","091.05.05"]
["BNI MOUSSA-OULAD NACER","091.05.07"]
["BNI MOUSSA-OULAD ZMAM","091.05.09"]
["BNI MOUSSA-SIDI AISSA BEN ALI","091.05.11"]
["BNI MOUSSA-SIDI HAMMADI","091.05.13"]
["BNI OURIAGHEL-AIT KAMRA","051.05.01"]
["BNI OURIAGHEL-AIT YOUSSEF OU ALI","051.05.03"]
["BNI OURIAGHEL-ARBAA TAOURIRT","051.05.05"]
["BNI OURIAGHEL-BNI ABDALLAH","051.05.07"]
["BNI OURIAGHEL-BNI HADIFA","051.05.09"]
["BNI OURIAGHEL-CHAKRANE","051.05.11"]
["BNI OURIAGHEL-IMRABTEN","051.05.13"]
["BNI OURIAGHEL-IZEMMOUREN","051.05.15"]
["BNI OURIAGHEL-LOUTA","051.05.17"]
["BNI OURIAGHEL-NEKKOUR","051.05.19"]
["BNI OURIAGHEL-ROUADI","051.05.21"]
["BNI OURIAGHEL-TIFAROUINE","051.05.23"]
["BNI OURIAGHEL-ZAOUIAT SIDI ABDELKADER","051.05.25"]
["BNI TADJITE-AIN CHOUATER","251.03.01"]
["BNI TADJITE-BNI TADJITE","251.03.03"]
["BNI TADJITE-BOUANANE","251.03.05"]
["BNI TADJITE-BOUCHAOUENE","251.03.07"]
["BNI TADJITE-BOUMERIEME","251.03.09"]
["BNI TADJITE-TALSINT","251.03.11"]
["BOU AHMED-BNI BOUZRA","151.07.01"]
["BOU AHMED-BNI MANSOUR","151.07.03"]
["BOU AHMED-BNI SELMANE","151.07.05"]
["BOU AHMED-STEHA","151.07.07"]
["BOU AHMED-TALAMBOTE","151.07.09"]
["BOU AHMED-TASSIFT","151.07.11"]
["BOU AHMED-TIZGANE","151.07.13"]
["BOUARFA (M)","251.01.01"]
["BOUDNIB (M)","201.01.03"]
["BOUFAKRANE (M)","061.01.05"]
["BOUIZAKARNE (M)","261.01.01"]
["BOUIZAKARNE-ADAY","261.03.01"]
["BOUIZAKARNE-AIT BOUFOULEN","261.03.03"]
["BOUIZAKARNE-AMTDI","261.03.05"]
["BOUIZAKARNE-IFRANE ATLAS SAGHIR","261.03.07"]
["BOUIZAKARNE-TAGANTE","261.03.09"]
["BOUIZAKARNE-TAGHJIJT","261.03.11"]
["BOUIZAKARNE-TIMOULAY","261.03.13"]
["BOUJDOUR (M)","121.01.01"]
["BOUJDOUR-JRAIFIA","121.03.03"]
["BOUJNIBA (M)","311.01.03"]
["BOULEMANE (M)","131.01.01"]
["BOULEMANE-AIT BAZZA","131.03.01"]
["BOULEMANE-AIT EL MANE","131.03.03"]
["BOULEMANE-ALMIS MARMOUCHA","131.03.05"]
["BOULEMANE-EL MERS","131.03.07"]
["BOULEMANE-ENJIL","131.03.09"]
["BOULEMANE-GUIGOU","131.03.11"]
["BOULEMANE-SERGHINA","131.03.13"]
["BOULEMANE-SKOURA M'DAZ","131.03.15"]
["BOULEMANE-TALZEMT","131.03.17"]
["BOUMALNE DADES (M)","401.01.03"]
["BOUMALNE DADES-AIT EL FARSI","401.05.01"]
["BOUMALNE DADES-AIT OUASSIF","401.05.03"]
["BOUMALNE DADES-AIT SEDRATE JBEL EL OULIA","401.05.05"]
["BOUMALNE DADES-AIT SEDRATE JBEL EL SOUFLA","401.05.07"]
["BOUMALNE DADES-AIT SEDRATE SAHL CHARKIA","401.05.09"]
["BOUMALNE DADES-AIT SEDRATE SAHL EL GHARBIA","401.05.11"]
["BOUMALNE DADES-AIT YOUL","401.05.13"]
["BOUMALNE DADES-IGHIL N'OUMGOUN","401.05.15"]
["BOUMALNE DADES-IKNIOUEN","401.05.17"]
["BOUMALNE DADES-IMIDER","401.05.19"]
["BOUMALNE DADES-M'SEMRIR","401.05.21"]
["BOUMALNE DADES-OUAKLIM","401.05.23"]
["BOUMALNE DADES-SOUK LAKHMIS DADES","401.05.25"]
["BOUMALNE DADES-TAGHZOUTE N'AIT ATTA","401.05.27"]
["BOUMALNE DADES-TILMI","401.05.29"]
["BOUMALNE DADES-TOUDGHA EL OULIA","401.05.31"]
["BOUMALNE DADES-TOUDGHA ESSOUFLA","401.05.33"]
["BOUR-ALOUIDANE","351.03.01"]
["BOUR-HARBIL","351.03.03"]
["BOUR-M'NABHA","351.03.05"]
["BOUR-OUAHAT SIDI BRAHIM","351.03.07"]
["BOUR-OULAD HASSOUNE","351.03.09"]
["BOUR-OULED DLIM","351.03.11"]
["BOUSKOURA-DAR BOUAZZA","385.03.03"]
["BOUSKOURA-OULAD SALAH","385.03.05"]
["BOUZNIKA (M)","111.01.03"]
["BOUZNIKA-BIR ENNASR","111.05.01"]
["BOUZNIKA-CHERRAT","111.05.05"]
["BOUZNIKA-EL MANSOURIA","111.05.03"]
["BOUZNIKA-SIDI BETTACHE","111.05.04"]
["BZOU-AIT TAGUELLA","081.05.01"]
["BZOU-BNI AYAT","081.05.03"]
["BZOU-BNI HASSANE","081.05.05"]
["BZOU-FOUM JEMAA","081.05.09"]
["BZOU-MOULAY AISSA BEN DRISS","081.05.11"]
["BZOU-RFALA","081.05.13"]
["BZOU-TABIA","081.05.15"]
["BZOU-TANANT","081.05.17"]
["BZOU-TAOUNZA","081.05.19"]
["BZOU-TISQI","081.05.21"]
["CASABLANCA","141.00.00"]
["CASABLANCA-AIN CHOK (AR)","141.01.41"]
["CASABLANCA-AIN-SEBA- (AR)","141.01.21"]
["CASABLANCA-AL-FIDA (AR)","141.01.11"]
["CASABLANCA-ANFA (AR)","141.01.01"]
["CASABLANCA-ASSOUKHOUR ASSAWDA (AR)","141.01.23"]
["CASABLANCA-BEN M'SICK (AR)","141.01.61"]
["CASABLANCA-EL MAARIF (AR)","141.01.03"]
["CASABLANCA-HAY MOHAMMADI (AR)","141.01.25"]
["CASABLANCA-HAY-HASSANI (AR)","141.01.31"]
["CASABLANCA-MERS-SULTAN (AR)","141.01.13"]
["CASABLANCA-MOULAY RACHID (AR)","141.01.71"]
["CASABLANCA-SBATA (AR)","141.01.63"]
["CASABLANCA-SIDI BELYOUT (AR)","141.01.07"]
["CASABLANCA-SIDI BERNOUSSI (AR)","141.01.51"]
["CASABLANCA-SIDI MOUMEN (AR)","141.01.53"]
["CASABLANCA-SIDI OTHMANE (AR)","141.01.73"]
["CHEFCHAOUEN (M)","151.01.01"]
["CHEFCHAOUEN-BAB BERRED","151.03.03"]
["CHEFCHAOUEN-BAB TAZA","151.05.01"]
["CHEFCHAOUEN-MOQRISSET","151.09.09"]
["CHICHAOUA (M)","161.01.01"]
["CHICHAOUA-AFALLA ISSEN","161.05.01"]
["CHICHAOUA-AHDIL","161.03.01"]
["CHICHAOUA-AIT HADI","161.03.03"]
["CHICHAOUA-LAMZOUDIA","161.03.05"]
["CHICHAOUA-MAJJAT","161.07.11"]
["CHICHAOUA-OULAD MOUMNA","161.03.07"]
["CHICHAOUA-SAIDATE","161.03.09"]
["CHICHAOUA-SID L'MOKHTAR","161.03.11"]
["CHICHAOUA-SIDI BOUZID ARRAGRAGUI","161.03.13"]
["CHICHAOUA-SIDI M'HAMED DALIL","161.03.15"]
["DAKHLA (M)","391.01.01"]
["DAR GUEDDARI (M)","481.01.01"]
["DCHEIRA EL JIHADIA (M)","273.01.13"]
["DEBDOU (M)","533.01.13"]
["DEBDOU-EL ATEF","533.03.05"]
["DEBDOU-OULAD M'HAMMED","533.03.15"]
["DEBDOU-SIDI ALI BELKASSEM","533.03.17"]
["DEBDOU-SIDI LAHSEN","533.03.19"]
["DEMNATE (M)","081.01.03"]
["DEMNATE-AIT BLAL","081.07.01"]
["DEMNATE-AIT MAJDEN","081.07.03"]
["DEMNATE-AIT OUMDIS","081.07.05"]
["DEMNATE-AIT TAMLIL","081.07.07"]
["DEMNATE-ANZOU","081.07.09"]
["DEMNATE-IMLIL","081.07.11"]
["DEMNATE-OUAOULA","081.07.13"]
["DEMNATE-SIDI BOULKHALF","081.07.15"]
["DEMNATE-SIDI YACOUB","081.07.17"]
["DEMNATE-TIDILI FETOUAKA","081.07.19"]
["DEMNATE-TIFNI","081.07.21"]
["DRIOUCH-AIN ZOHRA","381.03.01"]
["DRIOUCH-AIT MAIT","381.03.03"]
["DRIOUCH-AMEJJAOU","381.03.05"]
["DRIOUCH-DAR EL KEBDANI","381.03.07"]
["DRIOUCH-OULAD BOUBKER","381.03.11"]
["DRIOUCH-TAZAGHINE","381.03.13"]
["ECHEMMAIA (M)","431.01.07"]
["EL AIOUN SIDI MELLOUK (M)","533.01.15"]
["EL AIOUN-AIN LEHJER","533.07.03"]
["EL AIOUN-MECHRAA HAMMADI","533.07.09"]
["EL AIOUN-MESTEGMER","533.07.13"]
["EL AIOUN-TANCHERFI","533.07.21"]
["EL ARGOUB-IMLILI","391.09.03"]
["EL BOROUJ (M)","461.01.05"]
["EL BOROUJ-AIN BLAL","461.07.01"]
["EL BOROUJ-BNI KHLOUG","461.07.03"]
["EL BOROUJ-DAR CHAFFAI","461.07.05"]
["EL BOROUJ-LAQRAQRA","461.07.07"]
["EL BOROUJ-MESKOURA","461.07.09"]
["EL BOROUJ-OULAD AMER","461.07.11"]
["EL BOROUJ-OULAD BOUALI NOUAJA","461.07.13"]
["EL BOROUJ-OULAD FARES EL HALLA","461.07.15"]
["EL BOROUJ-OULAD FREIHA","461.07.17"]
["EL BOROUJ-SIDI AHMED EL KHADIR","461.07.19"]
["EL BOROUJ-SIDI BOUMEHDI","461.07.21"]
["EL GARA (M)","461.01.07"]
["EL GARA-DEROUA","461.08.03"]
["EL GARA-FOQRA OULAD AAMEUR","461.08.05"]
["EL GARA-JAQMA","461.08.07"]
["EL GARA-KASBAT BEN MCHICH","461.08.09"]
["EL GARA-LAMBARKIYINE","461.08.17"]
["EL GARA-OULED CEBBAH","461.08.19"]
["EL GARA-OULED ZIDANE","461.08.21"]
["EL GARA-RIAH","461.08.23"]
["EL GUERDANE (M)","541.01.03"]
["EL HAJEB (M)","171.01.05"]
["EL HAJEB-AIT BOURZOUINE","171.07.01"]
["EL HAJEB-AIT NAAMANE","171.07.03"]
["EL HAJEB-IQADDAR","171.07.05"]
["EL HANCHANE (M)","211.01.03"]
["EL KBAB-AIT ISHAQ","301.03.01"]
["EL KBAB-AIT SAADELLI","301.03.03"]
["EL KBAB-KERROUCHEN","301.03.07"]
["EL KBAB-OUAOUMANA","301.03.09"]
["EL KBAB-SIDI YAHYA OU SAAD","301.03.11"]
["EL KBAB-TIGHASSALINE","301.03.13"]
["EL KELAA DES SRAGHNA(M)","191.01.03"]
["EL KELAA DES SRAGHNA-CHTAIBA","191.03.01"]
["EL KELAA DES SRAGHNA-EDDACHRA","191.03.03"]
["EL KELAA DES SRAGHNA-EL AAMRIA","191.03.05"]
["EL KELAA DES SRAGHNA-EL MARBOUH","191.03.07"]
["EL KELAA DES SRAGHNA-ERRAFIAYA","191.03.09"]
["EL KELAA DES SRAGHNA-HIADNA","191.03.11"]
["EL KELAA DES SRAGHNA-LAATTAOUIA","191.05.13"]
["EL KELAA DES SRAGHNA-LOUNASDA","191.03.13"]
["EL KELAA DES SRAGHNA-MAYATE","191.03.15"]
["EL KELAA DES SRAGHNA-OULAD AAMER","191.03.17"]
["EL KELAA DES SRAGHNA-OULAD BOUALI LOUED","191.03.19"]
["EL KELAA DES SRAGHNA-OULAD CHERKI","191.03.21"]
["EL KELAA DES SRAGHNA-OULAD EL GARNE","191.03.23"]
["EL KELAA DES SRAGHNA-OULAD MASSAOUD","191.03.25"]
["EL KELAA DES SRAGHNA-OULAD MSABBEL","191.03.27"]
["EL KELAA DES SRAGHNA-OULAD SBIH","191.03.29"]
["EL KELAA DES SRAGHNA-OULAD YAACOUB","191.03.31"]
["EL KELAA DES SRAGHNA-OULAD ZARRAD","191.03.33"]
["EL KELAA DES SRAGHNA-SIDI BOU OTHMANE","191.09.17"]
["EL KELAA DES SRAGHNA-SIDI EL HATTAB","191.03.35"]
["EL KELAA DES SRAGHNA-SIDI MOUSSA","191.03.37"]
["EL KELAA DES SRAGHNA-TAOUZINT","191.03.39"]
["EL KELAA DES SRAGHNA-ZNADA","191.03.41"]
["EL KSIBA (M)","091.01.03"]
["EL KSIBA-AGHBALA","091.07.01"]
["EL KSIBA-AIT OUM EL BEKHT","091.07.03"]
["EL KSIBA-BOUTFERDA","091.07.05"]
["EL KSIBA-DIR EL KSIBA","091.07.07"]
["EL KSIBA-FOUM EL ANCEUR","091.07.09"]
["EL KSIBA-NAOUR","091.07.11"]
["EL KSIBA-TAGHZIRT","091.07.13"]
["EL KSIBA-TANOUGHA","091.07.15"]
["EL KSIBA-TIZI N'ISLY","091.07.17"]
["EL MARSA (M)","321.01.01"]
["EL MENZEL (M)","451.01.03"]
["EL MENZEL-ADREJ","451.03.01"]
["EL MENZEL-AIN TIMGUENAI","451.03.03"]
["EL MENZEL-BIR TAM TAM","451.03.05"]
["EL MENZEL-DAR EL HAMRA","451.03.07"]
["EL MENZEL-IGHZRANE","451.03.09"]
["EL MENZEL-MTARNAGHA","451.03.11"]
["EL MENZEL-OULAD MKOUDOU","451.03.13"]
["EL MENZEL-RAS TABOUDA","451.03.15"]
["EL MENZEL-TAFAJIGHT","451.03.17"]
["EL OUATIA (M)","521.01.03"]
["EL-JADIDA (M)","181.01.03"]
["EL-JADIDA-MOULAY ABDALLAH","181.05.01"]
["EL-JADIDA-OULAD AISSA","181.05.03"]
["EL-JADIDA-OULAD GHANEM","181.05.05"]
["EL-JADIDA-OULAD HCINE","181.05.07"]
["EL-JADIDA-SIDI ABED","181.05.09"]
["EL-JADIDA-SIDI M'HAMED AKHDIM","181.05.11"]
["EL-JADIDA-SIDI SMAIL","181.09.19"]
["ERRACHIDIA (M)","201.01.05"]
["ERRACHIDIA-AOUFOUS","201.07.01"]
["ERRACHIDIA-ASSOUL","201.05.05"]
["ERRACHIDIA-CHORFA M'DAGHRA","201.07.03"]
["ERRACHIDIA-ER-RISSANI","201.11.03"]
["ERRACHIDIA-ER-RTEB","201.07.05"]
["ERRACHIDIA-IMILCHIL","201.15.07"]
["ERRACHIDIA-LKHENG","201.07.07"]
["ERRACHIDIA-OUED NAAM","201.07.09"]
["ER-RICH (M)","201.01.07"]
["ER-RICH-EN-NZALA","201.09.01"]
["ER-RICH-GOURRAMA","201.09.03"]
["ER-RICH-GUERS TIAALLALINE","201.09.05"]
["ER-RICH-GUIR","201.09.07"]
["ER-RICH-M'ZIZEL","201.09.09"]
["ER-RICH-SIDI AAYAD","201.09.11"]
["ER-RICH-ZAOUIAT SIDI HAMZA","201.09.13"]
["ER-RISSANI-BNI M'HAMED SIJELMASSA","201.11.01"]
["ER-RISSANI-ES-SFALAT","201.11.05"]
["ER-RISSANI-ET-TAOUS","201.11.07"]
["ER-RISSANI-SIDI ALI","201.11.09"]
["ESSAOUIRA (M)","211.01.05"]
["ESSAOUIRA-AIT SAID","211.03.01"]
["ESSAOUIRA-AQUERMOUD","211.03.03"]
["ESSAOUIRA-HAD DRA","211.03.05"]
["ESSAOUIRA-KECHOULA","211.03.07"]
["ESSAOUIRA-KORIMATE","211.03.09"]
["ESSAOUIRA-LAGDADRA","211.03.11"]
["ESSAOUIRA-LAHSINATE","211.03.13"]
["ESSAOUIRA-MEJJI","211.03.15"]
["ESSAOUIRA-MESKALA","211.03.17"]
["ESSAOUIRA-M'KHALIF","211.03.25"]
["ESSAOUIRA-MOUARID","211.03.19"]
["ESSAOUIRA-MOULAY BOUZARQTOUNE","211.03.21"]
["ESSAOUIRA-M'RAMER","211.03.27"]
["ESSAOUIRA-MZILATE","211.03.23"]
["ESSAOUIRA-OULAD M'RABET","211.03.29"]
["ESSAOUIRA-OUNAGHA","211.03.31"]
["ESSAOUIRA-SIDI ABDELJALIL","211.03.33"]
["ESSAOUIRA-SIDI AISSA REGRAGUI","211.03.35"]
["ESSAOUIRA-SIDI ALI EL KORATI","211.03.37"]
["ESSAOUIRA-SIDI BOULAALAM","211.03.39"]
["ESSAOUIRA-SIDI ISHAQ","211.03.41"]
["ESSAOUIRA-SIDI LAAROUSSI","211.03.43"]
["ESSAOUIRA-SIDI M'HAMED OU MARZOUQ","211.03.45"]
["ESSAOUIRA-TAFETACHTE","211.03.47"]
["ESSAOUIRA-TAKATE","211.03.49"]
["ESSAOUIRA-ZAOUIAT BEN HMIDA","211.03.51"]
["ES-SEMARA (M)","221.01.01"]
["ES-SEMARA-AMGALA","221.03.01"]
["ES-SEMARA-HAOUZA","221.03.03"]
["ES-SEMARA-JDIRIYA","221.03.05"]
["ES-SEMARA-SIDI AHMED LAAROUSSI","221.03.07"]
["ES-SEMARA-TIFARITI","221.03.09"]
["FAHS-AL BAHRAOYINE","227.05.01"]
["FAHS-KSAR SGHIR","227.05.05"]
["FAHS-LAAOUAMA","227.05.07"]
["FAHS-MALLOUSSA","227.05.09"]
["FAM EL HISN (M)","551.01.03"]
["FES","231.00.00"]
["FES-AGDAL (AR)","231.01.01"]
["FES-AIN BIDA","231.81.03"]
["FES-EL MARINIYINE (AR)","231.01.11"]
["FES-JNAN EL OUARD (AR)","231.01.09"]
["FES-M+DINA (AR)","231.01.07"]
["FES-OULAD TAYEB","231.81.01"]
["FES-SAISS (AR)","231.01.05"]
["FES-SIDI HARAZEM","231.81.05"]
["FES-ZOUAGHA (AR)","231.01.13"]
["FIGUIG (M)","251.01.03"]
["FIGUIG-ABBOU LAKHAL","251.05.01"]
["FIGUIG-BNI GUIL","251.05.03"]
["FIGUIG-MAATARKA","251.05.05"]
["FIGUIG-TENDRARA","251.05.07"]
["FNIDQ (M)","571.01.01"]
["FOUM ZGUID (M)","551.01.05"]
["FOUM ZGUID-AGUINANE","551.05.01"]
["FOUM ZGUID-AKKA IGHANE","551.05.03"]
["FOUM ZGUID-ALLOUGOUM","551.05.05"]
["FOUM ZGUID-IBN YACOUB","551.05.07"]
["FOUM ZGUID-TISSINT","551.05.09"]
["FOUM ZGUID-TLITE","551.05.11"]
["FQIH BEN SALAH-AL KHALFIA","091.09.01"]
["FQIH BEN SALAH-BNI CHEGDALE","091.09.03"]
["FQIH BEN SALAH-BNI OUKIL","091.09.05"]
["FQIH BEN SALAH-BRADIA","091.09.07"]
["FQIH BEN SALAH-HEL MERBAA","091.09.09"]
["FQIH BEN SALAH-KRIFATE","091.09.11"]
["FQUIH BEN SALAH (M)","091.01.05"]
["GHAFSAI (M)","531.01.01"]
["GHAFSAI-EL BIBANE","531.03.01"]
["GHAFSAI-GALAZ","531.03.03"]
["GHAFSAI-KISSANE","531.03.05"]
["GHAFSAI-OUDKA","531.03.07"]
["GHAFSAI-OURTZAGH","531.03.09"]
["GHAFSAI-RATBA","531.03.11"]
["GHAFSAI-SIDI HAJ M'HAMED","531.03.13"]
["GHAFSAI-SIDI MOKHFI","531.03.15"]
["GHAFSAI-SIDI YAHYA BNI ZEROUAL","531.03.17"]
["GHAFSAI-TABOUDA","531.03.19"]
["GHAFSAI-TAFRANT","531.03.21"]
["GHAFSAI-TIMEZGANA","531.03.23"]
["GOULMIMA (M)","201.01.09"]
["GOULMIMA-AGHBALOU N'KERDOUS","201.13.01"]
["GOULMIMA-FERKLA EL OULIA","201.13.03"]
["GOULMIMA-FERKLA ES-SOUFLA","201.13.05"]
["GOULMIMA-GHERIS EL OULOUI","201.13.07"]
["GOULMIMA-GHERIS ES-SOUFLI","201.13.09"]
["GOULMIMA-MELAAB","201.13.11"]
["GOULMIMA-TADIGHOUST","201.13.13"]
["GUELAIA-BNI BOUIFROUR","381.05.01"]
["GUELAIA-BNI CHIKER","381.05.03"]
["GUELAIA-BNI SIDEL JBEL","381.05.05"]
["GUELAIA-BNI SIDEL LOUTA","381.05.07"]
["GUELAIA-BOUARG","381.05.09"]
["GUELAIA-FARKHANA","381.05.11"]
["GUELAIA-IAAZZANENE","381.05.13"]
["GUELAIA-IHADDADENE","381.05.15"]
["GUELAIA-IKSANE","381.05.17"]
["GUELAIA-SELOUANE","381.05.19"]
["GUELMIM (M)","261.01.03"]
["GUELMIM-ABAYNOU","261.05.01"]
["GUELMIM-AFERKAT","261.05.03"]
["GUELMIM-ASRIR","261.05.05"]
["GUELMIM-ECHATEA EL ABIED","261.05.07"]
["GUELMIM-FASK","261.05.09"]
["GUELMIM-LABYAR","261.05.11"]
["GUELMIM-LAQSABI TAGOUST","261.05.13"]
["GUELMIM-RASS OUMLIL","261.05.15"]
["GUELMIM-TALIOUINE ASSAKA","261.05.17"]
["GUELMIM-TARGA WASSAY","261.05.19"]
["GUELMIM-TIGLIT","261.05.21"]
["GUERCIF (M)","561.01.03"]
["GUERCIF-ASSEBBAB","561.05.01"]
["GUERCIF-BARKINE","561.05.03"]
["GUERCIF-HOUARA OULAD RAHO","561.05.05"]
["GUERCIF-LAMRIJA","561.05.07"]
["GUERCIF-MAZGUITAM","561.05.09"]
["GUERCIF-OULAD BOURIMA","561.05.11"]
["GUERCIF-RAS LAKSAR","561.05.13"]
["GUERCIF-SAKA","561.05.15"]
["GUERCIF-TADDART","561.05.17"]
["GZOULA-ATOUABET","431.07.01"]
["GZOULA-EL GHIATE","431.07.03"]
["GZOULA-KHATAZAKANE","431.07.05"]
["GZOULA-LAAMAMRA","431.07.07"]
["GZOULA-LAMAACHATE","431.07.09"]
["GZOULA-NAGGA","431.07.11"]
["GZOULA-OULAD SALMANE","431.07.13"]
["GZOULA-SAADLA","431.07.15"]
["HAD KOURT (M)","481.01.03"]
["HAD KOURT-AIN DFALI","481.03.01"]
["HAD KOURT-BNI OUAL","481.03.03"]
["HAD KOURT-KHNICHET","481.03.05"]
["HAD KOURT-LAMRABIH","481.03.07"]
["HAD KOURT-MOULAY ABDELKADER","481.03.09"]
["HAD KOURT-OULAD NOUEL","481.03.11"]
["HAD KOURT-SIDI AHMED BENAISSA","481.03.13"]
["HAD KOURT-SIDI AMEUR AL HADI","481.03.15"]
["HAD KOURT-SIDI AZZOUZ","481.03.17"]
["HAD KOURT-SIDI M'HAMED CHELH","481.03.19"]
["HAD KOURT-TAOUGHILT","481.03.21"]
["HARHOURA (M)","501.01.03"]
["HATTANE (M)","311.01.05"]
["HRARA-AYIR","431.09.01"]
["HRARA-DAR SI AISSA","431.09.03"]
["HRARA-EL BEDDOUZA","431.09.05"]
["HRARA-MOUL EL BERGUI","431.09.09"]
["IFNI-ARBAA AIT ABDELLAH","581.05.01"]
["IFNI-IMI N'FAST","581.05.03"]
["IFNI-MESTI","581.05.05"]
["IFNI-MIRLEFT","581.05.07"]
["IFNI-SBOUYA","581.05.09"]
["IFNI-TANGARFA","581.05.11"]
["IFNI-TIOUGHZA","581.05.13"]
["IFNI-TNINE AMELLOU","581.05.15"]
["IFRANE (M)","271.01.03"]
["IFRANE-DAYAT AOUA","271.81.01"]
["IFRANE-TIZGUITE","271.81.03"]
["IMILCHIL-AIT YAHYA","201.15.01"]
["IMILCHIL-AMOUGUER","201.15.03"]
["IMILCHIL-BOU AZMOU","201.15.05"]
["IMILCHIL-OUTERBAT","201.15.09"]
["IMINTANOUTE (M)","161.01.03"]
["IMINTANOUTE-AIN TAZITOUNTE","161.05.03"]
["IMINTANOUTE-AIT HADDOU YOUSSEF","161.05.05"]
["IMINTANOUTE-IROHALEN","161.05.07"]
["IMINTANOUTE-LALLA AAZIZA","161.05.09"]
["IMINTANOUTE-NFIFA","161.05.11"]
["IMINTANOUTE-OUED L'BOUR","161.05.13"]
["IMINTANOUTE-SIDI GHANEM","161.05.15"]
["IMINTANOUTE-TIMEZGADIOUINE","161.05.17"]
["IMOUZZER KANDAR (M)","451.01.05"]
["IMOUZZER KANDAR-AIN CHEGGAG","451.05.01"]
["IMOUZZER KANDAR-AIT SEBAA LAJROUF","451.05.03"]
["IMOUZZER MARMOUCHA(M)","131.01.02"]
["IMZOUREN (M)","051.01.05"]
["INEZGANE (M)","273.01.15"]
["IRHERM (M)","541.01.05"]
["IRHERM-ADAR","541.03.01"]
["IRHERM-AIT ABDALLAH","541.03.03"]
["IRHERM-AMALOU","541.03.05"]
["IRHERM-AZAGHAR N'IRS","541.03.07"]
["IRHERM-IMAOUEN","541.03.09"]
["IRHERM-IMI N'TAYART","541.03.11"]
["IRHERM-NIHIT","541.03.13"]
["IRHERM-OUALQADI","541.03.15"]
["IRHERM-SIDI BOAAL","541.03.17"]
["IRHERM-SIDI MZAL","541.03.19"]
["IRHERM-TABIA","541.03.21"]
["IRHERM-TATAOUTE","541.03.23"]
["IRHERM-TINDINE","541.03.25"]
["IRHERM-TISFANE","541.03.27"]
["IRHERM-TOUFELAAZT","541.03.29"]
["IRHERM-TOUMLILINE","541.03.31"]
["JAMAAT SHAIM (M)","431.01.09"]
["JEBALA-AIN LAHSAN","571.03.01"]
["JEBALA-ALLYENE","571.03.03"]
["JEBALA-BNI HARCHEN","571.03.07"]
["JEBALA-JBEL LAHBIB","571.03.09"]
["JEBALA-MALLALIENNE","571.03.15"]
["JEBALA-SADDINA","571.03.17"]
["JEBALA-SOUK KDIM","571.03.19"]
["JERADA (M)","275.01.17"]
["JERADA BANLIEUE-GAFAIT","275.03.03"]
["JERADA BANLIEUE-GUENFOUDA","275.03.05"]
["JERADA BANLIEUE-LAAOUINATE","275.03.07"]
["JERADA BANLIEUE-LEBKHATA","275.03.09"]
["JERADA BANLIEUE-RAS ASFOUR","275.03.13"]
["JERADA BANLIEUE-SIDI BOUBKER","275.03.15"]
["JERADA BANLIEUE-TIOULI","275.03.21"]
["JERADA-BNI MATHAR","275.05.01"]
["JORF (M)","201.01.11"]
["JORF EL MELHA (M)","481.01.05"]
["JRAIFIA-GUELTAT ZEMMOUR","121.03.01"]
["JRAIFIA-LAMSSID","121.03.05"]
["KALAAT M'GOUNA (M)","401.01.05"]
["KARIA BA MOHAMED (M)","531.01.03"]
["KARIA BA MOHAMED-BNI SNOUS","531.05.01"]
["KARIA BA MOHAMED-BOUCHABEL","531.05.03"]
["KARIA BA MOHAMED-GHOUAZI","531.05.05"]
["KARIA BA MOHAMED-JBABRA","531.05.07"]
["KARIA BA MOHAMED-LOULJA","531.05.09"]
["KARIA BA MOHAMED-MKANSA","531.05.11"]
["KARIA BA MOHAMED-MOULAY ABDELKRIM","531.05.13"]
["KARIA BA MOHAMED-MOULAY BOUCHTA","531.05.15"]
["KARIA BA MOHAMED-SIDI EL ABED","531.05.17"]
["KASBA TADLA (M)","091.01.07"]
["KASBA TADLA-GUETTAYA","091.11.01"]
["KASBA TADLA-OULAD SAID L'OUED","091.11.05"]
["KASBA TADLA-OULAD YOUSSEF","091.11.03"]
["KASBA TADLA-SEMGUET","091.11.07"]
["KENITRA (M)","281.01.01"]
["KENITRA BANLIEUE-AMEUR SEFLIA","281.03.01"]
["KENITRA BANLIEUE-BEN MANSOUR","281.03.03"]
["KENITRA BANLIEUE-HADDADA","281.03.05"]
["KENITRA BANLIEUE-MNASRA","281.03.07"]
["KENITRA BANLIEUE-MOGRANE","281.03.09"]
["KENITRA BANLIEUE-OULAD SLAMA","281.03.11"]
["KENITRA BANLIEUE-SIDI TAIBI","281.03.13"]
["KENITRA-SOUK TLET EL GHARB","281.09.15"]
["KHEMISSET (M)","291.01.01"]
["KHEMISSET-AIT MIMOUNE","291.03.01"]
["KHEMISSET-AIT OURIBEL","291.03.03"]
["KHEMISSET-AIT SIBERNE","291.03.05"]
["KHEMISSET-AIT YADINE","291.03.07"]
["KHEMISSET-EL GANZRA","291.03.09"]
["KHEMISSET-MAJMAA TOLBA","291.03.11"]
["KHEMISSET-OULMES","291.05.11"]
["KHEMISSET-SFASSIF","291.03.13"]
["KHEMISSET-SIDI ALLAL LAMSADDER","291.03.15"]
["KHEMISSET-SIDI EL GHANDOUR","291.03.17"]
["KHENIFRA (M)","301.01.01"]
["KHENIFRA-AGUELMAM AZEGZA","301.05.01"]
["KHENIFRA-AGUELMOUS","301.05.03"]
["KHENIFRA-EL BORJ","301.05.05"]
["KHENIFRA-EL HAMMAM","301.05.07"]
["KHENIFRA-EL KBAB","301.03.05"]
["KHENIFRA-HAD BOUHSSOUSSEN","301.05.09"]
["KHENIFRA-LEHRI","301.05.11"]
["KHENIFRA-MOHA OU HAMMOU ZAYANI","301.05.13"]
["KHENIFRA-MOULAY BOUAZZA","301.05.15"]
["KHENIFRA-OUM RABIA","301.05.17"]
["KHENIFRA-SEBT AIT RAHOU","301.05.19"]
["KHENIFRA-SIDI AMAR","301.05.21"]
["KHENIFRA-SIDI HCINE","301.05.23"]
["KHENIFRA-SIDI LAMINE","301.05.25"]
["KHOURIBGA (M)","311.01.07"]
["KHOURIBGA-BIR MEZOUI","311.05.01"]
["KHOURIBGA-BNI YKHLEF","311.05.03"]
["KHOURIBGA-BOULANOUARE","311.05.05"]
["KHOURIBGA-EL FOQRA","311.05.09"]
["KHOURIBGA-LAGFAF","311.05.07"]
["KHOURIBGA-M'FASSIS","311.05.11"]
["KHOURIBGA-OULAD ABDOUNE","311.05.13"]
["KHOURIBGA-OULAD AZZOUZ","311.05.15"]
["KSAR EL KEBIR (M)","331.01.01"]
["KSAR EL KEBIR-BOU JEDYANE","331.03.01"]
["KSAR EL KEBIR-KSAR BJIR","331.03.03"]
["KSAR EL KEBIR-LAOUAMRA","331.03.05"]
["KSAR EL KEBIR-OULAD OUCHIH","331.03.07"]
["KSAR EL KEBIR-SOUAKEN","331.03.09"]
["KSAR EL KEBIR-SOUK L'QOLLA","331.03.11"]
["KSAR EL KEBIR-SOUK TOLBA","331.03.13"]
["KSAR EL KEBIR-TATOFT","331.03.15"]
["KSAR EL KEBIR-ZOUADA","331.03.17"]
["LAATTAOUIA (M)","191.01.05"]
["LAATTAOUIA ECH-CHAYBIA","191.05.16"]
["LAATTAOUIA-ASSAHRIJ","191.05.01"]
["LAATTAOUIA-BOUYA OMAR","191.05.03"]
["LAATTAOUIA-CHOARA","191.05.05"]
["LAATTAOUIA-DZOUZ","191.05.07"]
["LAATTAOUIA-FRAITA","191.05.09"]
["LAATTAOUIA-JBIEL","191.05.11"]
["LAATTAOUIA-LAATAMNA","191.05.15"]
["LAATTAOUIA-LOUED LAKHDAR","191.05.17"]
["LAATTAOUIA-M'ZEM SANHAJA","191.05.19"]
["LAATTAOUIA-OUARGUI","191.05.21"]
["LAATTAOUIA-OULAD AARRAD","191.05.23"]
["LAATTAOUIA-OULAD KHALLOUF","191.05.25"]
["LAATTAOUIA-SIDI AISSA BEN SLIMANE","191.05.27"]
["LAATTAOUIA-SOUR EL AAZ","191.05.29"]
["LAATTAOUIA-ZEMRANE","191.05.31"]
["LAATTAOUIA-ZEMRANE CHARQIA","191.05.33"]
["LAAYOUNE (M)","321.01.03"]
["LAAYOUNE-BOUKRAA","321.03.01"]
["LAAYOUNE-DCHEIRA","321.03.03"]
["LAAYOUNE-FOUM EL OUED","321.03.05"]
["LAGOUIRA (M)","066.01.03"]
["LAKHSA-IBDAR","581.07.07"]
["LAKHSAS (M)","581.01.01"]
["LAKHSAS-AIT ERKHA","581.07.01"]
["LAKHSAS-ANFEG","581.07.03"]
["LAKHSAS-BOUTROUCH","581.07.05"]
["LAKHSAS-SEBT ENNABOUR","581.07.09"]
["LAKHSAS-SIDI ABDALLAH OU BELAID","581.07.11"]
["LAKHSAS-SIDI H'SAINE OU ALI","581.07.13"]
["LAKHSAS-SIDI M'BARK","581.07.15"]
["LAKHSAS-TIGHIRT","581.07.17"]
["LARACHE (M)","331.01.03"]
["LARACHE-AYACHA","331.05.01"]
["LARACHE-BNI AROUSS","331.05.03"]
["LARACHE-BNI GARFETT","331.05.05"]
["LARACHE-RISSANA CHAMALIA","331.05.07"]
["LARACHE-RISSANA JANOUBIA","331.05.09"]
["LARACHE-SAHEL","331.05.11"]
["LARACHE-TAZROUTE","331.05.13"]
["LARACHE-ZAAROURA","331.05.15"]
["LBIR JDID (M)","181.01.05"]
["LOUDAYA-AGAFAY","351.05.01"]
["LOUDAYA-AIT IMOUR","351.05.03"]
["LOUDAYA-AIT OUIKHALFEN","171.03.01"]
["LOUDAYA-LOUDAYA","351.05.05"]
["LOUDAYA-SAADA","351.05.07"]
["LOUDAYA-SID ZOUINE","351.05.09"]
["LOUDAYA-SOUIHLA","351.05.11"]
["LOUDAYA-TASSOULTANTE","351.05.13"]
["LOULAD (M)","461.01.09"]
["LOUTA-AFSOU","381.07.01"]
["LOUTA-AL BARKANYENE","381.07.03"]
["LOUTA-AREKMANE","381.07.05"]
["LOUTA-BNI OUKIL OULAD M'HAND","381.07.07"]
["LOUTA-HASSI BERKANE","381.07.09"]
["LOUTA-OULAD DAOUD ZKHANINE","381.07.11"]
["LOUTA-OULAD SETTOUT","381.07.13"]
["LOUTA-RAS EL MA","381.07.15"]
["LOUTA-TIZTOUTINE","381.07.17"]
["M+CHOUAR FES JDID (M)","231.01.03"]
["M+CHOUAR KASBA (M)","351.01.01"]
["MAJJAT-ADASSIL","161.07.01"]
["MAJJAT-ASSIF EL MAL","161.07.03"]
["MAJJAT-DOUIRANE","161.07.05"]
["MAJJAT-GMASSA","161.07.07"]
["MAJJAT-IMINDOUNIT","161.07.09"]
["MAJJAT-M'ZOUDA","161.07.13"]
["MAJJAT-ZAOUIA ANNAHLIA","161.07.15"]
["MARRAKECH","351.00.00"]
["MARRAKECH-ANNAKHIL (AR)","351.01.03"]
["MARRAKECH-GUELIZ (AR)","351.01.05"]
["MARRAKECH-MEDINA (AR)","351.01.07"]
["MARRAKECH-MENARA (AR)","351.01.09"]
["MARRAKECH-SIDI YOUSSEF BEN ALI (AR)","351.01.11"]
["MARTIL (M)","571.01.03"]
["M'DIQ (M)","571.01.05"]
["MECHOUAR DE CASABLANCA (M)","141.01.81"]
["MECHRA BEL KSIRI (M)","481.01.07"]
["MECHRA BELKSIRI-AL HAOUAFATE","481.05.01"]
["MECHRA BELKSIRI-DAR LAASLOUJI","481.05.03"]
["MECHRA BELKSIRI-ERMILATE","481.05.05"]
["MECHRA BELKSIRI-NOUIRATE","481.05.07"]
["MECHRA BELKSIRI-SEFSAF","481.05.09"]
["MECHRA BELKSIRI-SIDI AL KAMEL","481.05.11"]
["MEDIOUNA (M)","355.01.03"]
["MEHDYA (M)","281.01.05"]
["MEKNES (M)","061.01.01"]
["MEKNES BANLIEUE-DKHISSA","061.05.01"]
["MEKNES BANLIEUE-MAJJATE","061.05.03"]
["MEKNES BANLIEUE-M'HAYA","061.05.05"]
["MEKNES BANLIEUE-OUED JDIDA","061.05.07"]
["MEKNES BANLIEUE-SIDI SLIMANE MOUL AL KIFANE","061.05.09"]
["MEKNES-AIN ORMA","061.03.05"]
["MIDELT (M)","301.01.03"]
["MIDELT-AGHBALOU","301.07.01"]
["MIDELT-AGOUDIM","301.07.03"]
["MIDELT-AIT AYACH","301.07.05"]
["MIDELT-AIT BEN YACOUB","301.07.07"]
["MIDELT-AIT IZDEG","301.07.09"]
["MIDELT-AMERSID","301.07.11"]
["MIDELT-ANEMZI","301.07.13"]
["MIDELT-BOUMIA","301.07.15"]
["MIDELT-ITZER","301.07.17"]
["MIDELT-MIBLADEN","301.07.19"]
["MIDELT-SIDI YAHYA OU YOUSSEF","301.07.21"]
["MIDELT-TANOURDI","301.07.23"]
["MIDELT-TIZI N'GHACHOU","301.07.25"]
["MIDELT-TOUNFITE","301.07.27"]
["MIDELT-ZAIDA","301.07.29"]
["MISSOUR (M)","131.01.03"]
["MISSOUR-KSABI MOULOUYA","131.05.01"]
["MISSOUR-OUIZEGHT","131.05.03"]
["MISSOUR-SIDI BOUTAYEB","131.05.05"]
["MOHAMMEDIA (M)","371.01.01"]
["MOQRISSET-AIN BEIDA","151.09.01"]
["MOQRISSET-ASJEN","151.09.03"]
["MOQRISSET-BRIKCHA","151.09.05"]
["MOQRISSET-KALAAT BOUQORRA","151.09.07"]
["MOQRISSET-ZOUMI","151.09.11"]
["MOULAY ALI CHERIF(M)","201.01.13"]
["MOULAY DRISS ZERHOUN (M)","061.01.09"]
["MOULAY YACOUB (M)","591.01.01"]
["MOULAY YACOUB-AIN CHKEF","591.03.01"]
["MOULAY YACOUB-MIKKES","591.03.03"]
["MOULAY YACOUB-SEBAA ROUADI","591.03.05"]
["MOULAY YACOUB-SEBT LOUDAYA","591.03.07"]
["M'RIRT (M)","301.01.05"]
["MSIED-TILEMZOUN","521.03.03"]
["MTOUGA-BOUABOUT","161.09.01"]
["MTOUGA-BOUABOUT AMDLANE","161.09.03"]
["MTOUGA-ICHAMRAREN","161.09.05"]
["MTOUGA-KOUZEMT","161.09.07"]
["MTOUGA-RAHHALA","161.09.09"]
["MTOUGA-SIDI ABDELMOUMEN","161.09.11"]
["MTOUGA-TAOULOUKOULT","161.09.13"]
["MTOUGA-TIMLILT","161.09.15"]
["NADOR (M)","381.01.05"]
["NADOR-DRIOUCH","381.03.09"]
["NAIMA (M)","411.01.19"]
["NOUACEUR (M)","385.01.03"]
["NOUACEUR-BOUSKOURA","385.03.01"]
["OUAOUIZEGHT -TIFFERT N'AIT HAMZA","081.09.21"]
["OUAOUIZEGHT-AFOURAR","081.09.01"]
["OUAOUIZEGHT-AIT MAZIGH","081.09.03"]
["OUAOUIZEGHT-AIT OUAARDA","081.09.05"]
["OUAOUIZEGHT-AIT OUQABLI","081.09.07"]
["OUAOUIZEGHT-ANERGUI","081.09.09"]
["OUAOUIZEGHT-BIN EL OUIDANE","081.09.11"]
["OUAOUIZEGHT-ISSEKSI","081.09.13"]
["OUAOUIZEGHT-TABAROUCHT","081.09.17"]
["OUAOUIZEGHT-TAGLEFT","081.09.19"]
["OUAOUIZEGHT-TILOUGGUITE","081.09.23"]
["OUAOUIZEGHT-TIMOULILT","081.09.25"]
["OUARZAZATE (M)","401.01.07"]
["OUARZAZATE-AMERZGANE","401.03.03"]
["OUARZAZATE-GHASSATE","401.07.01"]
["OUARZAZATE-IDELSANE","401.07.03"]
["OUARZAZATE-IMI N'OULAOUNE","401.07.05"]
["OUARZAZATE-SKOURA AHL EL OUST","401.07.07"]
["OUARZAZATE-TARMIGT","401.07.09"]
["OUARZAZATE-TOUNDOUTE","401.07.11"]
["OUED AMLIL (M)","561.01.05"]
["OUED AMLIL-BNI FRASSEN","561.07.01"]
["OUED AMLIL-BOUHLOU","561.07.05"]
["OUED AMLIL-GHIATA AL GHARBIA","561.07.07"]
["OUED AMLIL-OUED AMLIL-BOUCHFAA","561.07.03"]
["OUED AMLIL-OULAD ZBAIR","561.07.09"]
["OUED AMLIL-RBAA EL FOUKI","561.07.11"]
["OUED LAOU (M)","571.01.07"]
["OUED ZEM (M)","311.01.09"]
["OUED-ED-DAHAB-BIR ANZARANE","391.05.01"]
["OUED-ED-DAHAB-EL ARGOUB","391.09.01"]
["OUED-ZEM-AIT AMMAR","311.07.01"]
["OUED-ZEM-BNI SMIR","311.07.03"]
["OUED-ZEM-BRAKSA","311.07.05"]
["OUED-ZEM-KASBAT TROCH","311.07.07"]
["OUED-ZEM-LAGNADIZ","311.07.09"]
["OUED-ZEM-MAADNA","311.07.11"]
["OUED-ZEM-OULAD AISSA","311.07.13"]
["OUED-ZEM-OULAD BOUGHADI","311.07.15"]
["OUED-ZEM-OULAD FENNANE","311.07.17"]
["OUED-ZEM-OULAD FTATA","311.07.19"]
["OUEZZANE (M)","481.01.09"]
["OUEZZANE-BNI QUOLLA","481.07.01"]
["OUEZZANE-LAMJAARA","481.07.03"]
["OUEZZANE-MASMOUDA","481.07.05"]
["OUEZZANE-MZEFROUNE","481.07.07"]
["OUEZZANE-OUNNANA","481.07.09"]
["OUEZZANE-SIDI AHMED CHERIF","481.07.11"]
["OUEZZANE-SIDI BOUSBER","481.07.13"]
["OUEZZANE-SIDI REDOUANE","481.07.15"]
["OUEZZANE-TEROUAL","481.07.17"]
["OUEZZANE-ZGHIRA","481.07.19"]
["OUISLANE (M)","061.01.11"]
["OUJDA (M)","411.01.23"]
["OUJDA BANLIEUE-AHL ANGAD","411.07.01"]
["OUJDA BANLIEUE-AIN SFA","411.07.03"]
["OUJDA BANLIEUE-BNI KHALED","411.07.05"]
["OUJDA BANLIEUE-BSARA","411.07.07"]
["OUJDA BANLIEUE-ISLY","411.07.09"]
["OUJDA BANLIEUE-MESTFERKI","411.07.11"]
["OUJDA BANLIEUE-SIDI BOULENOUAR","411.07.17"]
["OUJDA BANLIEUE-SIDI MOUSSA LEMHAYA","411.07.19"]
["OULAD ABBOU (M)","461.01.11"]
["OULAD AYAD (M)","091.01.09"]
["OULAD BERHIL (M)","541.01.07"]
["OULAD BERHIL-AOULOUZ","541.04.07"]
["OULAD BERHIL-ARAZANE","541.04.09"]
["OULAD BERHIL-EL FAID","541.04.13"]
["OULAD BERHIL-IDA OU GAILAL","541.04.17"]
["OULAD BERHIL-IDA OUGOUMMAD","541.04.21"]
["OULAD BERHIL-IGLI","541.04.23"]
["OULAD BERHIL-IGOUDAR MNABHA","541.04.25"]
["OULAD BERHIL-LAMHARA","541.04.29"]
["OULAD BERHIL-OULAD AISSA","541.04.33"]
["OULAD BERHIL-OUNEINE","541.04.35"]
["OULAD BERHIL-OUZIOUA","541.04.37"]
["OULAD BERHIL-SIDI ABDELLAH OU SAID","541.04.39"]
["OULAD BERHIL-SIDI OUAAZIZ","541.04.47"]
["OULAD BERHIL-TAFINGOULT","541.04.49"]
["OULAD BERHIL-TALGJOUNT","541.04.53"]
["OULAD BERHIL-TIGOUGA","541.04.59"]
["OULAD BERHIL-TINZART","541.04.61"]
["OULAD BERHIL-TISRASSE","541.04.65"]
["OULAD BERHIL-TIZI N'TEST","541.04.67"]
["OULAD BERHIL-TOUGHMART","541.04.69"]
["OULAD JEMAA LEMTA-AIN BOU ALI","591.05.01"]
["OULAD JEMAA LEMTA-AIN KANSARA","591.05.02"]
["OULAD JEMAA LEMTA-LAAJAJRA","591.05.03"]
["OULAD JEMAA LEMTA-LOUADAINE","591.05.05"]
["OULAD JEMAA LEMTA-OULAD MIMOUN","591.05.07"]
["OULAD JEMAA LEMTA-SIDI DAOUD","591.05.09"]
["OULAD M'RAH (M)","461.01.13"]
["OULAD TEIMA (M)","541.01.09"]
["OULAD TEIMA-AHL RAMEL","541.05.01"]
["OULAD TEIMA-ARGANA","541.05.03"]
["OULAD TEIMA-ASSADS","541.05.05"]
["OULAD TEIMA-BIGOUDINE","541.05.07"]
["OULAD TEIMA-EDDIR","541.05.09"]
["OULAD TEIMA-EL KOUDIA EL BEIDA","541.05.11"]
["OULAD TEIMA-IMILMAISS","541.05.13"]
["OULAD TEIMA-ISSEN","541.05.15"]
["OULAD TEIMA-LAGFIFAT","541.05.17"]
["OULAD TEIMA-LAKHNAFIF","541.05.19"]
["OULAD TEIMA-LAMHADI","541.05.21"]
["OULAD TEIMA-MACHRAA EL AIN","541.05.23"]
["OULAD TEIMA-SIDI AHMED OU AMAR","541.05.25"]
["OULAD TEIMA-SIDI BOUMOUSSA","541.05.27"]
["OULAD TEIMA-SIDI MOUSSA LHAMRI","541.05.29"]
["OULAD TEIMA-TALMAKANTE","541.05.31"]
["OULAD TEIMA-TIDSI NISSENDALENE","541.05.33"]
["OULMES-AIT ICHOU","291.05.01"]
["OULMES-AIT IKKOU","291.05.03"]
["OULMES-BOUQACHMIR","291.05.05"]
["OULMES-HOUDERRANE","291.05.07"]
["OULMES-MAAZIZ","291.05.09"]
["OULMES-TIDDAS","291.05.13"]
["OUTAT EL HAJ (M)","131.01.05"]
["OUTAT EL HAJ-EL ORJANE","131.07.01"]
["OUTAT EL HAJ-ERMILA","131.07.03"]
["OUTAT EL HAJFRITISSA","131.07.05"]
["OUTAT EL HAJ-OULAD ALI YOUSSEF","131.07.07"]
["OUTAT EL HAJ-TISSAF","131.07.09"]
["RABAT","421.00.00"]
["RABAT-AGDAL RIYAD (AR)","421.01.01"]
["RABAT-EL YOUSSOUFIA (AR)","421.01.03"]
["RABAT-HASSAN (AR)","421.01.05"]
["RABAT-SOUISSI (AR)","421.01.06"]
["RABAT-YACOUB EL MANSOUR (AR)","421.01.09"]
["REHAMNA-AIT HAMMOU","191.07.01"]
["REHAMNA-AIT TALEB","191.07.03"]
["REHAMNA-BOUCHANE","191.07.05"]
["REHAMNA-JAAFRA","191.07.07"]
["REHAMNA-LABRIKIYNE","191.07.09"]
["REHAMNA-OULAD AAMER TIZMARINE","191.07.11"]
["REHAMNA-OULAD HASSOUNE HAMRI","191.07.13"]
["REHAMNA-SIDI ABDALLAH","191.07.15"]
["REHAMNA-SIDI ALI LABRAHLA","191.07.17"]
["REHAMNA-SIDI GHANEM","191.07.19"]
["REHAMNA-SIDI MANSOUR","191.07.21"]
["REHAMNA-SKHOUR RHAMNA","191.07.23"]
["REHAMNA-SKOURA LHADRA","191.07.25"]
["RIBATE EL KHEIR (M)","451.01.07"]
["RIF-AZLAF","381.09.01"]
["RIF-BEN TAIEB","381.09.03"]
["RIF-BNI MARGHNINE","381.09.05"]
["RIF-BOUDINAR","381.09.07"]
["RIF-IFERNI","381.09.09"]
["RIF-IJERMAOUAS","381.09.11"]
["RIF-M'HAJER","381.09.15"]
["RIF-MIDAR","381.09.13"]
["RIF-OUARDANA","381.09.17"]
["RIF-OULAD AMGHAR","381.09.19"]
["RIF-TAFERSIT","381.09.21"]
["RIF-TALILIT","381.09.23"]
["RIF-TEMSAMANE","381.09.25"]
["RIF-TROUGOUT","381.09.27"]
["RIF-TSAFT","381.09.29"]
["ROMMANI (M)","291.01.03"]
["ROMMANI-AIN SBIT","291.07.01"]
["ROMMANI-BRACHOUA","291.07.05"]
["ROMMANI-EZZHILIGA","291.07.07"]
["ROMMANI-JEMAAT MOUL BLAD","291.07.09"]
["ROMMANI-LAGHOUALEM","291.07.11"]
["ROMMANI-MARCHOUCH","291.07.13"]
["ROMMANI-MOULAY DRISS AGHBAL","291.07.15"]
["SABAA AIYOUN (M)","171.01.07"]
["SAFI (M)","431.01.03"]
["SAFI-HRARA","431.09.07"]
["SAIDIA (M)","113.01.25"]
["SALE","441.00.00"]
["SALE BANLIEUE-SHOUL","441.03.01"]
["SALE BANLIEUE-SIDI BOUKNADEL","441.03.03"]
["SALE-BAB LAMRISSA (AR)","441.01.03"]
["SALE-BETTANA (AR)","441.01.05"]
["SALE-HSSAINE (AR)","441.01.06"]
["SALE-LAYAYDA (AR)","441.01.07"]
["SALE-TABRIQUET (AR)","441.01.09"]
["SEBT GZOULA (M)","431.01.11"]
["SEFROU (M)","451.01.09"]
["SEFROU-AGHBALOU AQORAR","451.07.01"]
["SEFROU-AHL SIDI LAHCEN","451.07.03"]
["SEFROU-AZZABA","451.07.05"]
["SEFROU-KANDAR SIDI KHIAR","451.07.07"]
["SEFROU-LAANOUSSAR","451.07.09"]
["SEFROU-SIDI YOUSSEF BEN AHMED","451.07.11"]
["SEFROU-TAZOUTA","451.07.13"]
["SETTAT (M)","461.01.15"]
["SETTAT-AIN NZAGH","461.09.01"]
["SETTAT-BNI YAGRINE","461.09.03"]
["SETTAT-GDANA","461.09.05"]
["SETTAT-GUISSER","461.09.07"]
["SETTAT-KHEMISSET CHAOUIA","461.09.09"]
["SETTAT-LAHOUAZA","461.09.11"]
["SETTAT-MACHRAA BEN ABBOU","461.09.13"]
["SETTAT-MZOURA","461.09.15"]
["SETTAT-OULAD AAFIF","461.09.17"]
["SETTAT-OULAD SAID","461.09.19"]
["SETTAT-OULAD SGHIR","461.09.21"]
["SETTAT-RIMA","461.09.23"]
["SETTAT-SIDI EL AIDI","461.09.25"]
["SETTAT-SIDI MOHAMMED BEN RAHAL","461.09.27"]
["SETTAT-TAMADROUST","461.09.29"]
["SETTAT-TOUALET","461.09.31"]
["SIDI BENNOUR (M)","181.01.07"]
["SIDI BENNOUR-BNI HILAL","181.07.01"]
["SIDI BENNOUR-BNI TSIRISS","181.07.03"]
["SIDI BENNOUR-BOUHMAME","181.07.05"]
["SIDI BENNOUR-JABRIA","181.07.07"]
["SIDI BENNOUR-KHMIS KSIBA","181.07.09"]
["SIDI BENNOUR-KOUDIAT BNI DGHOUGH","181.07.11"]
["SIDI BENNOUR-KRIDID","181.07.13"]
["SIDI BENNOUR-LAAGAGCHA","181.07.15"]
["SIDI BENNOUR-LAAMRIA","181.07.17"]
["SIDI BENNOUR-LAAOUNATE","181.07.19"]
["SIDI BENNOUR-LAATATRA","181.07.21"]
["SIDI BENNOUR-LMECHREK","181.07.23"]
["SIDI BENNOUR-METRANE","181.07.25"]
["SIDI BENNOUR-M'TAL","181.07.27"]
["SIDI BENNOUR-OULAD AMRANE","181.07.29"]
["SIDI BENNOUR-OULAD BOUSSAKEN","181.07.31"]
["SIDI BENNOUR-OULAD SI BOUHYA","181.07.33"]
["SIDI BENNOUR-TAMDA","181.07.35"]
["SIDI BOU OTHMANE-AKARMA","191.09.01"]
["SIDI BOU OTHMANE-BOURROUS","191.09.03"]
["SIDI BOU OTHMANE-JAIDATE","191.09.05"]
["SIDI BOU OTHMANE-LAMHARRA","191.09.07"]
["SIDI BOU OTHMANE-NZALAT LAADAM","191.09.09"]
["SIDI BOU OTHMANE-OULAD IMLOUL","191.09.11"]
["SIDI BOU OTHMANE-RAS AIN RHAMNA","191.09.13"]
["SIDI BOU OTHMANE-SIDI BOUBKER","191.09.15"]
["SIDI BOU OTHMANE-TLAUH","191.09.19"]
["SIDI IFNI (M)","581.01.03"]
["SIDI RAHHAL (M)","191.01.07"]
["SIDI SLIMANE (M)","281.01.07"]
["SIDI SLIMANE ECHCHARRAA (M)","113.01.29"]
["SIDI SLIMANE-AZGHAR","281.05.01"]
["SIDI SLIMANE-BOUMAIZ","281.05.03"]
["SIDI SLIMANE-DAR BEL AMRI","281.05.05"]
["SIDI SLIMANE-KCEIBYA","281.05.07"]
["SIDI SLIMANE-M'SAADA","281.05.09"]
["SIDI SLIMANE-OULAD BEN HAMMADI","281.05.11"]
["SIDI SLIMANE-OULAD H'CINE","281.05.13"]
["SIDI SLIMANE-SFAFAA","281.05.15"]
["SIDI SMAIL-BOULAOUANE","181.09.01"]
["SIDI SMAIL-CHAIBATE","181.09.03"]
["SIDI SMAIL-METTOUH","181.09.05"]
["SIDI SMAIL-MOGRESS","181.09.07"]
["SIDI SMAIL-OULAD FREJ","181.09.13"]
["SIDI SMAIL-OULAD HAMDANE","181.09.09"]
["SIDI SMAIL-OULAD SIDI ALI BEN YOUSSEF","181.09.11"]
["SIDI SMAIL-SEBT SAISS","181.09.15"]
["SIDI SMAIL-SI HSAIEN BEN ABDERRAHMANE","181.09.17"]
["SIDI SMAIL-ZAOUIAT LAKOUACEM","181.09.23"]
["SIDI SMAIL-ZAOUIAT SAISS","181.09.21"]
["SIDI YAHYA EL GHARB (M)","281.01.09"]
["SIDI-KACEM (M)","481.01.11"]
["SIDI-KACEM-BAB TIOUKA","481.09.01"]
["SIDI-KACEM-BIR TALEB","481.09.03"]
["SIDI-KACEM-CHBANATE","481.09.05"]
["SIDI-KACEM-SELFAT","481.09.07"]
["SIDI-KACEM-TEKNA","481.09.09"]
["SIDI-KACEM-ZAGGOTA","481.09.11"]
["SIDI-KACEM-ZIRARA","481.09.13"]
["SKHIRATE (M)","501.01.05"]
["SOUK ARBAA EL GHARB-ARBAOUA","281.07.01"]
["SOUK ARBAA EL GHARB-BENI MALEK","281.07.03"]
["SOUK ARBAA EL GHARB-KARIAT BEN AOUDA","281.07.05"]
["SOUK ARBAA EL GHARB-OUED EL MAKHAZINE","281.07.07"]
["SOUK EL ARBAA (M)","281.01.11"]
["SOUK SEBT OULAD NEMMA (M)","091.01.11"]
["SOUK TLET EL GHARB-BAHHARA OULAD AYAD","281.09.01"]
["SOUK TLET EL GHARB-CHOUAFAA","281.09.03"]
["SOUK TLET EL GHARB-LALLA MIMOUNA","281.09.05"]
["SOUK TLET EL GHARB-MOULAY BOUSSELHAM","281.09.07"]
["SOUK TLET EL GHARB-SIDI ALLAL TAZI","281.09.09"]
["SOUK TLET EL GHARB-SIDI BOUBKER EL HAJ","281.09.11"]
["SOUK TLET EL GHARB-SIDI MOHAMED LAHMAR","281.09.13"]
["TAFRAOUT (M)","581.01.05"]
["TAFRAOUT-AFELLA IGHIR","581.09.01"]
["TAFRAOUT-AIT OUAFQA","581.09.03"]
["TAFRAOUT-AMMELNE","581.09.05"]
["TAFRAOUT-IRIGH N'TAHALA","581.09.07"]
["TAFRAOUT-TARSOUAT","581.09.09"]
["TAFRAOUT-TASSRIRT","581.09.11"]
["TAHANNAOUT-MOULAY BRAHIM","041.09.01"]
["TAHANNAOUT-OUKAIMDEN","041.09.03"]
["TAHANNAOUT-OURIKA","041.09.05"]
["TAHANNAOUT-STI FADMA","041.09.07"]
["TAHANNAOUT-TAMESLOHTE","041.09.11"]
["TAHLA (M)","561.01.07"]
["TAHLA-AIT SAGHROUCHEN","561.09.01"]
["TAHLA-BOUYABLANE","561.09.03"]
["TAHLA-MAGHRAOUA","561.09.05"]
["TAHLA-MATMATA","561.09.07"]
["TAHLA-SMI+","561.09.09"]
["TAHLA-TAZARINE","561.09.11"]
["TAHLA-ZRARDA","561.09.13"]
["TAINASTE-BNI FTAH","561.11.01"]
["TAINASTE-BRARHA","561.11.03"]
["TAINASTE-EL GOUZATE","561.11.05"]
["TAINASTE-KAF EL GHAR","561.11.07"]
["TAINASTE-MSILA","561.11.09"]
["TAINASTE-TAIFA","561.11.11"]
["TAINASTE-TRAIBA","561.11.15"]
["TALIOUINE (M)","541.01.11"]
["TALIOUINE-AGADIR MELLOUL","541.07.01"]
["TALIOUINE-AHL TIFNOUTE","541.07.03"]
["TALIOUINE-ASKAOUEN","541.07.05"]
["TALIOUINE-ASSAISSE","541.07.07"]
["TALIOUINE-ASSAKI","541.07.09"]
["TALIOUINE-AZRAR","541.07.11"]
["TALIOUINE-IGUIDI","541.07.13"]
["TALIOUINE-SIDI HSAINE","541.07.15"]
["TALIOUINE-TAOUYALTE","541.07.17"]
["TALIOUINE-TASSOUSFI","541.07.19"]
["TALIOUINE-TIZGZAOUINE","541.07.21"]
["TALIOUINE-TOUBKAL","541.07.23"]
["TALIOUINE-ZAGMOUZEN","541.07.25"]
["TALMEST (M)","211.01.07"]
["TAMALLALT (M)","191.01.09"]
["TAMANAR (M)","211.01.09"]
["TAMANAR- IMGRADE","211.05.23"]
["TAMANAR-ADAGHAS","211.05.01"]
["TAMANAR-AGLIF","211.05.03"]
["TAMANAR-AGUERD","211.05.05"]
["TAMANAR-AIT AISSI IHAHANE","211.05.07"]
["TAMANAR-ASSAIS","211.05.09"]
["TAMANAR-BIZDAD","211.05.11"]
["TAMANAR-BOUZEMMOUR","211.05.13"]
["TAMANAR-EZZAOUITE","211.05.15"]
["TAMANAR-IDA OU AAZZA","211.05.17"]
["TAMANAR-IDA OU GUELLOUL","211.05.19"]
["TAMANAR-IDA OU KAZZOU","211.05.21"]
["TAMANAR-IMI N'TLIT","211.05.25"]
["TAMANAR-SIDI AHMED ESSAYEH","211.05.27"]
["TAMANAR-SIDI EL JAZOULI","211.05.29"]
["TAMANAR-SIDI GHANEME","211.05.31"]
["TAMANAR-SIDI HMAD OU HAMED","211.05.35"]
["TAMANAR-SIDI H'MAD OU M'BAREK","211.05.33"]
["TAMANAR-SIDI KAOUKI","211.05.37"]
["TAMANAR-SMIMOU","211.05.39"]
["TAMANAR-TAFEDNA","211.05.41"]
["TAMANAR-TAHELOUANTE","211.05.43"]
["TAMANAR-TAKOUCHT","211.05.45"]
["TAMANAR-TARGANTE","211.05.47"]
["TAMANAR-TIDZI","211.05.49"]
["TAMANAR-TIMIZGUIDA OUFTAS","211.05.51"]
["TAN TAN (M)","521.01.01"]
["TAN TAN-ABTEH","521.05.01"]
["TAN TAN-BEN KHLIL","521.05.03"]
["TAN TAN-CHBIKA","521.05.05"]
["TANGER","511.00.00"]
["TANGER-ASSILAH-BNI MAKADA (AR)","511.01.03"]
["TANGER-ASSILAH-BOUKHALEF","511.81.03"]
["TANGER-ASSILAH-CHARF-MGHOGHA (AR)","511.01.05"]
["TANGER-ASSILAH-CHARF-SOUANI (AR)","511.01.06"]
["TANGER-ASSILAH-TANGER-MEDINA (AR)","511.01.07"]
["TAN-TAN-MSIED","521.03.01"]
["TAOUNATE (M)","531.01.05"]
["TAOUNATE-AIN MEDIOUNA","531.07.01"]
["TAOUNATE-BNI OULID","531.07.03"]
["TAOUNATE-BNI OUNJEL TAFRAOUT","531.07.05"]
["TAOUNATE-BOUADEL","531.07.07"]
["TAOUNATE-BOUHOUDA","531.07.09"]
["TAOUNATE-FENNASSA BAB EL HIT","531.07.11"]
["TAOUNATE-KHLALFA","531.07.13"]
["TAOUNATE-MEZRAOUA","531.07.15"]
["TAOUNATE-RGHIOUA","531.07.17"]
["TAOUNATE-TAMEDIT","531.07.19"]
["TAOUNATE-ZRIZER","531.07.21"]
["TAOURIRT (M)","533.01.33"]
["TAOURIRT-AHL OUED ZA","533.09.01"]
["TAOURIRT-GTETER","533.09.07"]
["TAOURIRT-MELG EL OUIDANE","533.09.11"]
["TARFAYA (M)","321.01.05"]
["TARFAYA-AKHFENNIR","321.05.01"]
["TARFAYA-DAOURA","321.05.03"]
["TARFAYA-EL HAGOUNIA","321.05.05"]
["TARFAYA-TAH","321.05.07"]
["TARGUIST (M)","051.01.07"]
["TARGUIST-ABDELGHAYA SOUAHEL","051.07.01"]
["TARGUIST-BNI AHMED IMOUKZAN","051.07.03"]
["TARGUIST-BNI AMMART","051.07.05"]
["TARGUIST-BNI BCHIR","051.07.07"]
["TARGUIST-BNI BOUCHIBET","051.07.09"]
["TARGUIST-BNI BOUNSAR","051.07.11"]
["TARGUIST-ISSAGUEN","051.07.13"]
["TARGUIST-KETAMA","051.07.15"]
["TARGUIST-MOULAY AHMED CHERIF","051.07.17"]
["TARGUIST-SIDI BOUTMIM","051.07.19"]
["TARGUIST-SIDI BOUZINEB","051.07.21"]
["TARGUIST-TAGHZOUT","051.07.23"]
["TARGUIST-TAMSAOUT","051.07.25"]
["TARGUIST-ZARKT","051.07.27"]
["TAROUDANNT (M)","541.01.13"]
["TAROUDANNT-AHMAR LAGLALCHA","541.09.01"]
["TAROUDANNT-AIT IGAS","541.09.03"]
["TAROUDANNT-AIT MAKHLOUF","541.09.05"]
["TAROUDANNT-BOUNRAR","541.09.11"]
["TAROUDANNT-FREIJA","541.09.15"]
["TAROUDANNT-IDA OU MOUMEN","541.09.19"]
["TAROUDANNT-IMOULASS","541.09.27"]
["TAROUDANNT-LAMNIZLA","541.09.31"]
["TAROUDANNT-SIDI AHMED OU ABDALLAH","541.09.41"]
["TAROUDANNT-SIDI BORJA","541.09.43"]
["TAROUDANNT-SIDI DAHMANE","541.09.45"]
["TAROUDANNT-TAFRAOUTEN","541.09.51"]
["TAROUDANNT-TAMALOUKTE","541.09.55"]
["TAROUDANNT-TAZEMMOURT","541.09.57"]
["TAROUDANNT-TIOUT","541.09.63"]
["TAROUDANNT-ZAOUIA SIDI TAHAR","541.09.71"]
["TATA (M)","551.01.07"]
["TATA-ADIS","551.07.01"]
["TATA-ISSAFEN","551.07.03"]
["TATA-OUM EL GUERDANE","551.07.05"]
["TATA-TAGMOUT","551.07.07"]
["TATA-TIGZMERTE","551.07.09"]
["TATA-TIZAGHTE","551.07.11"]
["TAZA (M)","561.01.11"]
["TAZA-BAB BOUDIR","561.13.01"]
["TAZA-BAB MARZOUKA","561.13.03"]
["TAZA-BNI LENT","561.13.05"]
["TAZA-GALDAMANE","561.13.07"]
["TAZA-MEKNASSA ACHARQIA","561.13.09"]
["TAZA-MEKNASSA AL GHARBIA","561.13.11"]
["TAZA-OULAD CHRIF","561.13.13"]
["TAZA-TAINASTE","561.11.13"]
["TAZNAKHT (M)","401.01.09"]
["TEMARA (M)","501.01.07"]
["TEMARA-AIN ATTIG","501.05.01"]
["TEMARA-MERS EL KHEIR","501.05.03"]
["TEMARA-SABBAH","501.05.05"]
["TETOUAN (M)","571.01.11"]
["TETOUAN-AL HAMRA","571.05.01"]
["TETOUAN-AL KHRROUB","571.05.03"]
["TETOUAN-AL OUED","571.05.05"]
["TETOUAN-AZLA","571.05.07"]
["TETOUAN-BGHAGHZA","571.05.09"]
["TETOUAN-BNI IDDER","571.05.11"]
["TETOUAN-BNI LEIT","571.05.13"]
["TETOUAN-BNI SAID","571.05.15"]
["TETOUAN-DAR BNI KARRICH","571.05.17"]
["TETOUAN-OULAD ALI MANSOUR","571.05.19"]
["TETOUAN-SAHTRYINE","571.05.21"]
["TETOUAN-ZAITOUNE","571.05.23"]
["TETOUAN-ZAOUIAT SIDI KACEM","571.05.25"]
["TETOUAN-ZINAT","571.05.27"]
["THAR ES-SOUK (M)","531.01.07"]
["TIFLET (M)","291.01.05"]
["TIFLET-AIN JOHRA","291.09.01"]
["TIFLET-AIT BELKACEM","291.09.03"]
["TIFLET-AIT BOUYAHYA EL HAJJAMA","291.09.05"]
["TIFLET-AIT MALEK","291.09.07"]
["TIFLET-KHEMIS SIDI YAHYA","291.09.09"]
["TIFLET-M'QAM TOLBA","291.09.11"]
["TIFLET-SIDI ABDERRAZAK","291.09.13"]
["TIFLET-SIDI ALLAL EL BAHRAOUI","291.09.17"]
["TIFLET-SIDI BOUKHALKHAL","291.09.15"]
["TINEJDAD (M)","201.01.15"]
["TINGHIR (M)","401.01.11"]
["TISSA (M)","531.01.09"]
["TISSA-AIN AICHA","531.09.01"]
["TISSA-AIN LEGDAH","531.09.03"]
["TISSA-AIN MAATOUF","531.09.05"]
["TISSA-BOUAROUSS","531.09.07"]
["TISSA-EL BSABSA","531.09.09"]
["TISSA-MESSASSA","531.09.11"]
["TISSA-OUED JEMAA","531.09.13"]
["TISSA-OULAD AYYAD","531.09.15"]
["TISSA-OULAD DAOUD","531.09.17"]
["TISSA-OUTABOUABANE","531.09.19"]
["TISSA-RAS EL OUED","531.09.21"]
["TISSA-SIDI M'HAMED BEN LAHCEN","531.09.23"]
["TIT MELLIL (M)","355.01.05"]
["TIT MELLIL-AL MAJJATIA OULAD TALEB","355.03.01"]
["TIT MELLIL-LAHRAOUYINE","355.03.03"]
["TIT MELLIL-SIDI HAJJAJ OUED HASSAR","355.03.05"]
["TIZNIT (M)","581.01.07"]
["TIZNIT-ANZI","581.03.03"]
["TIZNIT-ARBAA RASMOUKA","581.11.01"]
["TIZNIT-ARBAA SAHEL","581.11.03"]
["TIZNIT-BOUNAAMANE","581.11.05"]
["TIZNIT-EL MAADER EL KABIR","581.11.07"]
["TIZNIT-OUIJJANE","581.11.09"]
["TIZNIT-REGGADA","581.11.11"]
["TIZNIT-SIDI BOUABDELLI","581.11.13"]
["TIZNIT-TNINE AGLOU","581.11.15"]
["TOUARGA (M)","421.01.07"]
["TOUISSIT (M)","275.01.35"]
["TOULAL (M)","061.01.07"]
["YOUSSOUFIA (M)","431.01.13"]
["ZAG (M)","071.01.03"]
["ZAG-AL MAHBASS","071.05.01"]
["ZAG-LABOUIRAT","071.05.03"]
["ZAGORA (M)","587.01.13"]
["ZAGORA-BLEIDA","587.09.09"]
["ZAGORA-BNI ZOLI","587.09.11"]
["ZAGORA-BOUZEROUAL","587.09.13"]
["ZAGORA-ERROUHA","587.09.15"]
["ZAGORA-FEZOUATA","587.09.17"]
["ZAGORA-KTAOUA","587.09.19"]
["ZAGORA-M'HAMID EL GHIZLANE","587.09.23"]
["ZAGORA-TAFTECHNA","587.09.29"]
["ZAGORA-TAGOUNITE","587.09.33"]
["ZAGORA-TAMEGROUTE","587.09.35"]
["ZAGORA-TERNATA","587.09.43"]
["ZAGORA-TINZOULINE","587.09.45"]
["ZAIO (M)","381.01.07"]
["ZAOUIAT CHEIKH (M)","091.01.13"]
["ZEGHANGHANE (M)","381.01.09"]
["ZEMAMRA (M)","181.01.09"]
["ZEMAMRA-LAGHNADRA","181.11.01"]
["ZEMAMRA-LGHARBIA","181.11.03"]
["ZEMAMRA-LOUALIDIA","181.11.05"]
["ZEMAMRA-OULAD SBAITA","181.11.07"]
["ZEMAMRA-SANIAT BERGUIG","181.11.09"]
["ZERHOUN-CHARQAOUA","061.07.01"]
["ZERHOUN-KARMET BEN SALEM","061.07.03"]
["ZERHOUN-MRHASSIYINE","061.07.05"]
["ZERHOUN-N'ZALAT BNI AMAR","061.07.07"]
["ZERHOUN-OUALILI","061.07.09"]
["ZERHOUN-SIDI ABDALLAH AL KHAYAT","061.07.11"]
["ZNATA-BNI YAKHLEF","371.03.01"]
["ZNATA-ECH-CHALLALATE","371.03.03"]
["ZNATA-SIDI MOUSSA BEN ALI","371.03.05"]
["ZNATA-SIDI MOUSSA MAJDOUB","371.03.07"]